Service Area,Service Division,Expense Type,Expense Code,Detailed Expense Type,Payment Date,Transaction Number,Amount Exc Vat,Supplier Name
Adults Wellbeing and Health,Head of Adults,Creditors,952131,Creditor-extra care housing est man,02-Jan-2013,2537730-SGIN/00022185,826.08,HANOVER HOUSING ASSOCIATION.
Adults Wellbeing and Health,Planning and Performance,Supplies and Services,352001,Conference Expenses,02-Jan-2013,2537746-00-039,966.00,JCK TRAINING.
Adults Wellbeing and Health,Planning and Performance,Supplies and Services,338091,Services,02-Jan-2013,2537837-91186202,600.00,UNIVERSITY OF NORTHUMBRIA.
Adults Wellbeing and Health,Planning and Performance,Supplies and Services,338091,Services,02-Jan-2013,2537837-91186362,600.00,UNIVERSITY OF NORTHUMBRIA.
Adults Wellbeing and Health,Planning and Performance,Supplies and Services,338091,Services,02-Jan-2013,2537837-91186365,600.00,UNIVERSITY OF NORTHUMBRIA.
Adults Wellbeing and Health,Social Inclusion,Supplies and Services,304403,Equipment and Materials,02-Jan-2013,2537835-0937,588.24,UNITE LTD.
Assistant Chief Executive,Partnerships & Community Engagement Div.,Cap Exp on Grants & Other Financial Assistance (REFCUS),918004,Contributions to other bodies,02-Jan-2013,2537834-12NB-EDRC021TPP,"21,870.64",TRIMDON ANGLING CLUB.
Assistant Chief Executive,Partnerships & Community Engagement Div.,Transfer Payments,525030,Other,02-Jan-2013,2537683-G-CB2012/2013,"2,000.00",BURNOPFIELD COMMUNITY ASSOCIATION.
Assistant Chief Executive,Partnerships & Community Engagement Div.,Transfer Payments,525030,Other,02-Jan-2013,2537690-GAF2012/13,"2,000.00",CASTLESIDE & DISTRICT COMMUNITY ASSOCIATION.
Assistant Chief Executive,Partnerships & Community Engagement Div.,Transfer Payments,525030,Other,02-Jan-2013,2537725-GAF2012/13,"2,000.00",FROSTERLEY VILLAGE HALL ASSOCIATION.
Assistant Chief Executive,Partnerships & Community Engagement Div.,Transfer Payments,525030,Other,02-Jan-2013,2537736-G-CB2012/2013,"2,000.00",HENKNOWLE COMMUNITY ASSOCIATION.
Children and Young Peoples Services,CYPS - Local Authority,Supplies and Services,338045,Services,02-Jan-2013,2537739-FAO13/12,"65,615.00",HMCTS.
Children and Young Peoples Services,CYPS - Local Authority,Third Party Payments,425021,Rendered by Voluntary Organisations,02-Jan-2013,2537742-INV-0095,"35,222.48",INTERACT CARE LTD.
Children and Young Peoples Services,CYPS - Local Authority,Supplies and Services,338027,Services,02-Jan-2013,2537756-1000107,"27,722.87",KING JAMES I ACADEMY.
Children and Young Peoples Services,CYPS - Local Authority,Third Party Payments,425021,Rendered by Voluntary Organisations,02-Jan-2013,2537802-10229,"27,103.50",PERCY HEDLEY FOUNDATION.
Children and Young Peoples Services,CYPS - Local Authority,Third Party Payments,425021,Rendered by Voluntary Organisations,02-Jan-2013,2537802-10228,"21,237.25",PERCY HEDLEY FOUNDATION.
Children and Young Peoples Services,CYPS - Local Authority,Third Party Payments,425021,Rendered by Voluntary Organisations,02-Jan-2013,2537802-10226,"13,023.50",PERCY HEDLEY FOUNDATION.
Children and Young Peoples Services,CYPS - Local Authority,Third Party Payments,425021,Rendered by Voluntary Organisations,02-Jan-2013,2537702-SCCG/000482,"12,842.99",CONTINUUM CARE & EDUCATION GROUP LTD.
Children and Young Peoples Services,CYPS - Local Authority,Third Party Payments,425021,Rendered by Voluntary Organisations,02-Jan-2013,2537802-10227,"8,432.00",PERCY HEDLEY FOUNDATION.
Children and Young Peoples Services,CYPS - Local Authority,Third Party Payments,486022,Service Level Agreements,02-Jan-2013,2537718-3295,"5,269.32",FLEXIBLE SUPPORT OPTIONS UK (DOMICILARY) LTD.
Children and Young Peoples Services,CYPS - Local Authority,Third Party Payments,425021,Rendered by Voluntary Organisations,02-Jan-2013,2537819-1130074,"5,100.00",ST CUTHBERTS CARE.
Children and Young Peoples Services,CYPS - Local Authority,Supplies and Services,338027,Services,02-Jan-2013,2537777-CCOT02,"5,000.00",MRS CHRISTINE COTTAM.
Children and Young Peoples Services,CYPS - Local Authority,Third Party Payments,425040,Rendered by Voluntary Organisations,02-Jan-2013,2537722-83498,"4,011.97",FOSTERING SOLUTIONS LTD.
Children and Young Peoples Services,CYPS - Local Authority,Third Party Payments,425040,Rendered by Voluntary Organisations,02-Jan-2013,2537674-104305617,"3,682.80",BARNARDOS.
Children and Young Peoples Services,CYPS - Local Authority,Third Party Payments,425040,Rendered by Voluntary Organisations,02-Jan-2013,2537719-2340,"3,257.10",FOSTER CARE SOLUTIONS LTD.
Children and Young Peoples Services,CYPS - Local Authority,Third Party Payments,425040,Rendered by Voluntary Organisations,02-Jan-2013,2537726-22905,"3,232.99",FUTURES FOR CHILDREN LTD.
Children and Young Peoples Services,CYPS - Local Authority,Third Party Payments,425040,Rendered by Voluntary Organisations,02-Jan-2013,2537784-NFA72738,"3,100.00",NATIONAL FOSTERING AGENCY LTD.
Children and Young Peoples Services,CYPS - Local Authority,Premises,108301,Service Repairs and Maintenance,02-Jan-2013,2537707-MI19/12/12,"3,000.00",DJ EVANS YOUTH CLUB.
Children and Young Peoples Services,CYPS - Local Authority,Premises,108301,Service Repairs and Maintenance,02-Jan-2013,2537801-MI--R14,"3,000.00",PELTON COMMUNITY ASSOCIATION.
Children and Young Peoples Services,CYPS - Local Authority,Premises,108301,Service Repairs and Maintenance,02-Jan-2013,2537828-MI,"3,000.00",TEESDALE COMMUNITY RESOURCES (TCR).
Children and Young Peoples Services,CYPS - Local Authority,Third Party Payments,425040,Rendered by Voluntary Organisations,02-Jan-2013,2537721-0000013389,"2,914.20",FOSTERING PEOPLE LTD.
Children and Young Peoples Services,CYPS - Local Authority,Third Party Payments,425021,Rendered by Voluntary Organisations,02-Jan-2013,2537840-000404,"2,500.00",WHITEHORSE LODGE LTD.
Children and Young Peoples Services,CYPS - Local Authority,Supplies and Services,364999,Grants to Voluntary Organisations,02-Jan-2013,2537796-GA19/12/2012,"2,258.00",OXHILL YOUTH CLUB.
Children and Young Peoples Services,CYPS - Local Authority,Supplies and Services,336005,Advertising,02-Jan-2013,2537831-100000917122,"1,319.27",TMP (UK) LTD (RECRUITMENT).
Children and Young Peoples Services,CYPS - Local Authority,Supplies and Services,338099,Services,02-Jan-2013,2537762-E-14/11-28/11/12,"1,310.70",REDACTED - PAYMENT TO INDIVIDUAL
Children and Young Peoples Services,CYPS - Local Authority,Third Party Payments,425040,Rendered by Voluntary Organisations,02-Jan-2013,2537823-123217,"1,230.00",SWIIS FOSTER CARE LTD.
Children and Young Peoples Services,CYPS - Local Authority,Third Party Payments,425040,Rendered by Voluntary Organisations,02-Jan-2013,2537823-123216,"1,075.00",SWIIS FOSTER CARE LTD.
Children and Young Peoples Services,CYPS - Local Authority,Third Party Payments,425040,Rendered by Voluntary Organisations,02-Jan-2013,2537823-123210,"1,069.00",SWIIS FOSTER CARE LTD.
Children and Young Peoples Services,CYPS - Local Authority,Supplies and Services,364999,Grants to Voluntary Organisations,02-Jan-2013,2537691-GA19/12/2012,"1,063.00",CASTLESIDE YOUTH CLUB.
Children and Young Peoples Services,CYPS - Local Authority,Transfer Payments,510032,School Children,02-Jan-2013,2537705-A2012-AP,974.85,DAYPARK LTD.
Children and Young Peoples Services,CYPS - Local Authority,Third Party Payments,440001,Other Third Party Payments,02-Jan-2013,2537758-F,972.90,REDACTED - PAYMENT TO INDIVIDUAL
Children and Young Peoples Services,CYPS - Local Authority,Third Party Payments,425040,Rendered by Voluntary Organisations,02-Jan-2013,2537823-123218,911.00,SWIIS FOSTER CARE LTD.
Children and Young Peoples Services,CYPS - Local Authority,Third Party Payments,425040,Rendered by Voluntary Organisations,02-Jan-2013,2537823-123208,910.00,SWIIS FOSTER CARE LTD.
Children and Young Peoples Services,CYPS - Local Authority,Third Party Payments,425040,Rendered by Voluntary Organisations,02-Jan-2013,2537823-123209,901.00,SWIIS FOSTER CARE LTD.
Children and Young Peoples Services,CYPS - Local Authority,Third Party Payments,425040,Rendered by Voluntary Organisations,02-Jan-2013,2537823-123213,901.00,SWIIS FOSTER CARE LTD.
Children and Young Peoples Services,CYPS - Local Authority,Supplies and Services,324117,Provisions,02-Jan-2013,2537826-9410626790,897.60,TCHIBO COFFEE INTERNATIONAL LTD.
Children and Young Peoples Services,CYPS - Local Authority,Third Party Payments,425040,Rendered by Voluntary Organisations,02-Jan-2013,2537823-123212,795.00,SWIIS FOSTER CARE LTD.
Children and Young Peoples Services,CYPS - Local Authority,Third Party Payments,425040,Rendered by Voluntary Organisations,02-Jan-2013,2537823-123214,774.00,SWIIS FOSTER CARE LTD.
Children and Young Peoples Services,CYPS - Local Authority,Fees,901002,Professional Fees,02-Jan-2013,2537832-I2012/265,720.00,TODD MILBURN PARTNERSHIP LTD.
Children and Young Peoples Services,CYPS - Local Authority,Third Party Payments,425040,Rendered by Voluntary Organisations,02-Jan-2013,2537720-FC011071,700.00,FOSTER CARES LTD.
Children and Young Peoples Services,CYPS - Local Authority,Third Party Payments,425040,Rendered by Voluntary Organisations,02-Jan-2013,2537720-FC011112,700.00,FOSTER CARES LTD.
Children and Young Peoples Services,CYPS - Local Authority,Supplies and Services,304421,Equipment and Materials,02-Jan-2013,2537815-244/13/0040914,697.40,SIEMENS FINANCIAL SERVICES LTD.
Children and Young Peoples Services,CYPS - Local Authority,Transfer Payments,510032,School Children,02-Jan-2013,2537685-A2012,582.00,BUTTERFLIES DAY CARE.
Children and Young Peoples Services,CYPS - Local Authority,Third Party Payments,440031,Other Third Party Payments,02-Jan-2013,2537776-LB18/12-05/01/2013,546.93,REDACTED - PAYMENT TO INDIVIDUAL
Children and Young Peoples Services,CYPS - Local Authority,Fees,901002,Professional Fees,02-Jan-2013,2537832-I2012/304,520.00,TODD MILBURN PARTNERSHIP LTD.
Children and Young Peoples Services,Dedicated Schools Grant,Third Party Payments,425005,Rendered by Voluntary Organisations,02-Jan-2013,2537805-9011267,"52,257.00",PONTVILLE SCHOOL LTD.
Children and Young Peoples Services,Dedicated Schools Grant,Supplies and Services,342053,Computers and Communications,02-Jan-2013,2537838-VM3384,"1,000.00",VIVO REWARDS LTD.
Corporate Resources,Financing- Resources,Supplies and Services,338099,Services,02-Jan-2013,2537820-9033671,"5,992.50",STOCKPORT MBC.
Corporate Resources,Financing- Resources,Supplies and Services,338099,Services,02-Jan-2013,2537820-9033672,"5,397.50",STOCKPORT MBC.
Corporate Resources,Financing- Resources,Supplies and Services,384180,Miscellaneous Expenses,02-Jan-2013,2537759-0640551,"4,433.84",LOOMIS UK LTD.
Corporate Resources,Financing- Resources,Supplies and Services,338099,Services,02-Jan-2013,2537820-90333670,"4,250.00",STOCKPORT MBC.
Corporate Resources,Financing- Resources,Supplies and Services,338099,Services,02-Jan-2013,2537820-90333673,"4,250.00",STOCKPORT MBC.
Corporate Resources,Financing- Resources,Supplies and Services,338099,Services,02-Jan-2013,2537820-90333674,"4,250.00",STOCKPORT MBC.
Corporate Resources,Financing- Resources,Supplies and Services,338027,Services,02-Jan-2013,2537696-C/RB112842,950.00,CIVICA UK LTD.
Corporate Resources,ICT Services incl. Design and Print,Supplies and Services,340001,Postages,02-Jan-2013,2537812-9041324239,"10,022.82",ROYAL MAIL GROUP PLC.
Corporate Resources,ICT Services incl. Design and Print,Supplies and Services,338027,Services,02-Jan-2013,2537807-DC003/12,"1,101.00",REGIONAL NETWORK SOLUTIONS LTD.
Corporate Resources,ICT Services incl. Design and Print,Supplies and Services,304252,Equipment and Materials,02-Jan-2013,2537693-65922,687.45,CENTRAL POWER SERVICES LTD.
Corporate Resources,ICT Services incl. Design and Print,Transport,215013,Running Costs of Vehicles,02-Jan-2013,215548-NG58WOM,645.00,THE POST OFFICE LTD.
Corporate Resources,ICT Services incl. Design and Print,Supplies and Services,338099,Services,02-Jan-2013,2537752-35782,501.00,KBR IT & NETWORKING SOLUTIONS.
Corporate Resources,Legal & Democratic Services,Employees,040149,"Recruitment, Instruction and Training",02-Jan-2013,2537783-2012/AGM4,700.00,NATIONAL ASSOCIATION OF COUNCILLORS.
Neighbourhood Services,Direct Services,Third Party Payments,430100,Rendered by Private Contractors,02-Jan-2013,2537817-G0540980,"1,750.00",SITEXORBIS LTD.
Neighbourhood Services,Direct Services,Stock,926900,Stock in hand-Inventory system,02-Jan-2013,2537809-42468,"1,009.00",RIGHT OFFICE INTERIORS LTD.
Neighbourhood Services,Direct Services,Fees,901002,Professional Fees,02-Jan-2013,2537832-I2012/263,675.00,TODD MILBURN PARTNERSHIP LTD.
Neighbourhood Services,Direct Services,Supplies and Services,304221,Equipment and Materials,02-Jan-2013,2537824-0564482,637.64,T CROSSLING & CO LTD.
Neighbourhood Services,Direct Services,Supplies and Services,304221,Equipment and Materials,02-Jan-2013,2537824-0571868,575.98,T CROSSLING & CO LTD.
Neighbourhood Services,Direct Services,Supplies and Services,304221,Equipment and Materials,02-Jan-2013,2537842-78146265,514.75,WOLSELEY UK LTD.
Neighbourhood Services,"Environment,Health & Consumer Protection",Supplies and Services,384199,Miscellaneous Expenses,02-Jan-2013,2537792-912791217,606.41,NORTHUMBRIAN WATER LTD.
Neighbourhood Services,"Heritage, Culture & Libraries",Supplies and Services,384199,Miscellaneous Expenses,02-Jan-2013,2537670-100198,"60,000.00",ARTICHOKE TRUST.
Neighbourhood Services,"Heritage, Culture & Libraries",Supplies and Services,384199,Miscellaneous Expenses,02-Jan-2013,2537670-100197,"50,000.00",ARTICHOKE TRUST.
Neighbourhood Services,"Heritage, Culture & Libraries",Supplies and Services,384540,Miscellaneous Expenses,02-Jan-2013,2537831-100000924180,"1,022.68",TMP (UK) LTD (RECRUITMENT).
Neighbourhood Services,"Heritage, Culture & Libraries",Supplies and Services,324001,Provisions,02-Jan-2013,2537687-EW53563347,612.92,CARLSBERG UK LTD.
Neighbourhood Services,Projects and Business services,Supplies and Services,336005,Advertising,02-Jan-2013,2537797-7718,626.00,PA PROMOTIONS LTD.
Neighbourhood Services,Projects and Business services,Supplies and Services,336005,Advertising,02-Jan-2013,2537797-7717,510.00,PA PROMOTIONS LTD.
Neighbourhood Services,Sport & Leisure,Summary reporting level,720810,Fees and Charges,02-Jan-2013,2537700-PS22387,"21,910.82",COMPETITION LINE UK LTD.
Neighbourhood Services,Sport & Leisure,Summary reporting level,720810,Fees and Charges,02-Jan-2013,2537700-PS22386,"20,198.22",COMPETITION LINE UK LTD.
Neighbourhood Services,Sport & Leisure,Summary reporting level,720810,Fees and Charges,02-Jan-2013,2537700-PS22388,"4,796.06",COMPETITION LINE UK LTD.
Neighbourhood Services,Sport & Leisure,Employees,080030,Agency Staff,02-Jan-2013,2537745-AW-OP,700.00,REDACTED - PAYMENT TO INDIVIDUAL
RED HRA,East Durham Homes - HRA Rent Control Account,Supplies and Services,384999,Miscellaneous Expenses,02-Jan-2013,2537770-RR,995.23,REDACTED - PAYMENT TO INDIVIDUAL
RED HRA,HRA Capital,Construction Work,908105,Construction work,02-Jan-2013,2537750-158644,784.58,JOINERY & TIMBER CREATIONS (65) LTD.
RED HRA,HRA Capital,Construction Work,908105,Construction work,02-Jan-2013,2537804-159860,756.73,PLUMBING TRADE SUPPLIES LTD.
RED HRA,HRA Control Codes,Debtors,930105,Debtor-tenants water account,02-Jan-2013,2537792-260001000015541,"928,818.25",NORTHUMBRIAN WATER LTD.
Regeneration & Economic Development,Economic Development and Housing,Cap Exp on Grants & Other Financial Assistance (REFCUS),918401,Capital grants,02-Jan-2013,2537671-790,"9,509.97",AVENSWAY BUILDING CONTRACTORS LTD.
Regeneration & Economic Development,Economic Development and Housing,Cap Exp on Grants & Other Financial Assistance (REFCUS),918401,Capital grants,02-Jan-2013,2537666-DFG320/12,"8,000.00",AB BUILDERS.
Regeneration & Economic Development,Economic Development and Housing,Cap Exp on Grants & Other Financial Assistance (REFCUS),918401,Capital grants,02-Jan-2013,2537830-SIP121168,"4,696.00",THYSSENKRUPP ENCASA LTD.
Regeneration & Economic Development,Economic Development and Housing,Cap Exp on Grants & Other Financial Assistance (REFCUS),918401,Capital grants,02-Jan-2013,2537830-SIP-9CG-DFG290/12,"4,340.00",THYSSENKRUPP ENCASA LTD.
Regeneration & Economic Development,Economic Development and Housing,Fees,901001,Internal fees,02-Jan-2013,2537829-SITRH/0004965,"3,643.11",THREE RIVERS HOUSING ASSOCIATION LTD.
Regeneration & Economic Development,Economic Development and Housing,Cap Exp on Grants & Other Financial Assistance (REFCUS),918401,Capital grants,02-Jan-2013,2537830-SIP120900,"1,480.00",THYSSENKRUPP ENCASA LTD.
Regeneration & Economic Development,Economic Development and Housing,Supplies and Services,384899,Miscellaneous Expenses,02-Jan-2013,2537755-A-P,"1,274.04",KEVIN GRAY BUILDING SERVICES.
Regeneration & Economic Development,Economic Development and Housing,Supplies and Services,384700,Miscellaneous Expenses,02-Jan-2013,2537714-Y1C,"1,234.25",EBONEY HOME CARE LTD.
Regeneration & Economic Development,Economic Development and Housing,Supplies and Services,384700,Miscellaneous Expenses,02-Jan-2013,2537701-YR1/2NDPMENT,"1,014.00",CONSETT YMCA.
Regeneration & Economic Development,Economic Development and Housing,Fees,901002,Professional Fees,02-Jan-2013,2537832-I2012/264,585.00,TODD MILBURN PARTNERSHIP LTD.
Regeneration & Economic Development,"Spatial Policy, Planning, Assets & Environment",Supplies and Services,384700,Miscellaneous Expenses,02-Jan-2013,2537728-LL001C07,"4,414.73",GROUNDWORK NORTH EAST.
Regeneration & Economic Development,"Spatial Policy, Planning, Assets & Environment",Supplies and Services,384700,Miscellaneous Expenses,02-Jan-2013,2537728-LL017C07,"3,470.36",GROUNDWORK NORTH EAST.
Regeneration & Economic Development,"Spatial Policy, Planning, Assets & Environment",Supplies and Services,384700,Miscellaneous Expenses,02-Jan-2013,2537728-R,"3,398.18",GROUNDWORK NORTH EAST.
Regeneration & Economic Development,"Spatial Policy, Planning, Assets & Environment",Supplies and Services,384700,Miscellaneous Expenses,02-Jan-2013,2537728-LL016C07,"3,003.85",GROUNDWORK NORTH EAST.
Regeneration & Economic Development,"Spatial Policy, Planning, Assets & Environment",Supplies and Services,384700,Miscellaneous Expenses,02-Jan-2013,2537728-RLL016,"2,791.79",GROUNDWORK NORTH EAST.
Regeneration & Economic Development,"Spatial Policy, Planning, Assets & Environment",Supplies and Services,384700,Miscellaneous Expenses,02-Jan-2013,2537712-LL012-C6,"2,063.41",DURHAM WILDLIFE TRUST LTD.
Regeneration & Economic Development,"Spatial Policy, Planning, Assets & Environment",Work In Progress,928002,Rechargeable works,02-Jan-2013,2537727-O/P-G,700.00,GROUNDWORK NORTH EAST.
Regeneration & Economic Development,Strategy Programmes and Performance,Supplies and Services,384899,Miscellaneous Expenses,02-Jan-2013,2537711-ED49/9,"1,765.29",DURHAM RURAL COMMUNITY COUNCIL LTD.
Regeneration & Economic Development,Transport,Third Party Payments,430106,Rendered by Private Contractors,02-Jan-2013,2537754-ED1120605-DEC12,"4,652.00",KEITH HAMMOND.
Adults Wellbeing and Health,Commissioning inc Supporting People,Third Party Payments,479101,Purchase of Care,03-Jan-2013,215712-1161,"7,500.00",RETHINK MENTAL ILLNESS.
Adults Wellbeing and Health,Commissioning inc Supporting People,Third Party Payments,479101,Purchase of Care,03-Jan-2013,215712-1162,"7,500.00",RETHINK MENTAL ILLNESS.
Adults Wellbeing and Health,Commissioning inc Supporting People,Third Party Payments,479101,Purchase of Care,03-Jan-2013,215712-1163,"7,500.00",RETHINK MENTAL ILLNESS.
Adults Wellbeing and Health,Head of Adults,Third Party Payments,470101,Purchase of Care,03-Jan-2013,2537923-INV-0093,"16,072.11",INTERACT CARE LTD.
Adults Wellbeing and Health,Head of Adults,Premises,125009,Rents,03-Jan-2013,2538015-430023874,"7,397.83",TEES ESK & WEAR VALLEY NHS FOUNDATION TRUST.
Adults Wellbeing and Health,Head of Adults,Third Party Payments,479101,Purchase of Care,03-Jan-2013,2538015-430023875,"6,832.00",TEES ESK & WEAR VALLEY NHS FOUNDATION TRUST.
Adults Wellbeing and Health,Head of Adults,Third Party Payments,478101,Purchase of Care,03-Jan-2013,2537985-SLSINV/00001674,"1,694.72",REAL LIFE OPTIONS.
Adults Wellbeing and Health,Head of Adults,Summary reporting level,720033,Fees and Charges,03-Jan-2013,215671-OPC,"1,061.67",REDACTED - PAYMENT TO INDIVIDUAL
Adults Wellbeing and Health,Head of Adults,Supplies and Services,384616,Miscellaneous Expenses,03-Jan-2013,2537981-CSIV2309,903.12,PROGRESS CARE HOUSING ASSOCIATION LTD.
Adults Wellbeing and Health,Head of Adults,Summary reporting level,720033,Fees and Charges,03-Jan-2013,215559-OPC,688.22,REDACTED - PAYMENT TO INDIVIDUAL
Adults Wellbeing and Health,Head of Adults,Supplies and Services,304259,Equipment and Materials,03-Jan-2013,2537971-CN18027536,678.06,OCS GROUP UK LTD T/A CANNON HYGIENE.
Adults Wellbeing and Health,Planning and Performance,Supplies and Services,332048,"Printing, Stationery and Gen Off Exps",03-Jan-2013,2537968-91240160,"3,714.65",NORTHGATE INFORMATION SOLUTIONS UK LTD.
Adults Wellbeing and Health,Planning and Performance,Supplies and Services,344033,Telephones,03-Jan-2013,2537876-25411489Q049,"1,095.00",BRITISH TELECOMMUNICATIONS PLC.
Adults Wellbeing and Health,Planning and Performance,Supplies and Services,338091,Services,03-Jan-2013,2538028-91186364,700.00,UNIVERSITY OF NORTHUMBRIA.
Adults Wellbeing and Health,Social Inclusion,Supplies and Services,384199,Miscellaneous Expenses,03-Jan-2013,2537963-SLINV/00000124,"15,000.00",NEW COLLEGE DURHAM.
Assistant Chief Executive,Partnerships & Community Engagement Div.,Supplies and Services,384086,Miscellaneous Expenses,03-Jan-2013,215718-12NB-3TWN021,"5,616.00",SALVATION ARMY.
Assistant Chief Executive,Partnerships & Community Engagement Div.,Cap Exp on Grants & Other Financial Assistance (REFCUS),918004,Contributions to other bodies,03-Jan-2013,215725-CRU,"4,000.00",STANLEY WAY RESIDENTS ASSOCIATION.
Children and Young Peoples Services,CYPS - Local Authority,Employees,080025,Agency Staff,03-Jan-2013,2537895-523197,"148,965.22",COMENSURA LTD.
Children and Young Peoples Services,CYPS - Local Authority,Employees,080025,Agency Staff,03-Jan-2013,2537895-523401,"36,005.43",COMENSURA LTD.
Children and Young Peoples Services,CYPS - Local Authority,Supplies and Services,338027,Services,03-Jan-2013,2537973-201,"10,000.00",PEOPLETOO LTD.
Children and Young Peoples Services,CYPS - Local Authority,Summary reporting level,705113,Government Grants,03-Jan-2013,215746-04/12/12,"8,500.00",WOODHAM COMMUNITY TECHNICAL COLLEGE.
Children and Young Peoples Services,CYPS - Local Authority,Third Party Payments,425040,Rendered by Voluntary Organisations,03-Jan-2013,215700-1800006198604,"5,983.05",NEWCASTLE UPON TYNE CITY COUNCIL.
Children and Young Peoples Services,CYPS - Local Authority,Supplies and Services,338045,Services,03-Jan-2013,215648-200994,"5,300.00",MR JUSTIN GRAY.
Children and Young Peoples Services,CYPS - Local Authority,Supplies and Services,338027,Services,03-Jan-2013,2537973-202,"5,000.00",PEOPLETOO LTD.
Children and Young Peoples Services,CYPS - Local Authority,Transport,240002,Car Allowances,03-Jan-2013,2537894-3138849,"4,240.08",CO DURHAM & DARLINGTON NHS FOUNDATION TRUST.
Children and Young Peoples Services,CYPS - Local Authority,Third Party Payments,425040,Rendered by Voluntary Organisations,03-Jan-2013,2537864-104305719,"4,129.82",BARNARDOS.
Children and Young Peoples Services,CYPS - Local Authority,Third Party Payments,425040,Rendered by Voluntary Organisations,03-Jan-2013,2537912-630054594,"3,947.83",FOSTERING PEOPLE LTD.
Children and Young Peoples Services,CYPS - Local Authority,Supplies and Services,338045,Services,03-Jan-2013,215683-202592,"3,850.00",MRS KOSSAR KITCHING.
Children and Young Peoples Services,CYPS - Local Authority,Third Party Payments,425040,Rendered by Voluntary Organisations,03-Jan-2013,215700-1800006259265,"3,825.23",NEWCASTLE UPON TYNE CITY COUNCIL.
Children and Young Peoples Services,CYPS - Local Authority,Third Party Payments,425040,Rendered by Voluntary Organisations,03-Jan-2013,2537864-104305700,"3,412.17",BARNARDOS.
Children and Young Peoples Services,CYPS - Local Authority,Third Party Payments,425040,Rendered by Voluntary Organisations,03-Jan-2013,2538037-5239,"3,365.71",YOUNG FOUNDATIONS LTD.
Children and Young Peoples Services,CYPS - Local Authority,Third Party Payments,425040,Rendered by Voluntary Organisations,03-Jan-2013,2537910-2384,"3,365.67",FOSTER CARE SOLUTIONS LTD.
Children and Young Peoples Services,CYPS - Local Authority,Third Party Payments,425040,Rendered by Voluntary Organisations,03-Jan-2013,2538013-18065,"3,128.40",TEAM FOSTERING.
Children and Young Peoples Services,CYPS - Local Authority,Third Party Payments,425040,Rendered by Voluntary Organisations,03-Jan-2013,2538013-18092,"3,128.40",TEAM FOSTERING.
Children and Young Peoples Services,CYPS - Local Authority,Third Party Payments,425040,Rendered by Voluntary Organisations,03-Jan-2013,2538013-17872,"3,011.34",TEAM FOSTERING.
Children and Young Peoples Services,CYPS - Local Authority,Third Party Payments,425040,Rendered by Voluntary Organisations,03-Jan-2013,2538013-17660,"2,914.29",TEAM FOSTERING.
Children and Young Peoples Services,CYPS - Local Authority,Third Party Payments,425040,Rendered by Voluntary Organisations,03-Jan-2013,215700-1800006259277,"2,803.80",NEWCASTLE UPON TYNE CITY COUNCIL.
Children and Young Peoples Services,CYPS - Local Authority,Third Party Payments,425020,Rendered by Voluntary Organisations,03-Jan-2013,2537999-1130811,"2,765.00",ST CUTHBERTS CARE.
Children and Young Peoples Services,CYPS - Local Authority,Third Party Payments,425020,Rendered by Voluntary Organisations,03-Jan-2013,2537999-1130802,"2,590.00",ST CUTHBERTS CARE.
Children and Young Peoples Services,CYPS - Local Authority,Supplies and Services,338027,Services,03-Jan-2013,2537931-14,"2,502.50",JOHN RYMASZEWSKI.
Children and Young Peoples Services,CYPS - Local Authority,Supplies and Services,338045,Services,03-Jan-2013,215627-291779/INVMM35,"2,400.00",MISS AMANDA MILLER.
Children and Young Peoples Services,CYPS - Local Authority,Supplies and Services,338045,Services,03-Jan-2013,2537919-SDFPC-81,"2,225.00",HMCTS.
Children and Young Peoples Services,CYPS - Local Authority,Transport,230005,Contract Hire,03-Jan-2013,2537893-12037,"2,069.00",CLUBMAN CABS.
Children and Young Peoples Services,CYPS - Local Authority,Third Party Payments,486021,Service Level Agreements,03-Jan-2013,2537984-2587,"2,046.35",REACH OUT CARE SUPPORT SERVICES LTD.
Children and Young Peoples Services,CYPS - Local Authority,Transport,230007,Contract Hire,03-Jan-2013,2537874-1212,"1,733.10",BRIAN WAKE.
Children and Young Peoples Services,CYPS - Local Authority,Transport,230007,Contract Hire,03-Jan-2013,2537926-2069,"1,689.20",JEFF ANDERSON COACHES LTD.
Children and Young Peoples Services,CYPS - Local Authority,Transport,230007,Contract Hire,03-Jan-2013,2537926-2070,"1,689.20",JEFF ANDERSON COACHES LTD.
Children and Young Peoples Services,CYPS - Local Authority,Transport,230007,Contract Hire,03-Jan-2013,2537848-49,"1,470.00",A & P TAXIS.
Children and Young Peoples Services,CYPS - Local Authority,Transport,230007,Contract Hire,03-Jan-2013,2537866-S/1DECEMBER12,"1,367.52",BEELINE PRIVATE HIRE.
Children and Young Peoples Services,CYPS - Local Authority,Transport,230007,Contract Hire,03-Jan-2013,2537871-0083,"1,308.30",BOBBY DOVE.
Children and Young Peoples Services,CYPS - Local Authority,Third Party Payments,425020,Rendered by Voluntary Organisations,03-Jan-2013,2537999-1130683,"1,295.00",ST CUTHBERTS CARE.
Children and Young Peoples Services,CYPS - Local Authority,Transport,230007,Contract Hire,03-Jan-2013,2537926-2085,"1,266.90",JEFF ANDERSON COACHES LTD.
Children and Young Peoples Services,CYPS - Local Authority,Transport,230007,Contract Hire,03-Jan-2013,2537926-2089,"1,266.90",JEFF ANDERSON COACHES LTD.
Children and Young Peoples Services,CYPS - Local Authority,Transport,230007,Contract Hire,03-Jan-2013,2537871-0084-20/12/12,"1,190.00",BOBBY DOVE.
Children and Young Peoples Services,CYPS - Local Authority,Supplies and Services,338027,Services,03-Jan-2013,2537959-DCC009,"1,156.36",MRS SHIRLEY WOODCOCK.
Children and Young Peoples Services,CYPS - Local Authority,Supplies and Services,338045,Services,03-Jan-2013,215648-202775-17/12/12,"1,100.00",MR JUSTIN GRAY.
Children and Young Peoples Services,CYPS - Local Authority,Transport,230007,Contract Hire,03-Jan-2013,2537900-H004,"1,072.00",D IRVING T/A BJ TAXIS.
Children and Young Peoples Services,CYPS - Local Authority,Transport,230007,Contract Hire,03-Jan-2013,2537852-36,"1,066.50",ACE TAXIS..
Children and Young Peoples Services,CYPS - Local Authority,Transport,230007,Contract Hire,03-Jan-2013,2537881-BIL0016,"1,054.50",CA MUSGROVE.
Children and Young Peoples Services,CYPS - Local Authority,Transport,230007,Contract Hire,03-Jan-2013,2537854-615504,"1,050.00",ALANS CABS.
Children and Young Peoples Services,CYPS - Local Authority,Transport,230007,Contract Hire,03-Jan-2013,2537860-299,"1,050.00",AT TAXIS LTD.
Children and Young Peoples Services,CYPS - Local Authority,Transport,230007,Contract Hire,03-Jan-2013,2538000-00004,"1,050.00",STEVES TAXIS.
Children and Young Peoples Services,CYPS - Local Authority,Third Party Payments,425040,Rendered by Voluntary Organisations,03-Jan-2013,215700-1800006226375,"1,013.52",NEWCASTLE UPON TYNE CITY COUNCIL.
Children and Young Peoples Services,CYPS - Local Authority,Transport,230005,Contract Hire,03-Jan-2013,2537869-06293,"1,008.00",BIRDS TAXIS.
Children and Young Peoples Services,CYPS - Local Authority,Transfer Payments,525065,Other,03-Jan-2013,215735-FLP2,"1,000.00",THE ACADEMY AT SHOTTON HALL.
Children and Young Peoples Services,CYPS - Local Authority,Cap Exp on Grants & Other Financial Assistance (REFCUS),918401,Capital grants,03-Jan-2013,2537916-PG/00020,996.82,GLOBALSPORT AGENCY LTD.
Children and Young Peoples Services,CYPS - Local Authority,Transport,230007,Contract Hire,03-Jan-2013,2537851-511,975.00,AC TAXIS.
Children and Young Peoples Services,CYPS - Local Authority,Transport,230007,Contract Hire,03-Jan-2013,2537939-011212,975.00,KEITH STONELY.
Children and Young Peoples Services,CYPS - Local Authority,Transport,230007,Contract Hire,03-Jan-2013,2537900-O011,973.50,D IRVING T/A BJ TAXIS.
Children and Young Peoples Services,CYPS - Local Authority,Supplies and Services,384638,Miscellaneous Expenses,03-Jan-2013,2537880-168/13,960.00,BUTTERWICK HOSPICE RETAIL LTD.
Children and Young Peoples Services,CYPS - Local Authority,Transport,230007,Contract Hire,03-Jan-2013,2537866-S/2DECEMBER12,934.50,BEELINE PRIVATE HIRE.
Children and Young Peoples Services,CYPS - Local Authority,Transport,230007,Contract Hire,03-Jan-2013,2537870-62,934.50,BL TAXIS.
Children and Young Peoples Services,CYPS - Local Authority,Third Party Payments,425040,Rendered by Voluntary Organisations,03-Jan-2013,2538007-121829,911.00,SWIIS (UK) LTD.
Children and Young Peoples Services,CYPS - Local Authority,Third Party Payments,425040,Rendered by Voluntary Organisations,03-Jan-2013,2538007-123215,910.00,SWIIS (UK) LTD.
Children and Young Peoples Services,CYPS - Local Authority,Transport,230007,Contract Hire,03-Jan-2013,2537860-298,900.00,AT TAXIS LTD.
Children and Young Peoples Services,CYPS - Local Authority,Third Party Payments,425020,Rendered by Voluntary Organisations,03-Jan-2013,2537999-1130692,891.00,ST CUTHBERTS CARE.
Children and Young Peoples Services,CYPS - Local Authority,Cap Exp on Grants & Other Financial Assistance (REFCUS),918401,Capital grants,03-Jan-2013,2537950-I4014A,833.33,MARTIAL ART MATS.
Children and Young Peoples Services,CYPS - Local Authority,Supplies and Services,384199,Miscellaneous Expenses,03-Jan-2013,215743-021213,806.18,REDACTED - PAYMENT TO INDIVIDUAL
Children and Young Peoples Services,CYPS - Local Authority,Transport,230007,Contract Hire,03-Jan-2013,2537867-15,768.00,BEELINE TAXIS.
Children and Young Peoples Services,CYPS - Local Authority,Transport,230007,Contract Hire,03-Jan-2013,215571-11/2012/S030,760.00,COLLINS TAXIS.
Children and Young Peoples Services,CYPS - Local Authority,Transport,230007,Contract Hire,03-Jan-2013,2537849-04-21/12/12,750.00,AALPHA TAXIS.
Children and Young Peoples Services,CYPS - Local Authority,Transport,230007,Contract Hire,03-Jan-2013,2537851-512,750.00,AC TAXIS.
Children and Young Peoples Services,CYPS - Local Authority,Third Party Payments,425040,Rendered by Voluntary Organisations,03-Jan-2013,2537911-FC011059,730.00,FOSTER CARES LTD.
Children and Young Peoples Services,CYPS - Local Authority,Third Party Payments,425040,Rendered by Voluntary Organisations,03-Jan-2013,2537911-FC011100,730.00,FOSTER CARES LTD.
Children and Young Peoples Services,CYPS - Local Authority,Third Party Payments,425040,Rendered by Voluntary Organisations,03-Jan-2013,2537911-FC011299,730.00,FOSTER CARES LTD.
Children and Young Peoples Services,CYPS - Local Authority,Third Party Payments,425040,Rendered by Voluntary Organisations,03-Jan-2013,2537911-FC011352,730.00,FOSTER CARES LTD.
Children and Young Peoples Services,CYPS - Local Authority,Third Party Payments,425040,Rendered by Voluntary Organisations,03-Jan-2013,2537911-FC011365,730.00,FOSTER CARES LTD.
Children and Young Peoples Services,CYPS - Local Authority,Third Party Payments,425040,Rendered by Voluntary Organisations,03-Jan-2013,2538013-18125,730.00,TEAM FOSTERING.
Children and Young Peoples Services,CYPS - Local Authority,Supplies and Services,384638,Miscellaneous Expenses,03-Jan-2013,2537880-169/13,720.00,BUTTERWICK HOSPICE RETAIL LTD.
Children and Young Peoples Services,CYPS - Local Authority,Supplies and Services,384638,Miscellaneous Expenses,03-Jan-2013,2537880-170/13,720.00,BUTTERWICK HOSPICE RETAIL LTD.
Children and Young Peoples Services,CYPS - Local Authority,Supplies and Services,384638,Miscellaneous Expenses,03-Jan-2013,2537880-171/13,720.00,BUTTERWICK HOSPICE RETAIL LTD.
Children and Young Peoples Services,CYPS - Local Authority,Supplies and Services,384638,Miscellaneous Expenses,03-Jan-2013,2537880-172/13,720.00,BUTTERWICK HOSPICE RETAIL LTD.
Children and Young Peoples Services,CYPS - Local Authority,Transport,230007,Contract Hire,03-Jan-2013,2537940-11212,720.00,KEVIN EDMUNDSON.
Children and Young Peoples Services,CYPS - Local Authority,Third Party Payments,425040,Rendered by Voluntary Organisations,03-Jan-2013,2537911-FC011147,700.00,FOSTER CARES LTD.
Children and Young Peoples Services,CYPS - Local Authority,Third Party Payments,425040,Rendered by Voluntary Organisations,03-Jan-2013,2537911-FC011154,700.00,FOSTER CARES LTD.
Children and Young Peoples Services,CYPS - Local Authority,Third Party Payments,425040,Rendered by Voluntary Organisations,03-Jan-2013,2537911-FC011188,700.00,FOSTER CARES LTD.
Children and Young Peoples Services,CYPS - Local Authority,Third Party Payments,425040,Rendered by Voluntary Organisations,03-Jan-2013,2537911-FC011195,700.00,FOSTER CARES LTD.
Children and Young Peoples Services,CYPS - Local Authority,Third Party Payments,425040,Rendered by Voluntary Organisations,03-Jan-2013,2537911-FC011229,700.00,FOSTER CARES LTD.
Children and Young Peoples Services,CYPS - Local Authority,Third Party Payments,425040,Rendered by Voluntary Organisations,03-Jan-2013,2537911-FC011236,700.00,FOSTER CARES LTD.
Children and Young Peoples Services,CYPS - Local Authority,Transport,230007,Contract Hire,03-Jan-2013,2537866-S/6DECEMBER12,699.00,BEELINE PRIVATE HIRE.
Children and Young Peoples Services,CYPS - Local Authority,Transport,230007,Contract Hire,03-Jan-2013,2537955-3-21/12/12,660.00,MR BW YOUNG.
Children and Young Peoples Services,CYPS - Local Authority,Transfer Payments,510032,School Children,03-Jan-2013,2538003-AUTUMN2012-DH,654.75,SUNSHINE DAY NURSERY.
Children and Young Peoples Services,CYPS - Local Authority,Supplies and Services,338027,Services,03-Jan-2013,215733-41,624.00,SUSAN M COLES.
Children and Young Peoples Services,CYPS - Local Authority,Supplies and Services,384638,Miscellaneous Expenses,03-Jan-2013,2537966-0000011372,612.50,NORTH EAST AUTISM SOCIETY.
Children and Young Peoples Services,CYPS - Local Authority,Transport,230007,Contract Hire,03-Jan-2013,2537862-2101212,570.00,AVALON TAXIS.
Children and Young Peoples Services,CYPS - Local Authority,Transport,230005,Contract Hire,03-Jan-2013,2538024-RES76,558.00,TONYS TAXIS (A BIRCH).
Children and Young Peoples Services,CYPS - Local Authority,Supplies and Services,338045,Services,03-Jan-2013,215627-289393/INVMM34,550.00,MISS AMANDA MILLER.
Children and Young Peoples Services,CYPS - Local Authority,Third Party Payments,440031,Other Third Party Payments,03-Jan-2013,215593-PM18/12/2012-05/01/2013,546.93,REDACTED - PAYMENT TO INDIVIDUAL
Children and Young Peoples Services,CYPS - Local Authority,Supplies and Services,384199,Miscellaneous Expenses,03-Jan-2013,215585-057,510.00,ESH WINNING PRIMARY SCHOOL FUND.
Children and Young Peoples Services,Dedicated Schools Grant,Supplies and Services,338027,Services,03-Jan-2013,2537988-00045,"5,000.00",RPC OUTCOMES LTD.
Children and Young Peoples Services,Dedicated Schools Grant,Supplies and Services,304259,Equipment and Materials,03-Jan-2013,2537925-OP/I047146,"1,751.00",JAMES LECKEY DESIGN LTD.
Children and Young Peoples Services,Dedicated Schools Grant,Employees,080025,Agency Staff,03-Jan-2013,2537884-03546302,"1,100.00",CAPITA EDUCATION RESOURCING.
Children and Young Peoples Services,Dedicated Schools Grant,Employees,080025,Agency Staff,03-Jan-2013,2538012-777864,"1,015.00",TEACHING PERSONNEL LTD.
Children and Young Peoples Services,Dedicated Schools Grant,Employees,080025,Agency Staff,03-Jan-2013,2537884-03546303,975.00,CAPITA EDUCATION RESOURCING.
Children and Young Peoples Services,Dedicated Schools Grant,Employees,080025,Agency Staff,03-Jan-2013,2537941-16928,925.00,KEYSTAGE RECRUITMENT LTD.
Children and Young Peoples Services,Dedicated Schools Grant,Employees,080025,Agency Staff,03-Jan-2013,2537941-16976,925.00,KEYSTAGE RECRUITMENT LTD.
Children and Young Peoples Services,Dedicated Schools Grant,Employees,080025,Agency Staff,03-Jan-2013,2538012-777861,925.00,TEACHING PERSONNEL LTD.
Children and Young Peoples Services,Dedicated Schools Grant,Employees,080025,Agency Staff,03-Jan-2013,2538012-777859,820.00,TEACHING PERSONNEL LTD.
Children and Young Peoples Services,Dedicated Schools Grant,Transport,230007,Contract Hire,03-Jan-2013,2537873-BZ00033,795.00,BREZ`S TAXIS.
Children and Young Peoples Services,Dedicated Schools Grant,Transport,230007,Contract Hire,03-Jan-2013,2537852-34,780.00,ACE TAXIS..
Children and Young Peoples Services,Dedicated Schools Grant,Transport,230007,Contract Hire,03-Jan-2013,2537852-35,754.00,ACE TAXIS..
Children and Young Peoples Services,Dedicated Schools Grant,Employees,080025,Agency Staff,03-Jan-2013,2538012-777860,700.00,TEACHING PERSONNEL LTD.
Children and Young Peoples Services,Dedicated Schools Grant,Employees,080025,Agency Staff,03-Jan-2013,2538012-777862,625.00,TEACHING PERSONNEL LTD.
Children and Young Peoples Services,Dedicated Schools Grant,Employees,080025,Agency Staff,03-Jan-2013,2538012-777863,603.50,TEACHING PERSONNEL LTD.
Children and Young Peoples Services,Dedicated Schools Grant,Employees,080025,Agency Staff,03-Jan-2013,2538012-777866,600.00,TEACHING PERSONNEL LTD.
Children and Young Peoples Services,Dedicated Schools Grant,Transport,230007,Contract Hire,03-Jan-2013,215571-11/2012/3252,520.00,COLLINS TAXIS.
Children and Young Peoples Services,Dedicated Schools Grant,Transport,230007,Contract Hire,03-Jan-2013,2537860-297,510.00,AT TAXIS LTD.
Corporate Resources,Financing- Resources,Supplies and Services,338027,Services,03-Jan-2013,2537890-C/IC113664,"8,500.00",CIVICA UK LTD.
Corporate Resources,Financing- Resources,Supplies and Services,384199,Miscellaneous Expenses,03-Jan-2013,2538001-90328704,"5,950.00",STOCKPORT MBC.
Corporate Resources,Financing- Resources,Supplies and Services,384199,Miscellaneous Expenses,03-Jan-2013,2538001-30928703,"4,250.00",STOCKPORT MBC.
Corporate Resources,Financing- Resources,Supplies and Services,384199,Miscellaneous Expenses,03-Jan-2013,2538001-90328705,"4,250.00",STOCKPORT MBC.
Corporate Resources,Financing- Resources,Supplies and Services,364993,Grants to Voluntary Organisations,03-Jan-2013,215724-C,"1,600.00",ST MARYS JUNIOR FOOTBALL CLUB.
Corporate Resources,Financing- Resources,Supplies and Services,332047,"Printing, Stationery and Gen Off Exps",03-Jan-2013,2538004-5362472,994.00,SUPPLIES TEAM LTD.
Corporate Resources,Human Resources Total,Supplies and Services,338091,Services,03-Jan-2013,2538028-91175759,"4,975.00",UNIVERSITY OF NORTHUMBRIA.
Corporate Resources,ICT Services incl. Design and Print,Stock,926900,Stock in hand-Inventory system,03-Jan-2013,2538029-2314795,"16,125.00",VIGLEN LTD.
Corporate Resources,ICT Services incl. Design and Print,Supplies and Services,332029,"Printing, Stationery and Gen Off Exps",03-Jan-2013,2537978-588525,"6,535.00",POTTS PRINTERS LTD.
Corporate Resources,ICT Services incl. Design and Print,Supplies and Services,332029,"Printing, Stationery and Gen Off Exps",03-Jan-2013,2537983-9453,"2,235.00",RADECAL SIGNS GRAPHICS & ADVERTISING.
Corporate Resources,ICT Services incl. Design and Print,Debtors,930167,Debtor-Telephone Holding Account,03-Jan-2013,2537882-11620228,"1,483.25",CABLE & WIRELESS UK.
Corporate Resources,ICT Services incl. Design and Print,Debtors,930167,Debtor-Telephone Holding Account,03-Jan-2013,2537882-11633458,808.19,CABLE & WIRELESS UK.
Neighbourhood Services,Direct Services,Premises,145051,Cleaning and Domestic Supplies,03-Jan-2013,2537846-2012154,"14,042.40",A & E THOMPSON.
Neighbourhood Services,Direct Services,Third Party Payments,430100,Rendered by Private Contractors,03-Jan-2013,2537896-2955/SW1607,"6,920.00",COMPLETE CLADDING SYSTEMS LTD.
Neighbourhood Services,Direct Services,Stock,926900,Stock in hand-Inventory system,03-Jan-2013,2537859-918231451,"2,671.38",ARCO LTD.
Neighbourhood Services,Direct Services,Supplies and Services,304221,Equipment and Materials,03-Jan-2013,2537997-SI12007152,"1,800.00",SOLON SECURITY LTD.
Neighbourhood Services,Direct Services,Supplies and Services,304221,Equipment and Materials,03-Jan-2013,2537877-4037535,620.00,BROAG LTD.
Neighbourhood Services,Direct Services,Third Party Payments,430105,Rendered by Private Contractors,03-Jan-2013,2538002-047760,585.00,STONEGRAVE AGGREGATES LTD.
Neighbourhood Services,Direct Services,Stock,926900,Stock in hand-Inventory system,03-Jan-2013,2538036-78327560,581.76,WOLSELEY UK LTD.
Neighbourhood Services,Direct Services,Third Party Payments,430105,Rendered by Private Contractors,03-Jan-2013,2538002-047802,519.30,STONEGRAVE AGGREGATES LTD.
Neighbourhood Services,Direct Services,Transport,230005,Contract Hire,03-Jan-2013,2537879-NEW8096070,501.60,BURNT TREE GROUP LTD.
Neighbourhood Services,"Environment,Health & Consumer Protection",Supplies and Services,304259,Equipment and Materials,03-Jan-2013,215552-10-11074,524.03,ALNORTHUMBRIA VETERINARY PRACTICE LTD.
Neighbourhood Services,"Environment,Health & Consumer Protection",Supplies and Services,352001,Conference Expenses,03-Jan-2013,2537979-121204,500.00,PRICE MARRINER & ASSOCIATES LTD.
Neighbourhood Services,"Heritage, Culture & Libraries",Supplies and Services,324001,Provisions,03-Jan-2013,2537886-EW53406828,"1,650.78",CARLSBERG UK LTD.
Neighbourhood Services,"Heritage, Culture & Libraries",Supplies and Services,338047,Services,03-Jan-2013,215595-FI,833.33,REDACTED - PAYMENT TO INDIVIDUAL
Neighbourhood Services,"Heritage, Culture & Libraries",Premises,120037,Energy Costs,03-Jan-2013,2537883-23753570,760.73,CALOR GAS LTD.
Neighbourhood Services,"Heritage, Culture & Libraries",Supplies and Services,324117,Provisions,03-Jan-2013,215706-22/2905320,725.09,PALMER & HARVEY MCLANE LTD.
Neighbourhood Services,Projects and Business services,Supplies and Services,342053,Computers and Communications,03-Jan-2013,2538014-DCC/12/12/01,"1,620.00",TECHNOLOGY STORE LTD.
Neighbourhood Services,Sport & Leisure,Supplies and Services,384700,Miscellaneous Expenses,03-Jan-2013,2537970-57,"9,960.00",NOUVEAU FITNESS CIC.
Neighbourhood Services,Sport & Leisure,Premises,135005,Water Services,03-Jan-2013,2537969-210334670021038,"1,573.90",NORTHUMBRIAN WATER LTD.
Neighbourhood Services,Sport & Leisure,Supplies and Services,304259,Equipment and Materials,03-Jan-2013,2537976-59451395,"1,178.13",PHS GROUP PLC.
Neighbourhood Services,Sport & Leisure,Supplies and Services,384237,Miscellaneous Expenses,03-Jan-2013,215579-C,"1,000.00",DURHAM COUNTY PRESIDENTS AMERICAN FOOTBALL YOUTH TEAM CIC.
Neighbourhood Services,Sport & Leisure,Supplies and Services,384237,Miscellaneous Expenses,03-Jan-2013,215716-C,952.00,SACRISTON ST BEDE`S TABLE TENNIS CLUB.
Neighbourhood Services,Sport & Leisure,Supplies and Services,384237,Miscellaneous Expenses,03-Jan-2013,215714-C,500.00,ROSEBERRY GRANGE COMMUNITY GOLF CLUB.
Neighbourhood Services,Technical Services,Supplies and Services,304221,Equipment and Materials,03-Jan-2013,2537947-501323,"16,001.25",LIGHTING & ILLUMINATION TECHNOLOGY EXPERIENCE LTD.
Neighbourhood Services,Technical Services,Creditors,952024,Creditor-sub contractors retention,03-Jan-2013,2537942-12133,"8,611.91",KIELY BROS LTD.
Neighbourhood Services,Technical Services,Stock,926004,Stock,03-Jan-2013,2537892-90122493,"5,195.15",CLEVELAND POTASH LTD.
Neighbourhood Services,Technical Services,Stock,926004,Stock,03-Jan-2013,2537892-90122495,"1,341.27",CLEVELAND POTASH LTD.
Neighbourhood Services,Technical Services,Stock,926004,Stock,03-Jan-2013,2537892-90122494,"1,071.84",CLEVELAND POTASH LTD.
Neighbourhood Services,Technical Services,Supplies and Services,304221,Equipment and Materials,03-Jan-2013,2537996-25214639080,869.52,SIG FIXINGS.
Neighbourhood Services,Technical Services,Supplies and Services,304358,Equipment and Materials,03-Jan-2013,2537952-11249,763.00,MH LAVERICK & PARTNERS.
RED HRA,Housing Revenue Account,Supplies and Services,384170,Miscellaneous Expenses,03-Jan-2013,2538034-6/294356,"5,856.84",WILLIAMSONS PAINT & WALL COVERINGS (USE 43811).
RED HRA,Housing Revenue Account,Construction Work,908105,Construction work,03-Jan-2013,2537962-7213,865.00,NELSONS OF DURHAM.
RED HRA,Housing Revenue Account,Construction Work,908105,Construction work,03-Jan-2013,2537962-7217,665.00,NELSONS OF DURHAM.
RED HRA,HRA Capital,Construction Work,908105,Construction work,03-Jan-2013,2537977-158649,"9,449.53",PLUMBING TRADE SUPPLIES LTD.
RED HRA,HRA Capital,Construction Work,908105,Construction work,03-Jan-2013,2537903-159864,"9,033.56",DELTA ELECTRICAL & MECHANICAL SERVICES.
RED HRA,HRA Capital,Construction Work,908105,Construction work,03-Jan-2013,2537934-158642,"8,603.76",JOINERY & TIMBER CREATIONS (65) LTD.
RED HRA,HRA Capital,Construction Work,908105,Construction work,03-Jan-2013,2537934-158643,"4,824.57",JOINERY & TIMBER CREATIONS (65) LTD.
RED HRA,HRA Capital,Construction Work,908105,Construction work,03-Jan-2013,2537907-159862,"2,691.82",EDMUNDSON ELECTRICAL LTD.
RED HRA,HRA Capital,Construction Work,908105,Construction work,03-Jan-2013,215703-AS,"1,480.00",NORTHUMBRIAN WATER LTD.
RED HRA,HRA Capital,Construction Work,908105,Construction work,03-Jan-2013,2537953-CON59109,560.00,MIS ENVIRONMENTAL LTD.
RED HRA,HRA Control Codes,Debtors,930105,Debtor-tenants water account,03-Jan-2013,2537901-80001385,"77,769.09",DALE & VALLEY HOMES.
Regeneration & Economic Development,Economic Development and Housing,Construction Work,908105,Construction work,03-Jan-2013,2537885-5044-1-18,"33,000.00",CARILLION CONSTRUCTION LTD T/A CARILLION CIVIL ENGINEERING.
Regeneration & Economic Development,Economic Development and Housing,Cap Exp on Grants & Other Financial Assistance (REFCUS),918401,Capital grants,03-Jan-2013,215616-772,"5,018.30",LORMOR & HALL CONSTRUCTION.
Regeneration & Economic Development,Economic Development and Housing,Cap Exp on Grants & Other Financial Assistance (REFCUS),918401,Capital grants,03-Jan-2013,215742-2752,"1,036.70",WENTWORTH CONSTRUCTION (NE) LTD.
Regeneration & Economic Development,Economic Development and Housing,Cap Exp on Grants & Other Financial Assistance (REFCUS),918401,Capital grants,03-Jan-2013,215621-1255,700.00,REDACTED - PAYMENT TO INDIVIDUAL
Regeneration & Economic Development,Economic Development and Housing,Creditors,952029,Creditor-returnable bonds,03-Jan-2013,215717-R11DEC12,500.00,SAFEZONE INTERNATIONAL LTD.
Regeneration & Economic Development,"Spatial Policy, Planning, Assets & Environment",Supplies and Services,338026,Services,03-Jan-2013,2538016-AP44/12,"4,980.00",THE ARCHAEOLOGICAL PRACTICE LTD.
Regeneration & Economic Development,"Spatial Policy, Planning, Assets & Environment",Summary reporting level,720190,Fees and Charges,03-Jan-2013,215568-PF,"3,350.00",CLEVELAND HOUSING TRUST.
Regeneration & Economic Development,"Spatial Policy, Planning, Assets & Environment",Supplies and Services,384199,Miscellaneous Expenses,03-Jan-2013,2537956-12/23.,"1,200.00",MR NEIL DIMENT.
Regeneration & Economic Development,"Spatial Policy, Planning, Assets & Environment",Supplies and Services,384199,Miscellaneous Expenses,03-Jan-2013,215709-210812,600.00,PAUL MARTIN.
Regeneration & Economic Development,Strategy Programmes and Performance,Supplies and Services,384899,Miscellaneous Expenses,03-Jan-2013,2537906-NPD120/13,"1,308.36",DURHAM RURAL COMMUNITY COUNCIL LTD.
Regeneration & Economic Development,Transport,Supplies and Services,344033,Telephones,03-Jan-2013,2537876-VP07599470Q01301SB,"6,527.16",BRITISH TELECOMMUNICATIONS PLC.
Regeneration & Economic Development,Transport,Third Party Payments,440999,Other Third Party Payments,03-Jan-2013,2537905-1797-24,"1,666.67",DTA CONSULTING ENGINEERS.
Adults Wellbeing and Health,Financing-Adult Services,Creditors,952035,Creditor-housing benefit-eqpt,04-Jan-2013,2538071-111212WES,"2,978.69",BRIAN WOODWARD CARPETS.
Adults Wellbeing and Health,Financing-Adult Services,Creditors,952035,Creditor-housing benefit-eqpt,04-Jan-2013,2538131-08DEC2012,708.00,ELMOLINE LTD.
Adults Wellbeing and Health,Financing-Adult Services,Debtors,930170,CDDFT Winter Pressures Placements,04-Jan-2013,2538282-WK36-37-RB,502.22,SHERBURN HOUSE CHARITY.
Adults Wellbeing and Health,Head of Adults,Third Party Payments,472101,Purchase of Care,04-Jan-2013,2538109-511564,"3,780.89",COUNTY DURHAM PCT .
Adults Wellbeing and Health,Head of Adults,Supplies and Services,324117,Provisions,04-Jan-2013,2538198-M28622,"1,373.95",JR HOLLAND FOOD SERVICES LTD.
Adults Wellbeing and Health,Head of Adults,Premises,145023,Cleaning and Domestic Supplies,04-Jan-2013,2538158-08/353198,545.62,GREENHAM TRADING LTD.
Adults Wellbeing and Health,Planning and Performance,Supplies and Services,342053,Computers and Communications,04-Jan-2013,2538252-OP/1684599,512.35,PHOENIX SOFTWARE LTD.
Assistant Chief Executive,Partnerships & Community Engagement Div.,Transfer Payments,525030,Other,04-Jan-2013,2538129-12AB-OCTY009,"5,250.00",DURHAM EDUCATION & WATERSPORTS CENTRE.
Assistant Chief Executive,Partnerships & Community Engagement Div.,Supplies and Services,384086,Miscellaneous Expenses,04-Jan-2013,2538216-WTC,"3,672.00",MAD ALICE THEATRE CO LTD.
Children and Young Peoples Services,CYPS - Local Authority,Transport,235005,Public Transport,04-Jan-2013,2538153-30900,"1,066,320.00",GO GATESHEAD LTD.
Children and Young Peoples Services,CYPS - Local Authority,Transfer Payments,510026,School Children,04-Jan-2013,2538302-SF,"15,000.00",THE LAURELS CHILD CARE.
Children and Young Peoples Services,CYPS - Local Authority,Transport,230007,Contract Hire,04-Jan-2013,2538141-14952,"13,335.00",GARNETTS LTD (COACHES).
Children and Young Peoples Services,CYPS - Local Authority,Transport,230007,Contract Hire,04-Jan-2013,2538141-14950,"12,225.00",GARNETTS LTD (COACHES).
Children and Young Peoples Services,CYPS - Local Authority,Transport,230007,Contract Hire,04-Jan-2013,2538265-6410,"7,308.00",ROBERTS OF WINGATE.
Children and Young Peoples Services,CYPS - Local Authority,Transport,230007,Contract Hire,04-Jan-2013,2538141-14951,"5,805.00",GARNETTS LTD (COACHES).
Children and Young Peoples Services,CYPS - Local Authority,Transport,230007,Contract Hire,04-Jan-2013,2538102-C/7389,"4,049.55",COCHRANES T/A KELVIN TRAVEL.
Children and Young Peoples Services,CYPS - Local Authority,Transport,230007,Contract Hire,04-Jan-2013,2538095-43591,"3,720.00",CJ GRIERSON.
Children and Young Peoples Services,CYPS - Local Authority,Transport,230007,Contract Hire,04-Jan-2013,2538141-14954,"3,720.00",GARNETTS LTD (COACHES).
Children and Young Peoples Services,CYPS - Local Authority,Transport,230007,Contract Hire,04-Jan-2013,2538102-C/7391,"3,570.00",COCHRANES T/A KELVIN TRAVEL.
Children and Young Peoples Services,CYPS - Local Authority,Third Party Payments,425040,Rendered by Voluntary Organisations,04-Jan-2013,2538046-R31INV/00009518,"3,514.20",ACTION FOR CHILDREN.
Children and Young Peoples Services,CYPS - Local Authority,Transport,230007,Contract Hire,04-Jan-2013,2538095-43586,"3,360.00",CJ GRIERSON.
Children and Young Peoples Services,CYPS - Local Authority,Transport,230007,Contract Hire,04-Jan-2013,2538141-14948,"3,270.00",GARNETTS LTD (COACHES).
Children and Young Peoples Services,CYPS - Local Authority,Third Party Payments,425040,Rendered by Voluntary Organisations,04-Jan-2013,2538301-18097,"3,128.40",TEAM FOSTERING.
Children and Young Peoples Services,CYPS - Local Authority,Transport,230007,Contract Hire,04-Jan-2013,2538108-4003/12/12,"2,772.45",COUNTY COACHES.
Children and Young Peoples Services,CYPS - Local Authority,Transport,230007,Contract Hire,04-Jan-2013,2538141-14953,"2,685.00",GARNETTS LTD (COACHES).
Children and Young Peoples Services,CYPS - Local Authority,Transport,230007,Contract Hire,04-Jan-2013,2538141-14949,"2,460.00",GARNETTS LTD (COACHES).
Children and Young Peoples Services,CYPS - Local Authority,Transport,230005,Contract Hire,04-Jan-2013,2538265-6411,"2,453.10",ROBERTS OF WINGATE.
Children and Young Peoples Services,CYPS - Local Authority,Supplies and Services,338026,Services,04-Jan-2013,2538291-777,"2,174.38",STOCKTON & DISTRICT ADVICE & INFORMATION.
Children and Young Peoples Services,CYPS - Local Authority,Transport,230007,Contract Hire,04-Jan-2013,2538141-14947,"2,085.00",GARNETTS LTD (COACHES).
Children and Young Peoples Services,CYPS - Local Authority,Transport,230007,Contract Hire,04-Jan-2013,2538134-0524,"1,949.08",EN ROUTE TRAVEL.
Children and Young Peoples Services,CYPS - Local Authority,Transport,230007,Contract Hire,04-Jan-2013,2538227-WAL104-12,"1,888.20",MR CT WALKER T/A COLIN`S TAXIS.
Children and Young Peoples Services,CYPS - Local Authority,Transport,230007,Contract Hire,04-Jan-2013,2538102-C/7390,"1,800.00",COCHRANES T/A KELVIN TRAVEL.
Children and Young Peoples Services,CYPS - Local Authority,Transport,230007,Contract Hire,04-Jan-2013,2538061-354,"1,723.20",BEELINE MINI BUSES.
Children and Young Peoples Services,CYPS - Local Authority,Transport,230007,Contract Hire,04-Jan-2013,2538108-4021/12/12,"1,713.30",COUNTY COACHES.
Children and Young Peoples Services,CYPS - Local Authority,Transport,230007,Contract Hire,04-Jan-2013,2538091-CB019,"1,708.10",CHIPPERS TAXIS.
Children and Young Peoples Services,CYPS - Local Authority,Transport,230007,Contract Hire,04-Jan-2013,2538229-75,"1,687.56",MR GN ROBBINS T/A GNR MINIBUS HIRE.
Children and Young Peoples Services,CYPS - Local Authority,Transport,230007,Contract Hire,04-Jan-2013,2538095-43593,"1,635.00",CJ GRIERSON.
Children and Young Peoples Services,CYPS - Local Authority,Transport,230007,Contract Hire,04-Jan-2013,2538095-43592,"1,575.00",CJ GRIERSON.
Children and Young Peoples Services,CYPS - Local Authority,Transport,230007,Contract Hire,04-Jan-2013,2538091-MD009,"1,570.00",CHIPPERS TAXIS.
Children and Young Peoples Services,CYPS - Local Authority,Transport,230007,Contract Hire,04-Jan-2013,2538095-43587,"1,557.60",CJ GRIERSON.
Children and Young Peoples Services,CYPS - Local Authority,Transport,230007,Contract Hire,04-Jan-2013,2538162-HT28,"1,557.00",HARRY`S TAXI`S.
Children and Young Peoples Services,CYPS - Local Authority,Transport,230007,Contract Hire,04-Jan-2013,2538097-8/W008DEC2012,"1,555.20",CLARKS MINIBUSES & TAXIS.
Children and Young Peoples Services,CYPS - Local Authority,Transport,230007,Contract Hire,04-Jan-2013,2538099-580,"1,500.00",CLIVE HUBERY.
Children and Young Peoples Services,CYPS - Local Authority,Transport,230007,Contract Hire,04-Jan-2013,2538095-43589,"1,485.00",CJ GRIERSON.
Children and Young Peoples Services,CYPS - Local Authority,Transport,230007,Contract Hire,04-Jan-2013,2538152-W084/004,"1,482.00",GMC TAXIS NORTH EAST.
Children and Young Peoples Services,CYPS - Local Authority,Transport,230007,Contract Hire,04-Jan-2013,2538090-1037,"1,480.35",CHESTER ROAD TAXIS.
Children and Young Peoples Services,CYPS - Local Authority,Transport,230007,Contract Hire,04-Jan-2013,2538196-PH4,"1,440.00",JOVIAL PRIVATE HIRE.
Children and Young Peoples Services,CYPS - Local Authority,Transport,230007,Contract Hire,04-Jan-2013,2538201-S007004,"1,414.50",KEITH HAMMOND.
Children and Young Peoples Services,CYPS - Local Authority,Transport,230007,Contract Hire,04-Jan-2013,2538108-4026/12/12,"1,401.75",COUNTY COACHES.
Children and Young Peoples Services,CYPS - Local Authority,Transport,230007,Contract Hire,04-Jan-2013,2538103-E0351212,"1,365.00",COLIN FRANKS T/A FRANKS COACHES.
Children and Young Peoples Services,CYPS - Local Authority,Transport,230007,Contract Hire,04-Jan-2013,2538103-E042/12/12,"1,365.00",COLIN FRANKS T/A FRANKS COACHES.
Children and Young Peoples Services,CYPS - Local Authority,Transport,230007,Contract Hire,04-Jan-2013,2538056-DCCDEC6,"1,350.00",ATLAS TAXIS BISHOP AUCKLAND.
Children and Young Peoples Services,CYPS - Local Authority,Transport,230007,Contract Hire,04-Jan-2013,2538095-43588,"1,335.00",CJ GRIERSON.
Children and Young Peoples Services,CYPS - Local Authority,Transport,230007,Contract Hire,04-Jan-2013,2538187-205,"1,329.00",JDS PRIVATE HIRE DURHAM.
Children and Young Peoples Services,CYPS - Local Authority,Transport,230007,Contract Hire,04-Jan-2013,2538130-E014/1212,"1,301.02",ELLIOTTS OF TRIMDON.
Children and Young Peoples Services,CYPS - Local Authority,Transport,230007,Contract Hire,04-Jan-2013,2538171-IR1212012,"1,200.00",I & R EXECUTIVE TRAVEL.
Children and Young Peoples Services,CYPS - Local Authority,Transport,230007,Contract Hire,04-Jan-2013,2538227-WAL204-12,"1,200.00",MR CT WALKER T/A COLIN`S TAXIS.
Children and Young Peoples Services,CYPS - Local Authority,Transport,230007,Contract Hire,04-Jan-2013,2538134-0525,"1,190.00",EN ROUTE TRAVEL.
Children and Young Peoples Services,CYPS - Local Authority,Transport,230007,Contract Hire,04-Jan-2013,2538156-7950,"1,178.10",GREENCROFT MINI COACHES.
Children and Young Peoples Services,CYPS - Local Authority,Transport,230007,Contract Hire,04-Jan-2013,2538130-E009/1212,"1,174.66",ELLIOTTS OF TRIMDON.
Children and Young Peoples Services,CYPS - Local Authority,Transport,230007,Contract Hire,04-Jan-2013,2538061-353,"1,168.80",BEELINE MINI BUSES.
Children and Young Peoples Services,CYPS - Local Authority,Transport,230007,Contract Hire,04-Jan-2013,2538086-156,"1,155.00",CENTRAL TAXIS (PETERLEE) LTD.
Children and Young Peoples Services,CYPS - Local Authority,Transport,230007,Contract Hire,04-Jan-2013,2538191-2012/37,"1,131.00",JM HUMBLE COACH HIRE.
Children and Young Peoples Services,CYPS - Local Authority,Transport,230007,Contract Hire,04-Jan-2013,2538195-33,"1,125.00",JOHNS TAXIS (CHESTER LE STREET).
Children and Young Peoples Services,CYPS - Local Authority,Transport,230007,Contract Hire,04-Jan-2013,2538237-12-31/12/12,"1,098.45",N FORBES.
Children and Young Peoples Services,CYPS - Local Authority,Transport,230007,Contract Hire,04-Jan-2013,2538086-154,"1,080.00",CENTRAL TAXIS (PETERLEE) LTD.
Children and Young Peoples Services,CYPS - Local Authority,Transport,230007,Contract Hire,04-Jan-2013,2538171-IR1212011,"1,080.00",I & R EXECUTIVE TRAVEL.
Children and Young Peoples Services,CYPS - Local Authority,Transport,230007,Contract Hire,04-Jan-2013,2538156-7949,"1,066.65",GREENCROFT MINI COACHES.
Children and Young Peoples Services,CYPS - Local Authority,Transport,230007,Contract Hire,04-Jan-2013,2538187-208,"1,059.00",JDS PRIVATE HIRE DURHAM.
Children and Young Peoples Services,CYPS - Local Authority,Transport,230007,Contract Hire,04-Jan-2013,2538152-W082/004,"1,050.00",GMC TAXIS NORTH EAST.
Children and Young Peoples Services,CYPS - Local Authority,Transport,230007,Contract Hire,04-Jan-2013,2538183-6,"1,035.00",JACK`S TAXIS.
Children and Young Peoples Services,CYPS - Local Authority,Transport,230007,Contract Hire,04-Jan-2013,2538187-203,"1,020.00",JDS PRIVATE HIRE DURHAM.
Children and Young Peoples Services,CYPS - Local Authority,Supplies and Services,340001,Postages,04-Jan-2013,2538242-A269473-DEC12,"1,000.00",NEOPOST LTD CREDIFON RCB ACCOUNT.
Children and Young Peoples Services,CYPS - Local Authority,Transport,230007,Contract Hire,04-Jan-2013,2538095-43585,980.00,CJ GRIERSON.
Children and Young Peoples Services,CYPS - Local Authority,Transport,230007,Contract Hire,04-Jan-2013,2538083-61,975.00,CASTLE CARS.
Children and Young Peoples Services,CYPS - Local Authority,Transport,230007,Contract Hire,04-Jan-2013,2538164-4,935.00,HENRYS TAXIS.
Children and Young Peoples Services,CYPS - Local Authority,Third Party Payments,425040,Rendered by Voluntary Organisations,04-Jan-2013,2538296-122475,901.00,SWIIS FOSTER CARE LTD.
Children and Young Peoples Services,CYPS - Local Authority,Transport,230007,Contract Hire,04-Jan-2013,2538049-027AT,900.00,AMBER TRAVEL.
Children and Young Peoples Services,CYPS - Local Authority,Transport,230007,Contract Hire,04-Jan-2013,2538056-DCCDEC2,900.00,ATLAS TAXIS BISHOP AUCKLAND.
Children and Young Peoples Services,CYPS - Local Authority,Transport,230007,Contract Hire,04-Jan-2013,2538226-E054CDEC12,900.00,MR CHRISTOPHER BRECHIN T/A CB TAXI`S.
Children and Young Peoples Services,CYPS - Local Authority,Transport,230007,Contract Hire,04-Jan-2013,2538237-15,900.00,N FORBES.
Children and Young Peoples Services,CYPS - Local Authority,Transport,230007,Contract Hire,04-Jan-2013,2538145-750,856.65,GEM TRAVEL.
Children and Young Peoples Services,CYPS - Local Authority,Transport,230007,Contract Hire,04-Jan-2013,2538091-KJ004,840.00,CHIPPERS TAXIS.
Children and Young Peoples Services,CYPS - Local Authority,Transport,230007,Contract Hire,04-Jan-2013,2538237-14-31/12/12,840.00,N FORBES.
Children and Young Peoples Services,CYPS - Local Authority,Transport,230007,Contract Hire,04-Jan-2013,2538114-16,837.50,D CROOK.
Children and Young Peoples Services,CYPS - Local Authority,Transport,230007,Contract Hire,04-Jan-2013,2538162-HT27,813.00,HARRY`S TAXI`S.
Children and Young Peoples Services,CYPS - Local Authority,Transport,230007,Contract Hire,04-Jan-2013,2538086-153,810.00,CENTRAL TAXIS (PETERLEE) LTD.
Children and Young Peoples Services,CYPS - Local Authority,Transport,230007,Contract Hire,04-Jan-2013,2538187-204,780.00,JDS PRIVATE HIRE DURHAM.
Children and Young Peoples Services,CYPS - Local Authority,Transport,230007,Contract Hire,04-Jan-2013,2538049-028AT,756.00,AMBER TRAVEL.
Children and Young Peoples Services,CYPS - Local Authority,Transport,230007,Contract Hire,04-Jan-2013,2538147-121039,750.00,GEORDIES TAXIS.
Children and Young Peoples Services,CYPS - Local Authority,Transport,230007,Contract Hire,04-Jan-2013,2538233-2701,750.00,MR S BOWERS.
Children and Young Peoples Services,CYPS - Local Authority,Transport,230007,Contract Hire,04-Jan-2013,2538086-155,700.00,CENTRAL TAXIS (PETERLEE) LTD.
Children and Young Peoples Services,CYPS - Local Authority,Transport,230007,Contract Hire,04-Jan-2013,2538229-76,630.00,MR GN ROBBINS T/A GNR MINIBUS HIRE.
Children and Young Peoples Services,CYPS - Local Authority,Third Party Payments,430105,Rendered by Private Contractors,04-Jan-2013,2538253-4250527,583.40,PHS GROUP PLC.
Children and Young Peoples Services,CYPS - Local Authority,Transport,230007,Contract Hire,04-Jan-2013,2538270-62-65,576.00,S N J TAXIS.
Children and Young Peoples Services,CYPS - Local Authority,Transport,230007,Contract Hire,04-Jan-2013,2538136-3-21/12/2012,575.00,FINLEY`S TAXIS.
Children and Young Peoples Services,CYPS - Local Authority,Transport,230007,Contract Hire,04-Jan-2013,2538142-CA004,574.00,GARY JACKSON PRIVATE HIRE.
Children and Young Peoples Services,CYPS - Local Authority,Transport,230007,Contract Hire,04-Jan-2013,2538193-11,565.50,JOHN RIDLEY.
Children and Young Peoples Services,CYPS - Local Authority,Transport,230007,Contract Hire,04-Jan-2013,2538130-5075/1212,562.50,ELLIOTTS OF TRIMDON.
Children and Young Peoples Services,CYPS - Local Authority,Transport,230007,Contract Hire,04-Jan-2013,2538237-16,540.00,N FORBES.
Children and Young Peoples Services,CYPS - Local Authority,Transport,230007,Contract Hire,04-Jan-2013,2538232-91,532.00,MR PETER YOUNG.
Children and Young Peoples Services,CYPS - Local Authority,Transport,230007,Contract Hire,04-Jan-2013,2538228-25,504.00,MR DAVID CULLEN.
Children and Young Peoples Services,CYPS - Local Authority,Supplies and Services,332047,"Printing, Stationery and Gen Off Exps",04-Jan-2013,2538320-495947294,501.08,YORKSHIRE PURCHASING ORGANISATION.
Children and Young Peoples Services,Dedicated Schools Grant,Third Party Payments,425005,Rendered by Voluntary Organisations,04-Jan-2013,2538069-700,"20,597.00",BRECKENBROUGH SCHOOL.
Children and Young Peoples Services,Dedicated Schools Grant,Third Party Payments,425005,Rendered by Voluntary Organisations,04-Jan-2013,2538069-711,"17,802.00",BRECKENBROUGH SCHOOL.
Children and Young Peoples Services,Dedicated Schools Grant,Third Party Payments,425005,Rendered by Voluntary Organisations,04-Jan-2013,2538069-713,"17,802.00",BRECKENBROUGH SCHOOL.
Children and Young Peoples Services,Dedicated Schools Grant,Third Party Payments,425005,Rendered by Voluntary Organisations,04-Jan-2013,2538069-737,"5,433.00",BRECKENBROUGH SCHOOL.
Children and Young Peoples Services,Dedicated Schools Grant,Transport,230007,Contract Hire,04-Jan-2013,2538232-90,"1,350.00",MR PETER YOUNG.
Children and Young Peoples Services,Dedicated Schools Grant,Transport,230007,Contract Hire,04-Jan-2013,2538111-LO10/DEC/12,"1,320.00",CRAIG`S CABS.
Children and Young Peoples Services,Dedicated Schools Grant,Transport,230007,Contract Hire,04-Jan-2013,2538048-0247,"1,317.50",AJS PRIVATE HIRE.
Children and Young Peoples Services,Dedicated Schools Grant,Transport,230007,Contract Hire,04-Jan-2013,2538090-1038,"1,200.00",CHESTER ROAD TAXIS.
Children and Young Peoples Services,Dedicated Schools Grant,Transport,230007,Contract Hire,04-Jan-2013,2538184-L008D,"1,020.00",JAFFAS TAXIS.
Children and Young Peoples Services,Dedicated Schools Grant,Transport,230007,Contract Hire,04-Jan-2013,2538133-9058/DEC/12,810.00,EMMA`S CABS.
Children and Young Peoples Services,Dedicated Schools Grant,Employees,080025,Agency Staff,04-Jan-2013,2538300-764596,603.50,TEACHING PERSONNEL LTD.
Children and Young Peoples Services,Dedicated Schools Grant,Transport,230007,Contract Hire,04-Jan-2013,2538191-2012/36,573.00,JM HUMBLE COACH HIRE.
Corporate Resources,Financing- Resources,Intangible Assets,917003,Software capitalised implementation fees,04-Jan-2013,2538064-101163,"83,875.00",BEYOND SYSTEMS.
Corporate Resources,Financing- Resources,Supplies and Services,384199,Miscellaneous Expenses,04-Jan-2013,2538257-QIL1341,"30,276.40",QUBIX INTERNATIONAL LTD.
Corporate Resources,Financing- Resources,Supplies and Services,384199,Miscellaneous Expenses,04-Jan-2013,2538257-QIL1389,"23,416.05",QUBIX INTERNATIONAL LTD.
Corporate Resources,Financing- Resources,Supplies and Services,384199,Miscellaneous Expenses,04-Jan-2013,2538208-83932,"8,243.20",LIBERATA UK LTD.
Corporate Resources,Financing- Resources,Supplies and Services,338099,Services,04-Jan-2013,2538199-7740,"3,845.67",KAIZEN CONSULTANTS.
Corporate Resources,Financing- Resources,Supplies and Services,338099,Services,04-Jan-2013,2538199-7741,"1,138.37",KAIZEN CONSULTANTS.
Corporate Resources,ICT Services incl. Design and Print,Supplies and Services,342215,Computers and Communications,04-Jan-2013,2538200-35801,"1,195.00",KBR IT & NETWORKING SOLUTIONS.
Corporate Resources,ICT Services incl. Design and Print,Stock,926900,Stock in hand-Inventory system,04-Jan-2013,2538176-1121391,940.00,INSIGHT DIRECT (UK) LTD.
Corporate Resources,ICT Services incl. Design and Print,Supplies and Services,304303,Equipment and Materials,04-Jan-2013,2538176-1114183,558.31,INSIGHT DIRECT (UK) LTD.
Corporate Resources,ICT Services incl. Design and Print,Supplies and Services,304639,Equipment and Materials,04-Jan-2013,2538110-1452520,519.81,CPC.
Corporate Resources,Legal & Democratic Services,Supplies and Services,338057,Services,04-Jan-2013,2538244-R0196431,"1,680.00",NEWCASTLE UPON TYNE HOSPITALS NHS FOUNDATION TRUST.
Corporate Resources,Legal & Democratic Services,Supplies and Services,338025,Services,04-Jan-2013,2538122-13AUG2012,570.00,DERWENTSIDE FUNERAL SERVICE.
Corporate Resources,Legal & Democratic Services,Supplies and Services,338025,Services,04-Jan-2013,2538101-S44997-00432,510.00,CO-OPERATIVE FUNERAL CARE.
Neighbourhood Services,Direct Services,Stock,926004,Stock,04-Jan-2013,2538143-8805275,"15,650.30",GB OILS T/A BRETT FUELS.
Neighbourhood Services,Direct Services,Third Party Payments,430100,Rendered by Private Contractors,04-Jan-2013,2538322-26711,"11,999.28",YWC GROUP LTD.
Neighbourhood Services,Direct Services,Stock,926900,Stock in hand-Inventory system,04-Jan-2013,2538285-179840,"7,617.92",SNAPFAST.
Neighbourhood Services,Direct Services,Supplies and Services,304617,Equipment and Materials,04-Jan-2013,2538305-N/IN88915,"6,265.70",THOMAS OWEN & SONS (NEWCASTLE) LTD.
Neighbourhood Services,Direct Services,Stock,926900,Stock in hand-Inventory system,04-Jan-2013,2538285-179828,"5,532.48",SNAPFAST.
Neighbourhood Services,Direct Services,Stock,926900,Stock in hand-Inventory system,04-Jan-2013,2538280-22085,"4,048.00",SG BAKER LTD.
Neighbourhood Services,Direct Services,Supplies and Services,304221,Equipment and Materials,04-Jan-2013,2538299-JE00225/TL/EP,"2,937.24",T MANNERS & SONS LTD.
Neighbourhood Services,Direct Services,Supplies and Services,304259,Equipment and Materials,04-Jan-2013,2538100-MS,"2,875.00",CNK LANDSCAPING LTD.
Neighbourhood Services,Direct Services,Stock,926004,Stock,04-Jan-2013,2538143-8805283,"2,256.39",GB OILS T/A BRETT FUELS.
Neighbourhood Services,Direct Services,Supplies and Services,304999,Equipment and Materials,04-Jan-2013,2538312-15041,"2,240.00",UK CONTAINER MAINTENANCE LTD.
Neighbourhood Services,Direct Services,Supplies and Services,304221,Equipment and Materials,04-Jan-2013,2538140-47715,"1,563.85",GAFFEY TECHNICAL SERVICES LTD.
Neighbourhood Services,Direct Services,Supplies and Services,304221,Equipment and Materials,04-Jan-2013,2538310-28190,"1,563.00",TOTAL PUMP SOLUTIONS LTD.
Neighbourhood Services,Direct Services,Stock,926900,Stock in hand-Inventory system,04-Jan-2013,2538177-394993,"1,453.20",INSTARMAC GROUP PLC.
Neighbourhood Services,Direct Services,Stock,926004,Stock,04-Jan-2013,2538082-271265,"1,238.16",CARRS BILLINGTON AGRICULTURE.
Neighbourhood Services,Direct Services,Third Party Payments,430100,Rendered by Private Contractors,04-Jan-2013,2538322-26697,"1,121.88",YWC GROUP LTD.
Neighbourhood Services,Direct Services,Stock,926900,Stock in hand-Inventory system,04-Jan-2013,2538053-918225418,"1,088.34",ARCO LTD.
Neighbourhood Services,Direct Services,Premises,106099,Centrally Controlled Rep and Maint,04-Jan-2013,2538047-22606712-61,978.87,ADT FIRE & SECURITY PLC.
Neighbourhood Services,Direct Services,Third Party Payments,430100,Rendered by Private Contractors,04-Jan-2013,2538146-336406,931.09,GEMCO SERVICE LTD.
Neighbourhood Services,Direct Services,Supplies and Services,304221,Equipment and Materials,04-Jan-2013,2538203-670549466,872.54,KONE PLC.
Neighbourhood Services,Direct Services,Stock,926004,Stock,04-Jan-2013,2538139-216121133,768.14,FUCHS LUBRICANTS (UK) PLC.
Neighbourhood Services,Direct Services,Transport,210057,Repair and Maintenance of Vehicles,04-Jan-2013,2538121-DE10677852,658.41,DENNIS EAGLE LTD.
Neighbourhood Services,Direct Services,Stock,926900,Stock in hand-Inventory system,04-Jan-2013,2538138-OP/1265575,626.10,FLEMING & CO (MACHINERY) LTD.
Neighbourhood Services,Direct Services,Stock,926900,Stock in hand-Inventory system,04-Jan-2013,2538066-105439,594.00,BLUE DIAMOND STL.
Neighbourhood Services,Direct Services,Supplies and Services,304259,Equipment and Materials,04-Jan-2013,2538181-57608,564.00,J VAN VLIET GATESHEAD LTD.
Neighbourhood Services,Direct Services,Supplies and Services,304221,Equipment and Materials,04-Jan-2013,2538168-B33/0049537,526.80,HOWDEN JOINERY LTD.
Neighbourhood Services,Direct Services,Stock,926900,Stock in hand-Inventory system,04-Jan-2013,2538053-918287367,519.31,ARCO LTD.
Neighbourhood Services,Direct Services,Third Party Payments,430100,Rendered by Private Contractors,04-Jan-2013,2538322-26685,518.73,YWC GROUP LTD.
Neighbourhood Services,Direct Services,Supplies and Services,304221,Equipment and Materials,04-Jan-2013,2538168-B33/0049484,514.80,HOWDEN JOINERY LTD.
Neighbourhood Services,"Environment,Health & Consumer Protection",Employees,040149,"Recruitment, Instruction and Training",04-Jan-2013,2538169-305,900.00,HSF TRAINING LTD.
Neighbourhood Services,Neighbourhood central costs,Debtors,930017,Debtor-gas contract holding account,04-Jan-2013,2538107-NOVEMBER2012,"549,086.05",CORONA ENERGY RETAIL 2 LTD.
Neighbourhood Services,Sport & Leisure,Construction Work,908109,Capital - Resurfacing,04-Jan-2013,2538157-INV000165,"22,880.87",GREENFIELDS (SPORTS SURFACES) UK.
Neighbourhood Services,Sport & Leisure,Construction Work,908105,Construction work,04-Jan-2013,2538125-9100628429,"3,808.54",DORMA UK LTD.
Neighbourhood Services,Sport & Leisure,Supplies and Services,328041,"Clothing, Uniforms and Laundry",04-Jan-2013,2538311-95520,561.00,TROJAN@WORK LTD.
Neighbourhood Services,Technical Services,Creditors,952024,Creditor-sub contractors retention,04-Jan-2013,2538202-12134,"30,811.17",KIELY BROS LTD.
Neighbourhood Services,Technical Services,Stock,926004,Stock,04-Jan-2013,2538098-90122448,"5,735.12",CLEVELAND POTASH LTD.
Neighbourhood Services,Technical Services,Stock,926004,Stock,04-Jan-2013,2538098-90122447,"4,257.22",CLEVELAND POTASH LTD.
Neighbourhood Services,Technical Services,Supplies and Services,304221,Equipment and Materials,04-Jan-2013,2538313-301519,"2,834.00",VULCAN CLADDING SYSTEMS.
Neighbourhood Services,Technical Services,Supplies and Services,304221,Equipment and Materials,04-Jan-2013,2538188-3307/0308933,"2,827.50",JEWSON LTD.
Neighbourhood Services,Technical Services,Third Party Payments,430100,Rendered by Private Contractors,04-Jan-2013,2538254-122214,"2,684.48",PREMIER TRAFFIC MANAGEMENT LTD.
Neighbourhood Services,Technical Services,Supplies and Services,304221,Equipment and Materials,04-Jan-2013,2538313-301497,"2,652.00",VULCAN CLADDING SYSTEMS.
Neighbourhood Services,Technical Services,Third Party Payments,460350,Contract Payments,04-Jan-2013,2538116-389,"1,993.50",DAVID HOPPS.
Neighbourhood Services,Technical Services,Supplies and Services,304221,Equipment and Materials,04-Jan-2013,2538313-301520,"1,815.00",VULCAN CLADDING SYSTEMS.
Neighbourhood Services,Technical Services,Third Party Payments,460350,Contract Payments,04-Jan-2013,2538173-1994,"1,798.50",IAN C LIDDLE.
Neighbourhood Services,Technical Services,Supplies and Services,304221,Equipment and Materials,04-Jan-2013,2538041-LLI267256,"1,717.80",A THOMPSON & SONS LTD.
Neighbourhood Services,Technical Services,Supplies and Services,304221,Equipment and Materials,04-Jan-2013,2538313-301518,"1,575.30",VULCAN CLADDING SYSTEMS.
Neighbourhood Services,Technical Services,Supplies and Services,304358,Equipment and Materials,04-Jan-2013,2538194-0000077578,"1,125.00",JOHN WADE (HAULAGE) LTD.
Neighbourhood Services,Technical Services,Supplies and Services,304221,Equipment and Materials,04-Jan-2013,2538040-001363,924.50,A HILL & SONS LTD.
Neighbourhood Services,Technical Services,Supplies and Services,304358,Equipment and Materials,04-Jan-2013,2538194-0000077577,866.25,JOHN WADE (HAULAGE) LTD.
Neighbourhood Services,Technical Services,Third Party Payments,460151,Contract Payments,04-Jan-2013,2538177-394994,735.28,INSTARMAC GROUP PLC.
Neighbourhood Services,Technical Services,Supplies and Services,304260,Equipment and Materials,04-Jan-2013,2538143-8724450,664.66,GB OILS T/A BRETT FUELS.
Neighbourhood Services,Technical Services,Supplies and Services,304260,Equipment and Materials,04-Jan-2013,2538143-8624771,663.10,GB OILS T/A BRETT FUELS.
Neighbourhood Services,Technical Services,Supplies and Services,304260,Equipment and Materials,04-Jan-2013,2538143-8665042,661.20,GB OILS T/A BRETT FUELS.
Neighbourhood Services,Technical Services,Stock,926004,Stock,04-Jan-2013,2538098-90122613,524.89,CLEVELAND POTASH LTD.
RED HRA,HRA Capital,Construction Work,908105,Construction work,04-Jan-2013,2538322-26707,"6,490.95",YWC GROUP LTD.
RED HRA,HRA Capital,Construction Work,908105,Construction work,04-Jan-2013,2538322-26710,"2,161.38",YWC GROUP LTD.
Regeneration & Economic Development,Economic Development and Housing,Construction Work,908105,Construction work,04-Jan-2013,2538059-V22,"368,339.04",BALFOUR BEATTY CIVIL ENGINEERING LTD.
Regeneration & Economic Development,Economic Development and Housing,Construction Work,908105,Construction work,04-Jan-2013,2538219-21355,"20,755.56",MGM LTD.
Regeneration & Economic Development,Economic Development and Housing,Construction Work,908105,Construction work,04-Jan-2013,2538204-INV00197331,"2,975.00",LANES GROUP PLC.
Regeneration & Economic Development,Economic Development and Housing,Construction Work,908105,Construction work,04-Jan-2013,2538204-INV00196403,"2,175.00",LANES GROUP PLC.
Regeneration & Economic Development,Economic Development and Housing,Fees,901002,Professional Fees,04-Jan-2013,2538293-NE120491-8,"2,000.00",SUMMERS INMAN.
Regeneration & Economic Development,Economic Development and Housing,Fees,901001,Internal fees,04-Jan-2013,2538307-SITRH/0004978,"1,647.07",THREE RIVERS HOUSING ASSOCIATION LTD.
Regeneration & Economic Development,Economic Development and Housing,Premises,106099,Centrally Controlled Rep and Maint,04-Jan-2013,2538047-22369966-61,"1,144.00",ADT FIRE & SECURITY PLC.
Regeneration & Economic Development,Economic Development and Housing,Fees,901002,Professional Fees,04-Jan-2013,2538323-INV-2217,"1,075.00",ZINE DESIGN LTD.
Regeneration & Economic Development,Economic Development and Housing,Premises,106099,Centrally Controlled Rep and Maint,04-Jan-2013,2538047-22619811-61,714.00,ADT FIRE & SECURITY PLC.
Regeneration & Economic Development,Economic Development and Housing,Supplies and Services,324117,Provisions,04-Jan-2013,2538038-36256446,663.11,3663.
Regeneration & Economic Development,Economic Development and Housing,Fees,901001,Internal fees,04-Jan-2013,2538307-SITRH/0004979,563.87,THREE RIVERS HOUSING ASSOCIATION LTD.
Regeneration & Economic Development,Economic Development and Housing,Premises,106099,Centrally Controlled Rep and Maint,04-Jan-2013,2538047-22370774-61,525.42,ADT FIRE & SECURITY PLC.
Regeneration & Economic Development,Economic Development and Housing,Fees,901001,Internal fees,04-Jan-2013,2538307-SITRH/0004982,524.80,THREE RIVERS HOUSING ASSOCIATION LTD.
Regeneration & Economic Development,"Spatial Policy, Planning, Assets & Environment",Premises,125009,Rents,04-Jan-2013,2538284-1120-248416,"43,303.25",SMITHS GORE.
Regeneration & Economic Development,"Spatial Policy, Planning, Assets & Environment",Premises,125009,Rents,04-Jan-2013,2538274-12120,"6,250.00",SALFORD ESTATES (NO 2) LTD.
Regeneration & Economic Development,"Spatial Policy, Planning, Assets & Environment",Premises,106099,Centrally Controlled Rep and Maint,04-Jan-2013,2538289-3484,"1,855.00",ST ASTIER LTD.
Regeneration & Economic Development,"Spatial Policy, Planning, Assets & Environment",Premises,120021,Energy Costs,04-Jan-2013,2538072-161256723,919.12,BRITISH GAS BUSINESS.
Regeneration & Economic Development,"Spatial Policy, Planning, Assets & Environment",Premises,125009,Rents,04-Jan-2013,2538274-12121,710.34,SALFORD ESTATES (NO 2) LTD.
Regeneration & Economic Development,Transport,Supplies and Services,304259,Equipment and Materials,04-Jan-2013,2538178-164989,"2,604.00",INTECHNOLOGY PLC T/A INHEALTHCARE.
Regeneration & Economic Development,Transport,Supplies and Services,336005,Advertising,04-Jan-2013,2538218-39826,921.00,MERCHANDISE MANIA LTD.
Adults Wellbeing and Health,Commissioning inc Supporting People,Third Party Payments,479101,Purchase of Care,07-Jan-2013,2539597-1300055D,500.00,REDACTED - PAYMENT TO INDIVIDUAL
Adults Wellbeing and Health,Financing-Adult Services,Debtors,930024,Debtor-free nursing care,07-Jan-2013,2538735-2073875,"3,695.80",ALLIANCE CARE.
Adults Wellbeing and Health,Financing-Adult Services,Debtors,930024,Debtor-free nursing care,07-Jan-2013,2539653-2073948,"2,934.90",MARIA MALLABAND NURSING HOMES LTD.
Adults Wellbeing and Health,Financing-Adult Services,Debtors,930024,Debtor-free nursing care,07-Jan-2013,2538331-2074203,"1,692.61",A CHARLES THOMAS (CARE) LTD.
Adults Wellbeing and Health,Financing-Adult Services,Debtors,930024,Debtor-free nursing care,07-Jan-2013,2539111-2071261,"1,630.50",DONWELL HOUSE DAY CENTRE.
Adults Wellbeing and Health,Financing-Adult Services,Debtors,930024,Debtor-free nursing care,07-Jan-2013,2540195-2072947,"1,583.91",ST HELENS NURSING HOME.
Adults Wellbeing and Health,Financing-Adult Services,Debtors,930024,Debtor-free nursing care,07-Jan-2013,2539293-2073858,"1,506.27",GUARDIAN CARE HOMES (WEST) LTD.
Adults Wellbeing and Health,Financing-Adult Services,Debtors,930024,Debtor-free nursing care,07-Jan-2013,2538331-2074166,"1,397.57",A CHARLES THOMAS (CARE) LTD.
Adults Wellbeing and Health,Financing-Adult Services,Debtors,930024,Debtor-free nursing care,07-Jan-2013,2539590-2074342,"1,273.34",LINDISFARNE.
Adults Wellbeing and Health,Financing-Adult Services,Debtors,930024,Debtor-free nursing care,07-Jan-2013,2540050-2074116,962.77,REDWORTH HOUSE.
Adults Wellbeing and Health,Financing-Adult Services,Debtors,930024,Debtor-free nursing care,07-Jan-2013,2540050-2074151,760.90,REDWORTH HOUSE.
Adults Wellbeing and Health,Financing-Adult Services,Debtors,930024,Debtor-free nursing care,07-Jan-2013,2540060-2073974,698.78,RICHMOND COURT.
Adults Wellbeing and Health,Financing-Adult Services,Debtors,930024,Debtor-free nursing care,07-Jan-2013,2540195-2073836,683.26,ST HELENS NURSING HOME.
Adults Wellbeing and Health,Financing-Adult Services,Debtors,930024,Debtor-free nursing care,07-Jan-2013,2540018-2074276,652.20,PREMIER CARE HOMES LTD.
Adults Wellbeing and Health,Financing-Adult Services,Debtors,930024,Debtor-free nursing care,07-Jan-2013,2538853-2072166,598.40,BENFIELD HALL.
Adults Wellbeing and Health,Financing-Adult Services,Debtors,930024,Debtor-free nursing care,07-Jan-2013,2539533-2072140,598.40,KIMBLESWORTH NURSING HOME.
Adults Wellbeing and Health,Financing-Adult Services,Debtors,930024,Debtor-free nursing care,07-Jan-2013,2540040-2071952,598.40,RAYSON HOMES LTD.
Adults Wellbeing and Health,Financing-Adult Services,Debtors,930024,Debtor-free nursing care,07-Jan-2013,2540250-2071103,598.40,TAMARIS HEALTHCARE LTD.
Adults Wellbeing and Health,Financing-Adult Services,Debtors,930024,Debtor-free nursing care,07-Jan-2013,2540254-2071434,598.40,TAMARIS HEALTHCARE LTD.
Adults Wellbeing and Health,Financing-Adult Services,Debtors,930024,Debtor-free nursing care,07-Jan-2013,2540255-2071295,598.40,TAMARIS HEALTHCARE LTD.
Adults Wellbeing and Health,Financing-Adult Services,Debtors,930024,Debtor-free nursing care,07-Jan-2013,2540255-2071297,598.40,TAMARIS HEALTHCARE LTD.
Adults Wellbeing and Health,Financing-Adult Services,Debtors,930024,Debtor-free nursing care,07-Jan-2013,2539254-2074039,521.76,GAINFORD CARE HOMES LTD.
Adults Wellbeing and Health,Head of Adults,Third Party Payments,478101,Purchase of Care,07-Jan-2013,2539027-1296070H,"42,261.12",CREATIVE SUPPORT LTD.
Adults Wellbeing and Health,Head of Adults,Third Party Payments,478101,Purchase of Care,07-Jan-2013,2539005-1300330H,"33,752.00",COMMUNITY INTEGRATED CARE LTD.
Adults Wellbeing and Health,Head of Adults,Third Party Payments,471101,Purchase of Care,07-Jan-2013,2539611-2073506,"28,129.85",LUMLEY COURT.
Adults Wellbeing and Health,Head of Adults,Third Party Payments,470101,Purchase of Care,07-Jan-2013,2538817-2072290,"19,607.32",AUTISM NORTH.
Adults Wellbeing and Health,Head of Adults,Third Party Payments,474101,Purchase of Care,07-Jan-2013,2538735-2073874,"16,952.78",ALLIANCE CARE.
Adults Wellbeing and Health,Head of Adults,Third Party Payments,470101,Purchase of Care,07-Jan-2013,2539085-2074198,"15,454.89",DEFOE COURT.
Adults Wellbeing and Health,Head of Adults,Third Party Payments,478101,Purchase of Care,07-Jan-2013,2539935-1294790H,"14,761.60",OAKLEA TRUST.
Adults Wellbeing and Health,Head of Adults,Third Party Payments,478101,Purchase of Care,07-Jan-2013,2540044-1295012H,"14,651.08",REAL LIFE OPTIONS.
Adults Wellbeing and Health,Head of Adults,Third Party Payments,478101,Purchase of Care,07-Jan-2013,2540193-1293414H,"14,236.32",ST ANNES COMMUNITY SERVICES.
Adults Wellbeing and Health,Head of Adults,Third Party Payments,478101,Purchase of Care,07-Jan-2013,2539324-1294485H,"13,502.16",HIGHLEA CARE LTD.
Adults Wellbeing and Health,Head of Adults,Third Party Payments,478101,Purchase of Care,07-Jan-2013,2539027-1294863H,"12,299.40",CREATIVE SUPPORT LTD.
Adults Wellbeing and Health,Head of Adults,Third Party Payments,478101,Purchase of Care,07-Jan-2013,2538342-1295241H,"11,889.68",ACCEPT CARE LTD.
Adults Wellbeing and Health,Head of Adults,Third Party Payments,470101,Purchase of Care,07-Jan-2013,2539182-2072332,"11,023.16",ELLERSHAW HOUSE.
Adults Wellbeing and Health,Head of Adults,Third Party Payments,470101,Purchase of Care,07-Jan-2013,2539957-2072259,"10,934.00",PARK LODGE CARE HOME.
Adults Wellbeing and Health,Head of Adults,Transfer Payments,515201,Social Services Clients,07-Jan-2013,2539594-1294624H,"10,215.40",REDACTED - PAYMENT TO INDIVIDUAL
Adults Wellbeing and Health,Head of Adults,Third Party Payments,470101,Purchase of Care,07-Jan-2013,2539202-2072262,"10,145.44",ESPA.
Adults Wellbeing and Health,Head of Adults,Third Party Payments,471101,Purchase of Care,07-Jan-2013,2538969-2073972,"9,804.55",CHILTON CARE CENTRE.
Adults Wellbeing and Health,Head of Adults,Third Party Payments,478101,Purchase of Care,07-Jan-2013,2540193-1293550H,"9,740.64",ST ANNES COMMUNITY SERVICES.
Adults Wellbeing and Health,Head of Adults,Third Party Payments,478101,Purchase of Care,07-Jan-2013,2540290-1293785H,"9,698.64",THERA NORTH.
Adults Wellbeing and Health,Head of Adults,Third Party Payments,470101,Purchase of Care,07-Jan-2013,2538817-2072289,"9,625.52",AUTISM NORTH.
Adults Wellbeing and Health,Head of Adults,Third Party Payments,470101,Purchase of Care,07-Jan-2013,2539202-2072261,"9,383.12",ESPA.
Adults Wellbeing and Health,Head of Adults,Third Party Payments,470101,Purchase of Care,07-Jan-2013,2538818-2072310,"9,255.28",AUTISM NORTH.
Adults Wellbeing and Health,Head of Adults,Third Party Payments,478101,Purchase of Care,07-Jan-2013,2540193-1294320H,"9,098.40",ST ANNES COMMUNITY SERVICES.
Adults Wellbeing and Health,Head of Adults,Third Party Payments,478101,Purchase of Care,07-Jan-2013,2540193-1295170H,"9,098.40",ST ANNES COMMUNITY SERVICES.
Adults Wellbeing and Health,Head of Adults,Third Party Payments,478101,Purchase of Care,07-Jan-2013,2540193-1294524H,"9,044.88",ST ANNES COMMUNITY SERVICES.
Adults Wellbeing and Health,Head of Adults,Third Party Payments,478101,Purchase of Care,07-Jan-2013,2540193-1294733H,"9,044.88",ST ANNES COMMUNITY SERVICES.
Adults Wellbeing and Health,Head of Adults,Third Party Payments,478101,Purchase of Care,07-Jan-2013,2540193-1298162H,"8,991.36",ST ANNES COMMUNITY SERVICES.
Adults Wellbeing and Health,Head of Adults,Third Party Payments,478101,Purchase of Care,07-Jan-2013,2540329-1296889H,"8,922.48",UNITED RESPONSE.
Adults Wellbeing and Health,Head of Adults,Third Party Payments,478101,Purchase of Care,07-Jan-2013,2539935-1295059H,"8,573.10",OAKLEA TRUST.
Adults Wellbeing and Health,Head of Adults,Third Party Payments,478101,Purchase of Care,07-Jan-2013,2538342-1298462H,"8,501.90",ACCEPT CARE LTD.
Adults Wellbeing and Health,Head of Adults,Third Party Payments,478101,Purchase of Care,07-Jan-2013,2539027-1296007H,"8,359.68",CREATIVE SUPPORT LTD.
Adults Wellbeing and Health,Head of Adults,Third Party Payments,478101,Purchase of Care,07-Jan-2013,2539027-1293612H,"8,217.44",CREATIVE SUPPORT LTD.
Adults Wellbeing and Health,Head of Adults,Third Party Payments,478101,Purchase of Care,07-Jan-2013,2539027-1293637H,"8,217.44",CREATIVE SUPPORT LTD.
Adults Wellbeing and Health,Head of Adults,Third Party Payments,478101,Purchase of Care,07-Jan-2013,2540290-1295048H,"8,011.92",THERA NORTH.
Adults Wellbeing and Health,Head of Adults,Third Party Payments,478101,Purchase of Care,07-Jan-2013,2538342-1295235H,"7,969.72",ACCEPT CARE LTD.
Adults Wellbeing and Health,Head of Adults,Third Party Payments,478101,Purchase of Care,07-Jan-2013,2538342-1294821H,"7,891.84",ACCEPT CARE LTD.
Adults Wellbeing and Health,Head of Adults,Third Party Payments,478101,Purchase of Care,07-Jan-2013,2540009-1294051H,"7,862.40",PORTLAND DAY CARE.
Adults Wellbeing and Health,Head of Adults,Third Party Payments,478101,Purchase of Care,07-Jan-2013,2540009-1295377H,"7,862.40",PORTLAND DAY CARE.
Adults Wellbeing and Health,Head of Adults,Third Party Payments,470101,Purchase of Care,07-Jan-2013,2539202-2072355,"7,826.56",ESPA.
Adults Wellbeing and Health,Head of Adults,Third Party Payments,470101,Purchase of Care,07-Jan-2013,2540406-2073848,"7,560.41",YODEN LODGE CARE HOME.
Adults Wellbeing and Health,Head of Adults,Third Party Payments,470101,Purchase of Care,07-Jan-2013,2539362-2070623,"7,344.92",JACK DORMAND.
Adults Wellbeing and Health,Head of Adults,Third Party Payments,478101,Purchase of Care,07-Jan-2013,2539324-1295191H,"7,323.12",HIGHLEA CARE LTD.
Adults Wellbeing and Health,Head of Adults,Third Party Payments,478101,Purchase of Care,07-Jan-2013,2539935-1294187H,"7,306.00",OAKLEA TRUST.
Adults Wellbeing and Health,Head of Adults,Third Party Payments,478101,Purchase of Care,07-Jan-2013,2540193-1298101H,"7,225.20",ST ANNES COMMUNITY SERVICES.
Adults Wellbeing and Health,Head of Adults,Third Party Payments,478101,Purchase of Care,07-Jan-2013,2540193-1298102H,"7,225.20",ST ANNES COMMUNITY SERVICES.
Adults Wellbeing and Health,Head of Adults,Third Party Payments,478101,Purchase of Care,07-Jan-2013,2539027-1293433H,"7,176.92",CREATIVE SUPPORT LTD.
Adults Wellbeing and Health,Head of Adults,Third Party Payments,478101,Purchase of Care,07-Jan-2013,2539935-1295635H,"7,149.00",OAKLEA TRUST.
Adults Wellbeing and Health,Head of Adults,Third Party Payments,478101,Purchase of Care,07-Jan-2013,2539935-1296242H,"7,149.00",OAKLEA TRUST.
Adults Wellbeing and Health,Head of Adults,Transfer Payments,515201,Social Services Clients,07-Jan-2013,2538890-1293599H,"7,135.20",REDACTED - PAYMENT TO INDIVIDUAL
Adults Wellbeing and Health,Head of Adults,Third Party Payments,478101,Purchase of Care,07-Jan-2013,2540193-1293417H,"7,118.16",ST ANNES COMMUNITY SERVICES.
Adults Wellbeing and Health,Head of Adults,Third Party Payments,478101,Purchase of Care,07-Jan-2013,2540193-1294976H,"7,118.16",ST ANNES COMMUNITY SERVICES.
Adults Wellbeing and Health,Head of Adults,Transfer Payments,515201,Social Services Clients,07-Jan-2013,2539729-1296409H,"7,027.84",REDACTED - PAYMENT TO INDIVIDUAL
Adults Wellbeing and Health,Head of Adults,Third Party Payments,478101,Purchase of Care,07-Jan-2013,2538342-1296622H,"6,905.36",ACCEPT CARE LTD.
Adults Wellbeing and Health,Head of Adults,Third Party Payments,470101,Purchase of Care,07-Jan-2013,2539289-2072292,"6,888.00",GRETTON HOMES.
Adults Wellbeing and Health,Head of Adults,Third Party Payments,478101,Purchase of Care,07-Jan-2013,2540009-1295136H,"6,879.60",PORTLAND DAY CARE.
Adults Wellbeing and Health,Head of Adults,Transfer Payments,515201,Social Services Clients,07-Jan-2013,2538564-1294125H,"6,833.12",REDACTED - PAYMENT TO INDIVIDUAL
Adults Wellbeing and Health,Head of Adults,Third Party Payments,478101,Purchase of Care,07-Jan-2013,2538815-1286528H,"6,807.20",AUTISM CARE UK (4) LTD.
Adults Wellbeing and Health,Head of Adults,Third Party Payments,478101,Purchase of Care,07-Jan-2013,2538815-1293527H,"6,807.20",AUTISM CARE UK (4) LTD.
Adults Wellbeing and Health,Head of Adults,Third Party Payments,478101,Purchase of Care,07-Jan-2013,2538342-1295360H,"6,697.68",ACCEPT CARE LTD.
Adults Wellbeing and Health,Head of Adults,Third Party Payments,478101,Purchase of Care,07-Jan-2013,2539227-1294787H,"6,543.16",FLEXIBLE SUPPORT OPTIONS UK (DOMICILARY) LTD.
Adults Wellbeing and Health,Head of Adults,Third Party Payments,470101,Purchase of Care,07-Jan-2013,2539202-2072394,"6,489.92",ESPA.
Adults Wellbeing and Health,Head of Adults,Third Party Payments,470101,Purchase of Care,07-Jan-2013,2539202-2072264,"6,489.84",ESPA.
Adults Wellbeing and Health,Head of Adults,Third Party Payments,478101,Purchase of Care,07-Jan-2013,2539005-1294520H,"6,456.28",COMMUNITY INTEGRATED CARE LTD.
Adults Wellbeing and Health,Head of Adults,Third Party Payments,478101,Purchase of Care,07-Jan-2013,2538815-1287985H,"6,400.80",AUTISM CARE UK (4) LTD.
Adults Wellbeing and Health,Head of Adults,Third Party Payments,478101,Purchase of Care,07-Jan-2013,2538815-1294955H,"6,400.80",AUTISM CARE UK (4) LTD.
Adults Wellbeing and Health,Head of Adults,Third Party Payments,470101,Purchase of Care,07-Jan-2013,2538815-2072312,"6,400.00",AUTISM CARE UK (4) LTD.
Adults Wellbeing and Health,Head of Adults,Third Party Payments,470101,Purchase of Care,07-Jan-2013,2538815-2072313,"6,400.00",AUTISM CARE UK (4) LTD.
Adults Wellbeing and Health,Head of Adults,Third Party Payments,470101,Purchase of Care,07-Jan-2013,2538329-2072309,"6,397.60",368 THE RIDGE.
Adults Wellbeing and Health,Head of Adults,Third Party Payments,478101,Purchase of Care,07-Jan-2013,2538342-1296035H,"6,384.00",ACCEPT CARE LTD.
Adults Wellbeing and Health,Head of Adults,Transfer Payments,515201,Social Services Clients,07-Jan-2013,2539279-1293885H,"6,356.00",REDACTED - PAYMENT TO INDIVIDUAL
Adults Wellbeing and Health,Head of Adults,Third Party Payments,478101,Purchase of Care,07-Jan-2013,2539005-1294466H,"6,272.20",COMMUNITY INTEGRATED CARE LTD.
Adults Wellbeing and Health,Head of Adults,Third Party Payments,470101,Purchase of Care,07-Jan-2013,2540145-2069942,"6,246.16",SENSE.
Adults Wellbeing and Health,Head of Adults,Third Party Payments,478101,Purchase of Care,07-Jan-2013,2539935-1294226H,"6,218.72",OAKLEA TRUST.
Adults Wellbeing and Health,Head of Adults,Third Party Payments,470101,Purchase of Care,07-Jan-2013,2540144-2072346,"6,212.00",SELF (NORTH EAST) LTD.
Adults Wellbeing and Health,Head of Adults,Third Party Payments,470101,Purchase of Care,07-Jan-2013,2540144-2072351,"6,212.00",SELF (NORTH EAST) LTD.
Adults Wellbeing and Health,Head of Adults,Transfer Payments,515209,Social Services Clients,07-Jan-2013,2539019-1295597D,"6,198.00",REDACTED - PAYMENT TO INDIVIDUAL
Adults Wellbeing and Health,Head of Adults,Third Party Payments,478101,Purchase of Care,07-Jan-2013,2539534-1295863H,"6,167.76",KINDSTREAM CARE LTD.
Adults Wellbeing and Health,Head of Adults,Third Party Payments,478101,Purchase of Care,07-Jan-2013,2539324-1294705H,"6,155.64",HIGHLEA CARE LTD.
Adults Wellbeing and Health,Head of Adults,Third Party Payments,474101,Purchase of Care,07-Jan-2013,2539567-2072041,"6,119.40",LEONARD CHESHIRE FOUNDATION.
Adults Wellbeing and Health,Head of Adults,Third Party Payments,478101,Purchase of Care,07-Jan-2013,2539005-1295272H,"6,040.76",COMMUNITY INTEGRATED CARE LTD.
Adults Wellbeing and Health,Head of Adults,Third Party Payments,478101,Purchase of Care,07-Jan-2013,2539005-1294458H,"6,031.84",COMMUNITY INTEGRATED CARE LTD.
Adults Wellbeing and Health,Head of Adults,Third Party Payments,470101,Purchase of Care,07-Jan-2013,2538326-2067730,"6,031.16",3 RED ADMIRAL COURT.
Adults Wellbeing and Health,Head of Adults,Third Party Payments,470101,Purchase of Care,07-Jan-2013,2538326-2072327,"6,031.16",3 RED ADMIRAL COURT.
Adults Wellbeing and Health,Head of Adults,Third Party Payments,478101,Purchase of Care,07-Jan-2013,2539027-1294212H,"5,976.32",CREATIVE SUPPORT LTD.
Adults Wellbeing and Health,Head of Adults,Third Party Payments,472101,Purchase of Care,07-Jan-2013,2539037-1299050H,"5,954.92",DALE CARE LTD.
Adults Wellbeing and Health,Head of Adults,Third Party Payments,474101,Purchase of Care,07-Jan-2013,2538331-2074165,"5,931.90",A CHARLES THOMAS (CARE) LTD.
Adults Wellbeing and Health,Head of Adults,Third Party Payments,478101,Purchase of Care,07-Jan-2013,2538342-1294598H,"5,866.96",ACCEPT CARE LTD.
Adults Wellbeing and Health,Head of Adults,Third Party Payments,470101,Purchase of Care,07-Jan-2013,2539140-2072281,"5,832.00",DURHAM CARELINE LTD.
Adults Wellbeing and Health,Head of Adults,Third Party Payments,478101,Purchase of Care,07-Jan-2013,2539005-1294400H,"5,763.76",COMMUNITY INTEGRATED CARE LTD.
Adults Wellbeing and Health,Head of Adults,Third Party Payments,478101,Purchase of Care,07-Jan-2013,2539935-1293774H,"5,758.80",OAKLEA TRUST.
Adults Wellbeing and Health,Head of Adults,Third Party Payments,470101,Purchase of Care,07-Jan-2013,2540144-2072342,"5,720.60",SELF (NORTH EAST) LTD.
Adults Wellbeing and Health,Head of Adults,Third Party Payments,478101,Purchase of Care,07-Jan-2013,2540329-1293436H,"5,717.00",UNITED RESPONSE.
Adults Wellbeing and Health,Head of Adults,Third Party Payments,478101,Purchase of Care,07-Jan-2013,2540329-1294067H,"5,717.00",UNITED RESPONSE.
Adults Wellbeing and Health,Head of Adults,Third Party Payments,478101,Purchase of Care,07-Jan-2013,2540227-1300173H,"5,715.36",STONHAM HOUSING ASSOCIATION LTD.
Adults Wellbeing and Health,Head of Adults,Third Party Payments,471101,Purchase of Care,07-Jan-2013,2539254-2073021,"5,639.72",GAINFORD CARE HOMES LTD.
Adults Wellbeing and Health,Head of Adults,Third Party Payments,470101,Purchase of Care,07-Jan-2013,2538979-2070071,"5,638.05",CHURCH VIEW CARE HOME.
Adults Wellbeing and Health,Head of Adults,Third Party Payments,478101,Purchase of Care,07-Jan-2013,2539921-1294994H,"5,570.84",NORTH EAST AUTISM SOCIETY.
Adults Wellbeing and Health,Head of Adults,Third Party Payments,478101,Purchase of Care,07-Jan-2013,2539922-1294874H,"5,530.40",NORTH EAST AUTISM SOCIETY.
Adults Wellbeing and Health,Head of Adults,Third Party Payments,478101,Purchase of Care,07-Jan-2013,2538972-1294996H,"5,528.60",CHOICES COMMUNITY CARE SERVICES LTD.
Adults Wellbeing and Health,Head of Adults,Third Party Payments,478101,Purchase of Care,07-Jan-2013,2539935-1293437H,"5,521.00",OAKLEA TRUST.
Adults Wellbeing and Health,Head of Adults,Third Party Payments,478101,Purchase of Care,07-Jan-2013,2538342-1294286H,"5,503.52",ACCEPT CARE LTD.
Adults Wellbeing and Health,Head of Adults,Third Party Payments,478101,Purchase of Care,07-Jan-2013,2538342-1295024H,"5,477.56",ACCEPT CARE LTD.
Adults Wellbeing and Health,Head of Adults,Third Party Payments,478101,Purchase of Care,07-Jan-2013,2539324-1294527H,"5,470.40",HIGHLEA CARE LTD.
Adults Wellbeing and Health,Head of Adults,Third Party Payments,478101,Purchase of Care,07-Jan-2013,2539935-1293447H,"5,404.52",OAKLEA TRUST.
Adults Wellbeing and Health,Head of Adults,Third Party Payments,478101,Purchase of Care,07-Jan-2013,2539935-1293484H,"5,404.52",OAKLEA TRUST.
Adults Wellbeing and Health,Head of Adults,Third Party Payments,478101,Purchase of Care,07-Jan-2013,2539935-1293855H,"5,404.52",OAKLEA TRUST.
Adults Wellbeing and Health,Head of Adults,Third Party Payments,478101,Purchase of Care,07-Jan-2013,2539935-1294297H,"5,404.52",OAKLEA TRUST.
Adults Wellbeing and Health,Head of Adults,Third Party Payments,478101,Purchase of Care,07-Jan-2013,2539935-1294461H,"5,404.52",OAKLEA TRUST.
Adults Wellbeing and Health,Head of Adults,Third Party Payments,474101,Purchase of Care,07-Jan-2013,2538881-2072504,"5,232.00",BOWES COURT CARE HOME.
Adults Wellbeing and Health,Head of Adults,Third Party Payments,478101,Purchase of Care,07-Jan-2013,2538342-1295354H,"5,224.00",ACCEPT CARE LTD.
Adults Wellbeing and Health,Head of Adults,Third Party Payments,478101,Purchase of Care,07-Jan-2013,2538342-1293678H,"5,140.08",ACCEPT CARE LTD.
Adults Wellbeing and Health,Head of Adults,Third Party Payments,478101,Purchase of Care,07-Jan-2013,2539925-1294902H,"5,092.00",NORTH FARM COTTAGES SUPPORTED LIVING.
Adults Wellbeing and Health,Head of Adults,Third Party Payments,478101,Purchase of Care,07-Jan-2013,2538342-1294139H,"5,088.16",ACCEPT CARE LTD.
Adults Wellbeing and Health,Head of Adults,Third Party Payments,470101,Purchase of Care,07-Jan-2013,2538881-2072317,"5,082.00",BOWES COURT CARE HOME.
Adults Wellbeing and Health,Head of Adults,Third Party Payments,474101,Purchase of Care,07-Jan-2013,2538881-2072046,"5,050.00",BOWES COURT CARE HOME.
Adults Wellbeing and Health,Head of Adults,Third Party Payments,470101,Purchase of Care,07-Jan-2013,2539995-2067374,"5,045.04",PERCY HEDLEY FOUNDATION.
Adults Wellbeing and Health,Head of Adults,Third Party Payments,470101,Purchase of Care,07-Jan-2013,2538815-2072311,"5,014.00",AUTISM CARE UK (4) LTD.
Adults Wellbeing and Health,Head of Adults,Third Party Payments,478101,Purchase of Care,07-Jan-2013,2539077-1297586H,"5,004.72",DEACONSTAR LTD.
Adults Wellbeing and Health,Head of Adults,Third Party Payments,478101,Purchase of Care,07-Jan-2013,2538342-1296906H,"4,984.00",ACCEPT CARE LTD.
Adults Wellbeing and Health,Head of Adults,Third Party Payments,478101,Purchase of Care,07-Jan-2013,2540290-1294424H,"4,982.20",THERA NORTH.
Adults Wellbeing and Health,Head of Adults,Third Party Payments,478101,Purchase of Care,07-Jan-2013,2540290-1295177H,"4,982.20",THERA NORTH.
Adults Wellbeing and Health,Head of Adults,Third Party Payments,478101,Purchase of Care,07-Jan-2013,2538815-1289082H,"4,958.08",AUTISM CARE UK (4) LTD.
Adults Wellbeing and Health,Head of Adults,Third Party Payments,478101,Purchase of Care,07-Jan-2013,2538815-1296038H,"4,958.08",AUTISM CARE UK (4) LTD.
Adults Wellbeing and Health,Head of Adults,Third Party Payments,478101,Purchase of Care,07-Jan-2013,2539935-1293791H,"4,951.56",OAKLEA TRUST.
Adults Wellbeing and Health,Head of Adults,Third Party Payments,478101,Purchase of Care,07-Jan-2013,2539935-1298379H,"4,951.56",OAKLEA TRUST.
Adults Wellbeing and Health,Head of Adults,Third Party Payments,478101,Purchase of Care,07-Jan-2013,2539227-1293636H,"4,949.88",FLEXIBLE SUPPORT OPTIONS UK (DOMICILARY) LTD.
Adults Wellbeing and Health,Head of Adults,Third Party Payments,478101,Purchase of Care,07-Jan-2013,2539724-1296408H,"4,949.00",MENCAP.
Adults Wellbeing and Health,Head of Adults,Third Party Payments,478101,Purchase of Care,07-Jan-2013,2539925-1294185H,"4,925.00",NORTH FARM COTTAGES SUPPORTED LIVING.
Adults Wellbeing and Health,Head of Adults,Third Party Payments,470101,Purchase of Care,07-Jan-2013,2540383-2070296,"4,908.42",WESTERLEIGH NURSING HOME.
Adults Wellbeing and Health,Head of Adults,Third Party Payments,478101,Purchase of Care,07-Jan-2013,2539925-1295101H,"4,900.00",NORTH FARM COTTAGES SUPPORTED LIVING.
Adults Wellbeing and Health,Head of Adults,Third Party Payments,472101,Purchase of Care,07-Jan-2013,2538923-1295483H,"4,889.43",CAREWATCH (DURHAM & EASINGTON) FASTFLOW ACC.
Adults Wellbeing and Health,Head of Adults,Third Party Payments,470101,Purchase of Care,07-Jan-2013,2540167-2071986,"4,876.00",SIGN HEALTH.
Adults Wellbeing and Health,Head of Adults,Third Party Payments,470101,Purchase of Care,07-Jan-2013,2539994-2072009,"4,869.68",PERCY HEDLEY CENTRE.
Adults Wellbeing and Health,Head of Adults,Third Party Payments,470101,Purchase of Care,07-Jan-2013,2538979-2070073,"4,842.09",CHURCH VIEW CARE HOME.
Adults Wellbeing and Health,Head of Adults,Third Party Payments,478101,Purchase of Care,07-Jan-2013,2539935-1294399H,"4,835.80",OAKLEA TRUST.
Adults Wellbeing and Health,Head of Adults,Third Party Payments,478101,Purchase of Care,07-Jan-2013,2539935-1294467H,"4,835.80",OAKLEA TRUST.
Adults Wellbeing and Health,Head of Adults,Third Party Payments,474101,Purchase of Care,07-Jan-2013,2538881-2072043,"4,800.00",BOWES COURT CARE HOME.
Adults Wellbeing and Health,Head of Adults,Third Party Payments,474101,Purchase of Care,07-Jan-2013,2538881-2072506,"4,800.00",BOWES COURT CARE HOME.
Adults Wellbeing and Health,Head of Adults,Third Party Payments,474101,Purchase of Care,07-Jan-2013,2538921-2072502,"4,800.00",CARELINE LIFESTYLES LTD.
Adults Wellbeing and Health,Head of Adults,Third Party Payments,478101,Purchase of Care,07-Jan-2013,2539005-1294322H,"4,797.76",COMMUNITY INTEGRATED CARE LTD.
Adults Wellbeing and Health,Head of Adults,Third Party Payments,478101,Purchase of Care,07-Jan-2013,2539027-1295644H,"4,784.64",CREATIVE SUPPORT LTD.
Adults Wellbeing and Health,Head of Adults,Third Party Payments,478101,Purchase of Care,07-Jan-2013,2538342-1294921H,"4,776.64",ACCEPT CARE LTD.
Adults Wellbeing and Health,Head of Adults,Third Party Payments,478101,Purchase of Care,07-Jan-2013,2539935-1294857H,"4,767.04",OAKLEA TRUST.
Adults Wellbeing and Health,Head of Adults,Third Party Payments,470101,Purchase of Care,07-Jan-2013,2539202-2072263,"4,753.48",ESPA.
Adults Wellbeing and Health,Head of Adults,Third Party Payments,470101,Purchase of Care,07-Jan-2013,2539202-2072395,"4,753.48",ESPA.
Adults Wellbeing and Health,Head of Adults,Third Party Payments,470101,Purchase of Care,07-Jan-2013,2539202-2072396,"4,753.48",ESPA.
Adults Wellbeing and Health,Head of Adults,Third Party Payments,473101,Purchase of Care,07-Jan-2013,2540300-1294474D,"4,742.00",THORNBECK COLLEGE.
Adults Wellbeing and Health,Head of Adults,Third Party Payments,478101,Purchase of Care,07-Jan-2013,2538342-1296802H,"4,698.76",ACCEPT CARE LTD.
Adults Wellbeing and Health,Head of Adults,Third Party Payments,472101,Purchase of Care,07-Jan-2013,2540175-1298234H,"4,694.47",SOCIAL RESOURCE CENTRE LTD.
Adults Wellbeing and Health,Head of Adults,Third Party Payments,473101,Purchase of Care,07-Jan-2013,2539202-1295623D,"4,669.60",ESPA.
Adults Wellbeing and Health,Head of Adults,Transfer Payments,515209,Social Services Clients,07-Jan-2013,2539463-1294149D,"4,628.00",REDACTED - PAYMENT TO INDIVIDUAL
Adults Wellbeing and Health,Head of Adults,Third Party Payments,478101,Purchase of Care,07-Jan-2013,2539005-1294535H,"4,604.16",COMMUNITY INTEGRATED CARE LTD.
Adults Wellbeing and Health,Head of Adults,Third Party Payments,478101,Purchase of Care,07-Jan-2013,2539005-1294680H,"4,604.16",COMMUNITY INTEGRATED CARE LTD.
Adults Wellbeing and Health,Head of Adults,Third Party Payments,478101,Purchase of Care,07-Jan-2013,2539921-1294236H,"4,600.76",NORTH EAST AUTISM SOCIETY.
Adults Wellbeing and Health,Head of Adults,Third Party Payments,474101,Purchase of Care,07-Jan-2013,2539752-2072791,"4,600.00",MORRIS GRANGE PRIVATE NURSING HOME.
Adults Wellbeing and Health,Head of Adults,Third Party Payments,478101,Purchase of Care,07-Jan-2013,2538342-1295047H,"4,580.52",ACCEPT CARE LTD.
Adults Wellbeing and Health,Head of Adults,Third Party Payments,478101,Purchase of Care,07-Jan-2013,2539005-1294321H,"4,574.36",COMMUNITY INTEGRATED CARE LTD.
Adults Wellbeing and Health,Head of Adults,Third Party Payments,478101,Purchase of Care,07-Jan-2013,2539005-1294420H,"4,574.36",COMMUNITY INTEGRATED CARE LTD.
Adults Wellbeing and Health,Head of Adults,Third Party Payments,478101,Purchase of Care,07-Jan-2013,2539005-1294735H,"4,574.36",COMMUNITY INTEGRATED CARE LTD.
Adults Wellbeing and Health,Head of Adults,Transfer Payments,515201,Social Services Clients,07-Jan-2013,2539306-1295582H,"4,565.20",REDACTED - PAYMENT TO INDIVIDUAL
Adults Wellbeing and Health,Head of Adults,Third Party Payments,478101,Purchase of Care,07-Jan-2013,2539935-1293835H,"4,558.32",OAKLEA TRUST.
Adults Wellbeing and Health,Head of Adults,Third Party Payments,478101,Purchase of Care,07-Jan-2013,2539935-1294497H,"4,558.32",OAKLEA TRUST.
Adults Wellbeing and Health,Head of Adults,Third Party Payments,478101,Purchase of Care,07-Jan-2013,2539935-1294943H,"4,558.32",OAKLEA TRUST.
Adults Wellbeing and Health,Head of Adults,Third Party Payments,478101,Purchase of Care,07-Jan-2013,2539935-1296116H,"4,558.32",OAKLEA TRUST.
Adults Wellbeing and Health,Head of Adults,Third Party Payments,478101,Purchase of Care,07-Jan-2013,2539005-1294085H,"4,537.16",COMMUNITY INTEGRATED CARE LTD.
Adults Wellbeing and Health,Head of Adults,Third Party Payments,478101,Purchase of Care,07-Jan-2013,2539005-1294318H,"4,537.16",COMMUNITY INTEGRATED CARE LTD.
Adults Wellbeing and Health,Head of Adults,Third Party Payments,478101,Purchase of Care,07-Jan-2013,2539005-1294323H,"4,537.16",COMMUNITY INTEGRATED CARE LTD.
Adults Wellbeing and Health,Head of Adults,Third Party Payments,472101,Purchase of Care,07-Jan-2013,2539534-1300162H,"4,536.00",KINDSTREAM CARE LTD.
Adults Wellbeing and Health,Head of Adults,Third Party Payments,478101,Purchase of Care,07-Jan-2013,2539935-1293666H,"4,519.56",OAKLEA TRUST.
Adults Wellbeing and Health,Head of Adults,Third Party Payments,470101,Purchase of Care,07-Jan-2013,2539994-2072010,"4,505.72",PERCY HEDLEY CENTRE.
Adults Wellbeing and Health,Head of Adults,Third Party Payments,478101,Purchase of Care,07-Jan-2013,2539027-1295870H,"4,482.24",CREATIVE SUPPORT LTD.
Adults Wellbeing and Health,Head of Adults,Third Party Payments,478101,Purchase of Care,07-Jan-2013,2539921-1294685H,"4,456.56",NORTH EAST AUTISM SOCIETY.
Adults Wellbeing and Health,Head of Adults,Third Party Payments,478101,Purchase of Care,07-Jan-2013,2539935-1294319H,"4,450.24",OAKLEA TRUST.
Adults Wellbeing and Health,Head of Adults,Third Party Payments,470101,Purchase of Care,07-Jan-2013,2538337-2074264,"4,444.11",ABBEYVALE.
Adults Wellbeing and Health,Head of Adults,Third Party Payments,470101,Purchase of Care,07-Jan-2013,2538881-2072315,"4,444.00",BOWES COURT CARE HOME.
Adults Wellbeing and Health,Head of Adults,Third Party Payments,478101,Purchase of Care,07-Jan-2013,2539935-1294538H,"4,433.04",OAKLEA TRUST.
Adults Wellbeing and Health,Head of Adults,Third Party Payments,470101,Purchase of Care,07-Jan-2013,2539721-2072331,"4,417.00",MELBURY CARE SERVICES.
Adults Wellbeing and Health,Head of Adults,Third Party Payments,478101,Purchase of Care,07-Jan-2013,2538342-1296735H,"4,413.20",ACCEPT CARE LTD.
Adults Wellbeing and Health,Head of Adults,Third Party Payments,473101,Purchase of Care,07-Jan-2013,2539921-1294620D,"4,410.00",NORTH EAST AUTISM SOCIETY.
Adults Wellbeing and Health,Head of Adults,Third Party Payments,478101,Purchase of Care,07-Jan-2013,2539935-1293479H,"4,403.80",OAKLEA TRUST.
Adults Wellbeing and Health,Head of Adults,Third Party Payments,478101,Purchase of Care,07-Jan-2013,2539935-1293681H,"4,403.80",OAKLEA TRUST.
Adults Wellbeing and Health,Head of Adults,Third Party Payments,478101,Purchase of Care,07-Jan-2013,2539935-1294435H,"4,403.80",OAKLEA TRUST.
Adults Wellbeing and Health,Head of Adults,Third Party Payments,470101,Purchase of Care,07-Jan-2013,2538881-2072318,"4,400.00",BOWES COURT CARE HOME.
Adults Wellbeing and Health,Head of Adults,Third Party Payments,478101,Purchase of Care,07-Jan-2013,2539935-1294465H,"4,335.04",OAKLEA TRUST.
Adults Wellbeing and Health,Head of Adults,Third Party Payments,473101,Purchase of Care,07-Jan-2013,2539921-1294993D,"4,285.80",NORTH EAST AUTISM SOCIETY.
Adults Wellbeing and Health,Head of Adults,Third Party Payments,478101,Purchase of Care,07-Jan-2013,2539935-1294375H,"4,283.76",OAKLEA TRUST.
Adults Wellbeing and Health,Head of Adults,Third Party Payments,478101,Purchase of Care,07-Jan-2013,2539935-1294415H,"4,283.76",OAKLEA TRUST.
Adults Wellbeing and Health,Head of Adults,Third Party Payments,478101,Purchase of Care,07-Jan-2013,2539935-1294450H,"4,283.76",OAKLEA TRUST.
Adults Wellbeing and Health,Head of Adults,Third Party Payments,478101,Purchase of Care,07-Jan-2013,2539935-1295523H,"4,283.76",OAKLEA TRUST.
Adults Wellbeing and Health,Head of Adults,Third Party Payments,478101,Purchase of Care,07-Jan-2013,2539935-1296551H,"4,283.76",OAKLEA TRUST.
Adults Wellbeing and Health,Head of Adults,Third Party Payments,473101,Purchase of Care,07-Jan-2013,2539921-1294237D,"4,266.60",NORTH EAST AUTISM SOCIETY.
Adults Wellbeing and Health,Head of Adults,Third Party Payments,470101,Purchase of Care,07-Jan-2013,2539280-2067370,"4,244.80",GRAFTON MANOR.
Adults Wellbeing and Health,Head of Adults,Third Party Payments,470101,Purchase of Care,07-Jan-2013,2539280-2071973,"4,244.80",GRAFTON MANOR.
Adults Wellbeing and Health,Head of Adults,Third Party Payments,470101,Purchase of Care,07-Jan-2013,2539959-2074380,"4,234.29",PARKLANDS NURSING HOME.
Adults Wellbeing and Health,Head of Adults,Third Party Payments,472101,Purchase of Care,07-Jan-2013,2539520-1294258H,"4,233.87",KELLY PARK OHC.
Adults Wellbeing and Health,Head of Adults,Third Party Payments,470101,Purchase of Care,07-Jan-2013,2538881-2071977,"4,200.00",BOWES COURT CARE HOME.
Adults Wellbeing and Health,Head of Adults,Third Party Payments,470101,Purchase of Care,07-Jan-2013,2540026-2067384,"4,193.92",QUARRIERS.
Adults Wellbeing and Health,Head of Adults,Third Party Payments,470101,Purchase of Care,07-Jan-2013,2540026-2071987,"4,193.92",QUARRIERS.
Adults Wellbeing and Health,Head of Adults,Third Party Payments,478101,Purchase of Care,07-Jan-2013,2539534-1294421H,"4,155.64",KINDSTREAM CARE LTD.
Adults Wellbeing and Health,Head of Adults,Third Party Payments,478101,Purchase of Care,07-Jan-2013,2539534-1296157H,"4,155.64",KINDSTREAM CARE LTD.
Adults Wellbeing and Health,Head of Adults,Third Party Payments,478101,Purchase of Care,07-Jan-2013,2538815-1286944H,"4,148.64",AUTISM CARE UK (4) LTD.
Adults Wellbeing and Health,Head of Adults,Third Party Payments,478101,Purchase of Care,07-Jan-2013,2538815-1288025H,"4,148.64",AUTISM CARE UK (4) LTD.
Adults Wellbeing and Health,Head of Adults,Third Party Payments,478101,Purchase of Care,07-Jan-2013,2538815-1288271H,"4,148.64",AUTISM CARE UK (4) LTD.
Adults Wellbeing and Health,Head of Adults,Third Party Payments,478101,Purchase of Care,07-Jan-2013,2538815-1288272H,"4,148.64",AUTISM CARE UK (4) LTD.
Adults Wellbeing and Health,Head of Adults,Third Party Payments,478101,Purchase of Care,07-Jan-2013,2538815-1288273H,"4,148.64",AUTISM CARE UK (4) LTD.
Adults Wellbeing and Health,Head of Adults,Third Party Payments,478101,Purchase of Care,07-Jan-2013,2538815-1288274H,"4,148.64",AUTISM CARE UK (4) LTD.
Adults Wellbeing and Health,Head of Adults,Third Party Payments,478101,Purchase of Care,07-Jan-2013,2538815-1293928H,"4,148.64",AUTISM CARE UK (4) LTD.
Adults Wellbeing and Health,Head of Adults,Third Party Payments,478101,Purchase of Care,07-Jan-2013,2538815-1294992H,"4,148.64",AUTISM CARE UK (4) LTD.
Adults Wellbeing and Health,Head of Adults,Third Party Payments,478101,Purchase of Care,07-Jan-2013,2538815-1295228H,"4,148.64",AUTISM CARE UK (4) LTD.
Adults Wellbeing and Health,Head of Adults,Third Party Payments,478101,Purchase of Care,07-Jan-2013,2538815-1295229H,"4,148.64",AUTISM CARE UK (4) LTD.
Adults Wellbeing and Health,Head of Adults,Third Party Payments,478101,Purchase of Care,07-Jan-2013,2538815-1295230H,"4,148.64",AUTISM CARE UK (4) LTD.
Adults Wellbeing and Health,Head of Adults,Third Party Payments,478101,Purchase of Care,07-Jan-2013,2538815-1295231H,"4,148.64",AUTISM CARE UK (4) LTD.
Adults Wellbeing and Health,Head of Adults,Third Party Payments,478101,Purchase of Care,07-Jan-2013,2540009-1293648H,"4,130.12",PORTLAND DAY CARE.
Adults Wellbeing and Health,Head of Adults,Third Party Payments,478101,Purchase of Care,07-Jan-2013,2539935-1297233H,"4,126.32",OAKLEA TRUST.
Adults Wellbeing and Health,Head of Adults,Third Party Payments,478101,Purchase of Care,07-Jan-2013,2539005-1294418H,"4,082.88",COMMUNITY INTEGRATED CARE LTD.
Adults Wellbeing and Health,Head of Adults,Third Party Payments,478101,Purchase of Care,07-Jan-2013,2540044-1295286H,"4,077.92",REAL LIFE OPTIONS.
Adults Wellbeing and Health,Head of Adults,Third Party Payments,478101,Purchase of Care,07-Jan-2013,2540193-1294493H,"4,077.04",ST ANNES COMMUNITY SERVICES.
Adults Wellbeing and Health,Head of Adults,Third Party Payments,478101,Purchase of Care,07-Jan-2013,2540193-1294503H,"4,077.04",ST ANNES COMMUNITY SERVICES.
Adults Wellbeing and Health,Head of Adults,Third Party Payments,478101,Purchase of Care,07-Jan-2013,2540193-1294533H,"4,077.04",ST ANNES COMMUNITY SERVICES.
Adults Wellbeing and Health,Head of Adults,Third Party Payments,478101,Purchase of Care,07-Jan-2013,2539921-1296900H,"4,059.68",NORTH EAST AUTISM SOCIETY.
Adults Wellbeing and Health,Head of Adults,Third Party Payments,478101,Purchase of Care,07-Jan-2013,2539935-1294678H,"4,018.24",OAKLEA TRUST.
Adults Wellbeing and Health,Head of Adults,Third Party Payments,478101,Purchase of Care,07-Jan-2013,2539935-1294734H,"4,018.24",OAKLEA TRUST.
Adults Wellbeing and Health,Head of Adults,Third Party Payments,470101,Purchase of Care,07-Jan-2013,2539589-2072032,"4,009.00",LINDISFARNE COURT.
Adults Wellbeing and Health,Head of Adults,Transfer Payments,515201,Social Services Clients,07-Jan-2013,2538449-1299631H,"4,005.04",REDACTED - PAYMENT TO INDIVIDUAL
Adults Wellbeing and Health,Head of Adults,Third Party Payments,478101,Purchase of Care,07-Jan-2013,2538342-1295121H,"3,997.84",ACCEPT CARE LTD.
Adults Wellbeing and Health,Head of Adults,Third Party Payments,470101,Purchase of Care,07-Jan-2013,2539617-2069954,"3,979.80",LYONS COURT CARE HOME.
Adults Wellbeing and Health,Head of Adults,Third Party Payments,478101,Purchase of Care,07-Jan-2013,2539227-1294833H,"3,947.96",FLEXIBLE SUPPORT OPTIONS UK (DOMICILARY) LTD.
Adults Wellbeing and Health,Head of Adults,Third Party Payments,478101,Purchase of Care,07-Jan-2013,2538342-1296077H,"3,932.96",ACCEPT CARE LTD.
Adults Wellbeing and Health,Head of Adults,Third Party Payments,478101,Purchase of Care,07-Jan-2013,2540290-1294942H,"3,928.00",THERA NORTH.
Adults Wellbeing and Health,Head of Adults,Third Party Payments,470101,Purchase of Care,07-Jan-2013,2539589-2072026,"3,875.72",LINDISFARNE COURT.
Adults Wellbeing and Health,Head of Adults,Third Party Payments,474101,Purchase of Care,07-Jan-2013,2540277-2072110,"3,849.28",THE COUNTY DURHAM CHESHIRE HOME.
Adults Wellbeing and Health,Head of Adults,Third Party Payments,478101,Purchase of Care,07-Jan-2013,2539005-1294138H,"3,822.28",COMMUNITY INTEGRATED CARE LTD.
Adults Wellbeing and Health,Head of Adults,Third Party Payments,478101,Purchase of Care,07-Jan-2013,2539005-1294218H,"3,822.28",COMMUNITY INTEGRATED CARE LTD.
Adults Wellbeing and Health,Head of Adults,Third Party Payments,478101,Purchase of Care,07-Jan-2013,2539005-1294967H,"3,822.28",COMMUNITY INTEGRATED CARE LTD.
Adults Wellbeing and Health,Head of Adults,Third Party Payments,478101,Purchase of Care,07-Jan-2013,2539005-1295294H,"3,822.28",COMMUNITY INTEGRATED CARE LTD.
Adults Wellbeing and Health,Head of Adults,Third Party Payments,478101,Purchase of Care,07-Jan-2013,2538342-1297362H,"3,816.12",ACCEPT CARE LTD.
Adults Wellbeing and Health,Head of Adults,Third Party Payments,470101,Purchase of Care,07-Jan-2013,2538802-2073833,"3,800.00",ASHLEIGH HOUSE CARE HOME.
Adults Wellbeing and Health,Head of Adults,Third Party Payments,474101,Purchase of Care,07-Jan-2013,2540277-2072115,"3,776.96",THE COUNTY DURHAM CHESHIRE HOME.
Adults Wellbeing and Health,Head of Adults,Third Party Payments,478101,Purchase of Care,07-Jan-2013,2540193-1294501H,"3,764.84",ST ANNES COMMUNITY SERVICES.
Adults Wellbeing and Health,Head of Adults,Third Party Payments,478101,Purchase of Care,07-Jan-2013,2540193-1296340H,"3,764.84",ST ANNES COMMUNITY SERVICES.
Adults Wellbeing and Health,Head of Adults,Third Party Payments,478101,Purchase of Care,07-Jan-2013,2540193-1296341H,"3,764.84",ST ANNES COMMUNITY SERVICES.
Adults Wellbeing and Health,Head of Adults,Third Party Payments,478101,Purchase of Care,07-Jan-2013,2540193-1296345H,"3,764.84",ST ANNES COMMUNITY SERVICES.
Adults Wellbeing and Health,Head of Adults,Third Party Payments,478101,Purchase of Care,07-Jan-2013,2539324-1294804H,"3,756.96",HIGHLEA CARE LTD.
Adults Wellbeing and Health,Head of Adults,Third Party Payments,473101,Purchase of Care,07-Jan-2013,2539921-1295355D,"3,740.60",NORTH EAST AUTISM SOCIETY.
Adults Wellbeing and Health,Head of Adults,Third Party Payments,478101,Purchase of Care,07-Jan-2013,2538972-1295461H,"3,735.99",CHOICES COMMUNITY CARE SERVICES LTD.
Adults Wellbeing and Health,Head of Adults,Third Party Payments,470101,Purchase of Care,07-Jan-2013,2539293-2069742,"3,714.48",GUARDIAN CARE HOMES (WEST) LTD.
Adults Wellbeing and Health,Head of Adults,Third Party Payments,478101,Purchase of Care,07-Jan-2013,2538972-1294210H,"3,713.99",CHOICES COMMUNITY CARE SERVICES LTD.
Adults Wellbeing and Health,Head of Adults,Third Party Payments,474101,Purchase of Care,07-Jan-2013,2539930-2072123,"3,680.00",NORTHVIEW LODGE CARE HOME.
Adults Wellbeing and Health,Head of Adults,Third Party Payments,471101,Purchase of Care,07-Jan-2013,2539861-2074047,"3,674.07",REDACTED - PAYMENT TO INDIVIDUAL
Adults Wellbeing and Health,Head of Adults,Third Party Payments,470101,Purchase of Care,07-Jan-2013,2539222-2070100,"3,648.15",FIELD VIEW CARE HOME.
Adults Wellbeing and Health,Head of Adults,Third Party Payments,478101,Purchase of Care,07-Jan-2013,2538342-1294300H,"3,634.40",ACCEPT CARE LTD.
Adults Wellbeing and Health,Head of Adults,Transfer Payments,515201,Social Services Clients,07-Jan-2013,2538928-1294951H,"3,632.00",REDACTED - PAYMENT TO INDIVIDUAL
Adults Wellbeing and Health,Head of Adults,Third Party Payments,478101,Purchase of Care,07-Jan-2013,2539005-1294324H,"3,630.28",COMMUNITY INTEGRATED CARE LTD.
Adults Wellbeing and Health,Head of Adults,Third Party Payments,478101,Purchase of Care,07-Jan-2013,2539005-1294327H,"3,630.28",COMMUNITY INTEGRATED CARE LTD.
Adults Wellbeing and Health,Head of Adults,Third Party Payments,478101,Purchase of Care,07-Jan-2013,2539005-1294608H,"3,630.28",COMMUNITY INTEGRATED CARE LTD.
Adults Wellbeing and Health,Head of Adults,Third Party Payments,470101,Purchase of Care,07-Jan-2013,2538881-2072319,"3,620.00",BOWES COURT CARE HOME.
Adults Wellbeing and Health,Head of Adults,Third Party Payments,478101,Purchase of Care,07-Jan-2013,2538342-1293622H,"3,614.60",ACCEPT CARE LTD.
Adults Wellbeing and Health,Head of Adults,Third Party Payments,478101,Purchase of Care,07-Jan-2013,2538972-1295436H,"3,610.39",CHOICES COMMUNITY CARE SERVICES LTD.
Adults Wellbeing and Health,Head of Adults,Third Party Payments,478101,Purchase of Care,07-Jan-2013,2538342-1295062H,"3,582.48",ACCEPT CARE LTD.
Adults Wellbeing and Health,Head of Adults,Third Party Payments,478101,Purchase of Care,07-Jan-2013,2539202-1299731H,"3,582.25",ESPA.
Adults Wellbeing and Health,Head of Adults,Third Party Payments,470101,Purchase of Care,07-Jan-2013,2539589-2072031,"3,547.32",LINDISFARNE COURT.
Adults Wellbeing and Health,Head of Adults,Third Party Payments,470101,Purchase of Care,07-Jan-2013,2540181-2072341,"3,537.68",SOUTH HIGHNAM CARE HOME.
Adults Wellbeing and Health,Head of Adults,Transfer Payments,515201,Social Services Clients,07-Jan-2013,2540319-1297336H,"3,530.12",REDACTED - PAYMENT TO INDIVIDUAL
Adults Wellbeing and Health,Head of Adults,Third Party Payments,470101,Purchase of Care,07-Jan-2013,2538901-2073871,"3,515.52",BROOMHOUSE CARE LTD.
Adults Wellbeing and Health,Head of Adults,Third Party Payments,478101,Purchase of Care,07-Jan-2013,2539935-1295200H,"3,515.04",OAKLEA TRUST.
Adults Wellbeing and Health,Head of Adults,Third Party Payments,470101,Purchase of Care,07-Jan-2013,2539575-2072323,"3,500.00",LIFESTYLES CARE & SUPPORT LTD.
Adults Wellbeing and Health,Head of Adults,Third Party Payments,478101,Purchase of Care,07-Jan-2013,2539352-1294836H,"3,479.24",INTEGRATION TRUST.
Adults Wellbeing and Health,Head of Adults,Third Party Payments,473101,Purchase of Care,07-Jan-2013,2540300-1295765D,"3,472.30",THORNBECK COLLEGE.
Adults Wellbeing and Health,Head of Adults,Third Party Payments,470101,Purchase of Care,07-Jan-2013,2538980-2069800,"3,452.74",CHURCH VIEW RESIDENTIAL CARE HOME.
Adults Wellbeing and Health,Head of Adults,Transfer Payments,515201,Social Services Clients,07-Jan-2013,2539903-1294301H,"3,447.08",REDACTED - PAYMENT TO INDIVIDUAL
Adults Wellbeing and Health,Head of Adults,Third Party Payments,478101,Purchase of Care,07-Jan-2013,2539005-1294184H,"3,434.64",COMMUNITY INTEGRATED CARE LTD.
Adults Wellbeing and Health,Head of Adults,Third Party Payments,478101,Purchase of Care,07-Jan-2013,2539005-1294416H,"3,434.64",COMMUNITY INTEGRATED CARE LTD.
Adults Wellbeing and Health,Head of Adults,Third Party Payments,478101,Purchase of Care,07-Jan-2013,2539005-1294623H,"3,434.64",COMMUNITY INTEGRATED CARE LTD.
Adults Wellbeing and Health,Head of Adults,Third Party Payments,478101,Purchase of Care,07-Jan-2013,2539005-1294962H,"3,434.64",COMMUNITY INTEGRATED CARE LTD.
Adults Wellbeing and Health,Head of Adults,Third Party Payments,474101,Purchase of Care,07-Jan-2013,2539930-2072051,"3,408.40",NORTHVIEW LODGE CARE HOME.
Adults Wellbeing and Health,Head of Adults,Third Party Payments,478101,Purchase of Care,07-Jan-2013,2539324-1295415H,"3,406.76",HIGHLEA CARE LTD.
Adults Wellbeing and Health,Head of Adults,Third Party Payments,470101,Purchase of Care,07-Jan-2013,2540277-2072027,"3,403.32",THE COUNTY DURHAM CHESHIRE HOME.
Adults Wellbeing and Health,Head of Adults,Third Party Payments,478101,Purchase of Care,07-Jan-2013,2539027-1295599H,"3,388.36",CREATIVE SUPPORT LTD.
Adults Wellbeing and Health,Head of Adults,Transfer Payments,515201,Social Services Clients,07-Jan-2013,2538689-1298181H,"3,380.32",REDACTED - PAYMENT TO INDIVIDUAL
Adults Wellbeing and Health,Head of Adults,Third Party Payments,478101,Purchase of Care,07-Jan-2013,2538815-1288152H,"3,378.20",AUTISM CARE UK (4) LTD.
Adults Wellbeing and Health,Head of Adults,Third Party Payments,478101,Purchase of Care,07-Jan-2013,2538815-1295112H,"3,378.20",AUTISM CARE UK (4) LTD.
Adults Wellbeing and Health,Head of Adults,Third Party Payments,478101,Purchase of Care,07-Jan-2013,2539925-1294797H,"3,375.00",NORTH FARM COTTAGES SUPPORTED LIVING.
Adults Wellbeing and Health,Head of Adults,Third Party Payments,478101,Purchase of Care,07-Jan-2013,2539925-1295114H,"3,370.00",NORTH FARM COTTAGES SUPPORTED LIVING.
Adults Wellbeing and Health,Head of Adults,Transfer Payments,515201,Social Services Clients,07-Jan-2013,2538343-1300290H,"3,359.60",REDACTED - PAYMENT TO INDIVIDUAL
Adults Wellbeing and Health,Head of Adults,Third Party Payments,474101,Purchase of Care,07-Jan-2013,2539209-2072772,"3,334.28",EUROPEAN CARE (ENGLAND) LTD.
Adults Wellbeing and Health,Head of Adults,Third Party Payments,470101,Purchase of Care,07-Jan-2013,2539678-2072007,"3,329.16",MARY CROSS TRUST.
Adults Wellbeing and Health,Head of Adults,Third Party Payments,478101,Purchase of Care,07-Jan-2013,2539022-1295423H,"3,311.24",CRAIGMORE / TAYLOURMADE DAY SERVICES.
Adults Wellbeing and Health,Head of Adults,Third Party Payments,478101,Purchase of Care,07-Jan-2013,2538972-1296031H,"3,304.54",CHOICES COMMUNITY CARE SERVICES LTD.
Adults Wellbeing and Health,Head of Adults,Third Party Payments,472101,Purchase of Care,07-Jan-2013,2539148-1295861H,"3,296.00",EASINGTON DISTRICT CROSSROADS.
Adults Wellbeing and Health,Head of Adults,Third Party Payments,478101,Purchase of Care,07-Jan-2013,2540044-1294365H,"3,249.32",REAL LIFE OPTIONS.
Adults Wellbeing and Health,Head of Adults,Third Party Payments,470101,Purchase of Care,07-Jan-2013,2539737-2072378,"3,246.32",MILBURY COMMUNITY SERVICES.
Adults Wellbeing and Health,Head of Adults,Third Party Payments,470101,Purchase of Care,07-Jan-2013,2539737-2072379,"3,246.32",MILBURY COMMUNITY SERVICES.
Adults Wellbeing and Health,Head of Adults,Third Party Payments,478101,Purchase of Care,07-Jan-2013,2539921-1295916H,"3,221.96",NORTH EAST AUTISM SOCIETY.
Adults Wellbeing and Health,Head of Adults,Third Party Payments,473101,Purchase of Care,07-Jan-2013,2539921-1295604D,"3,218.20",NORTH EAST AUTISM SOCIETY.
Adults Wellbeing and Health,Head of Adults,Third Party Payments,473101,Purchase of Care,07-Jan-2013,2539921-1295617D,"3,218.20",NORTH EAST AUTISM SOCIETY.
Adults Wellbeing and Health,Head of Adults,Third Party Payments,478101,Purchase of Care,07-Jan-2013,2538815-1288250H,"3,200.40",AUTISM CARE UK (4) LTD.
Adults Wellbeing and Health,Head of Adults,Third Party Payments,478101,Purchase of Care,07-Jan-2013,2538815-1295208H,"3,200.40",AUTISM CARE UK (4) LTD.
Adults Wellbeing and Health,Head of Adults,Third Party Payments,470101,Purchase of Care,07-Jan-2013,2539543-2072336,"3,188.60",LAMBTON GRANGE.
Adults Wellbeing and Health,Head of Adults,Third Party Payments,473101,Purchase of Care,07-Jan-2013,2539921-1294854D,"3,188.40",NORTH EAST AUTISM SOCIETY.
Adults Wellbeing and Health,Head of Adults,Third Party Payments,474101,Purchase of Care,07-Jan-2013,2540277-2072098,"3,179.32",THE COUNTY DURHAM CHESHIRE HOME.
Adults Wellbeing and Health,Head of Adults,Third Party Payments,470101,Purchase of Care,07-Jan-2013,2539737-2072380,"3,175.36",MILBURY COMMUNITY SERVICES.
Adults Wellbeing and Health,Head of Adults,Third Party Payments,470101,Purchase of Care,07-Jan-2013,2540050-2072329,"3,169.76",REDWORTH HOUSE.
Adults Wellbeing and Health,Head of Adults,Third Party Payments,470101,Purchase of Care,07-Jan-2013,2539909-2072427,"3,137.00",NEWLIFE CARE SERVICES LTD.
Adults Wellbeing and Health,Head of Adults,Third Party Payments,470101,Purchase of Care,07-Jan-2013,2539909-2072428,"3,137.00",NEWLIFE CARE SERVICES LTD.
Adults Wellbeing and Health,Head of Adults,Third Party Payments,470101,Purchase of Care,07-Jan-2013,2539909-2072429,"3,137.00",NEWLIFE CARE SERVICES LTD.
Adults Wellbeing and Health,Head of Adults,Third Party Payments,471101,Purchase of Care,07-Jan-2013,2538980-2074399,"3,132.40",CHURCH VIEW RESIDENTIAL CARE HOME.
Adults Wellbeing and Health,Head of Adults,Third Party Payments,478101,Purchase of Care,07-Jan-2013,2539921-1295378H,"3,107.88",NORTH EAST AUTISM SOCIETY.
Adults Wellbeing and Health,Head of Adults,Third Party Payments,478101,Purchase of Care,07-Jan-2013,2539921-1295603H,"3,107.88",NORTH EAST AUTISM SOCIETY.
Adults Wellbeing and Health,Head of Adults,Third Party Payments,478101,Purchase of Care,07-Jan-2013,2539921-1295616H,"3,107.88",NORTH EAST AUTISM SOCIETY.
Adults Wellbeing and Health,Head of Adults,Third Party Payments,478101,Purchase of Care,07-Jan-2013,2539921-1294360H,"3,105.44",NORTH EAST AUTISM SOCIETY.
Adults Wellbeing and Health,Head of Adults,Third Party Payments,478101,Purchase of Care,07-Jan-2013,2539921-1294689H,"3,105.44",NORTH EAST AUTISM SOCIETY.
Adults Wellbeing and Health,Head of Adults,Third Party Payments,478101,Purchase of Care,07-Jan-2013,2539921-1295096H,"3,105.44",NORTH EAST AUTISM SOCIETY.
Adults Wellbeing and Health,Head of Adults,Third Party Payments,471101,Purchase of Care,07-Jan-2013,2539934-2072992,"3,100.00",OAKLANDS CARE HOME.
Adults Wellbeing and Health,Head of Adults,Third Party Payments,478101,Purchase of Care,07-Jan-2013,2539935-1293452H,"3,083.04",OAKLEA TRUST.
Adults Wellbeing and Health,Head of Adults,Third Party Payments,478101,Purchase of Care,07-Jan-2013,2539935-1294069H,"3,083.04",OAKLEA TRUST.
Adults Wellbeing and Health,Head of Adults,Third Party Payments,478101,Purchase of Care,07-Jan-2013,2540193-1295871H,"3,077.40",ST ANNES COMMUNITY SERVICES.
Adults Wellbeing and Health,Head of Adults,Third Party Payments,478101,Purchase of Care,07-Jan-2013,2539202-1297011H,"3,066.00",ESPA.
Adults Wellbeing and Health,Head of Adults,Third Party Payments,473101,Purchase of Care,07-Jan-2013,2538816-1294445D,"3,026.13",AUTISM NORTH.
Adults Wellbeing and Health,Head of Adults,Transfer Payments,515201,Social Services Clients,07-Jan-2013,2538785-1294048H,"3,022.40",REDACTED - PAYMENT TO INDIVIDUAL
Adults Wellbeing and Health,Head of Adults,Third Party Payments,474101,Purchase of Care,07-Jan-2013,2539566-2072062,"3,017.32",LEONARD CHESHIRE FOUNDATION.
Adults Wellbeing and Health,Head of Adults,Transfer Payments,515201,Social Services Clients,07-Jan-2013,2540236-1298810H,"3,013.48",REDACTED - PAYMENT TO INDIVIDUAL
Adults Wellbeing and Health,Head of Adults,Third Party Payments,470101,Purchase of Care,07-Jan-2013,2538840-2073797,"3,013.30",BEACONSFIELD COURT.
Adults Wellbeing and Health,Head of Adults,Third Party Payments,478101,Purchase of Care,07-Jan-2013,2540329-1300329H,"3,012.30",UNITED RESPONSE.
Adults Wellbeing and Health,Head of Adults,Third Party Payments,478101,Purchase of Care,07-Jan-2013,2538342-1295253H,"3,011.36",ACCEPT CARE LTD.
Adults Wellbeing and Health,Head of Adults,Third Party Payments,473101,Purchase of Care,07-Jan-2013,2539921-1294684D,"2,993.60",NORTH EAST AUTISM SOCIETY.
Adults Wellbeing and Health,Head of Adults,Third Party Payments,470101,Purchase of Care,07-Jan-2013,2540191-2071983,"2,990.00",ST AIDENS COTTAGE.
Adults Wellbeing and Health,Head of Adults,Third Party Payments,478101,Purchase of Care,07-Jan-2013,2539324-1293427H,"2,987.56",HIGHLEA CARE LTD.
Adults Wellbeing and Health,Head of Adults,Third Party Payments,478101,Purchase of Care,07-Jan-2013,2539022-1298859H,"2,983.24",CRAIGMORE / TAYLOURMADE DAY SERVICES.
Adults Wellbeing and Health,Head of Adults,Transfer Payments,515201,Social Services Clients,07-Jan-2013,2538819-1296149H,"2,975.00",REDACTED - PAYMENT TO INDIVIDUAL
Adults Wellbeing and Health,Head of Adults,Third Party Payments,472101,Purchase of Care,07-Jan-2013,2539947-1294959H,"2,972.68",ORCHARD HOME CARE SERVICES LTD.
Adults Wellbeing and Health,Head of Adults,Third Party Payments,470101,Purchase of Care,07-Jan-2013,2539750-2072385,"2,972.36",MOORLAND HOLDINGS NE LTD.
Adults Wellbeing and Health,Head of Adults,Third Party Payments,478101,Purchase of Care,07-Jan-2013,2539724-1293850H,"2,967.88",MENCAP.
Adults Wellbeing and Health,Head of Adults,Third Party Payments,478101,Purchase of Care,07-Jan-2013,2539724-1293854H,"2,967.88",MENCAP.
Adults Wellbeing and Health,Head of Adults,Third Party Payments,478101,Purchase of Care,07-Jan-2013,2539724-1293973H,"2,967.88",MENCAP.
Adults Wellbeing and Health,Head of Adults,Third Party Payments,478101,Purchase of Care,07-Jan-2013,2539724-1295971H,"2,967.88",MENCAP.
Adults Wellbeing and Health,Head of Adults,Third Party Payments,470101,Purchase of Care,07-Jan-2013,2540380-2070638,"2,960.12",WEST HOUSE CARE HOME.
Adults Wellbeing and Health,Head of Adults,Third Party Payments,470101,Purchase of Care,07-Jan-2013,2540277-2072034,"2,958.52",THE COUNTY DURHAM CHESHIRE HOME.
Adults Wellbeing and Health,Head of Adults,Third Party Payments,470101,Purchase of Care,07-Jan-2013,2539098-2067850,"2,949.00",DERWENT CARE.
Adults Wellbeing and Health,Head of Adults,Third Party Payments,470101,Purchase of Care,07-Jan-2013,2539098-2067851,"2,949.00",DERWENT CARE.
Adults Wellbeing and Health,Head of Adults,Third Party Payments,470101,Purchase of Care,07-Jan-2013,2539098-2067852,"2,949.00",DERWENT CARE.
Adults Wellbeing and Health,Head of Adults,Third Party Payments,470101,Purchase of Care,07-Jan-2013,2539098-2067864,"2,949.00",DERWENT CARE.
Adults Wellbeing and Health,Head of Adults,Third Party Payments,470101,Purchase of Care,07-Jan-2013,2539098-2067865,"2,949.00",DERWENT CARE.
Adults Wellbeing and Health,Head of Adults,Third Party Payments,470101,Purchase of Care,07-Jan-2013,2539098-2067866,"2,949.00",DERWENT CARE.
Adults Wellbeing and Health,Head of Adults,Third Party Payments,470101,Purchase of Care,07-Jan-2013,2539098-2072447,"2,949.00",DERWENT CARE.
Adults Wellbeing and Health,Head of Adults,Third Party Payments,470101,Purchase of Care,07-Jan-2013,2539098-2072448,"2,949.00",DERWENT CARE.
Adults Wellbeing and Health,Head of Adults,Third Party Payments,470101,Purchase of Care,07-Jan-2013,2539098-2072449,"2,949.00",DERWENT CARE.
Adults Wellbeing and Health,Head of Adults,Third Party Payments,470101,Purchase of Care,07-Jan-2013,2539098-2072450,"2,949.00",DERWENT CARE.
Adults Wellbeing and Health,Head of Adults,Third Party Payments,470101,Purchase of Care,07-Jan-2013,2539098-2072451,"2,949.00",DERWENT CARE.
Adults Wellbeing and Health,Head of Adults,Third Party Payments,470101,Purchase of Care,07-Jan-2013,2539098-2072452,"2,949.00",DERWENT CARE.
Adults Wellbeing and Health,Head of Adults,Third Party Payments,478101,Purchase of Care,07-Jan-2013,2540009-1293810H,"2,948.40",PORTLAND DAY CARE.
Adults Wellbeing and Health,Head of Adults,Third Party Payments,470101,Purchase of Care,07-Jan-2013,2538342-1293517H,"2,933.48",ACCEPT CARE LTD.
Adults Wellbeing and Health,Head of Adults,Third Party Payments,478101,Purchase of Care,07-Jan-2013,2538342-1293814H,"2,920.52",ACCEPT CARE LTD.
Adults Wellbeing and Health,Head of Adults,Third Party Payments,478101,Purchase of Care,07-Jan-2013,2538902-1294309H,"2,919.08",BROTHERS OF CHARITY.
Adults Wellbeing and Health,Head of Adults,Transfer Payments,515209,Social Services Clients,07-Jan-2013,2539200-1293669D,"2,914.52",REDACTED - PAYMENT TO INDIVIDUAL
Adults Wellbeing and Health,Head of Adults,Third Party Payments,472101,Purchase of Care,07-Jan-2013,2538923-1295185H,"2,913.16",CAREWATCH (DURHAM & EASINGTON) FASTFLOW ACC.
Adults Wellbeing and Health,Head of Adults,Transfer Payments,515201,Social Services Clients,07-Jan-2013,2539364-1298966H,"2,912.72",REDACTED - PAYMENT TO INDIVIDUAL
Adults Wellbeing and Health,Head of Adults,Third Party Payments,470101,Purchase of Care,07-Jan-2013,2538815-2072314,"2,907.80",AUTISM CARE UK (4) LTD.
Adults Wellbeing and Health,Head of Adults,Third Party Payments,471101,Purchase of Care,07-Jan-2013,2538980-2073088,"2,889.32",CHURCH VIEW RESIDENTIAL CARE HOME.
Adults Wellbeing and Health,Head of Adults,Third Party Payments,470101,Purchase of Care,07-Jan-2013,2540401-2074258,"2,880.23",WYNYARD WOODS GRANGE RESIDENTIAL CARE HOME.
Adults Wellbeing and Health,Head of Adults,Third Party Payments,478101,Purchase of Care,07-Jan-2013,2540329-1293411H,"2,858.52",UNITED RESPONSE.
Adults Wellbeing and Health,Head of Adults,Third Party Payments,470101,Purchase of Care,07-Jan-2013,2540277-2072033,"2,857.36",THE COUNTY DURHAM CHESHIRE HOME.
Adults Wellbeing and Health,Head of Adults,Third Party Payments,470101,Purchase of Care,07-Jan-2013,2539994-2072011,"2,856.64",PERCY HEDLEY CENTRE.
Adults Wellbeing and Health,Head of Adults,Third Party Payments,472101,Purchase of Care,07-Jan-2013,2538923-1295154H,"2,847.96",CAREWATCH (DURHAM & EASINGTON) FASTFLOW ACC.
Adults Wellbeing and Health,Head of Adults,Third Party Payments,478101,Purchase of Care,07-Jan-2013,2540193-1296344H,"2,828.24",ST ANNES COMMUNITY SERVICES.
Adults Wellbeing and Health,Head of Adults,Third Party Payments,473101,Purchase of Care,07-Jan-2013,2539256-1294351D,"2,828.00",GAPPS DAY SERVICES LTD.
Adults Wellbeing and Health,Head of Adults,Third Party Payments,470101,Purchase of Care,07-Jan-2013,2539725-2070573,"2,824.97",MENTAL HEALTH CARE.
Adults Wellbeing and Health,Head of Adults,Third Party Payments,473101,Purchase of Care,07-Jan-2013,2540300-1295896D,"2,812.70",THORNBECK COLLEGE.
Adults Wellbeing and Health,Head of Adults,Third Party Payments,474101,Purchase of Care,07-Jan-2013,2538921-2072040,"2,808.00",CARELINE LIFESTYLES LTD.
Adults Wellbeing and Health,Head of Adults,Third Party Payments,473101,Purchase of Care,07-Jan-2013,2539202-1295884D,"2,802.40",ESPA.
Adults Wellbeing and Health,Head of Adults,Third Party Payments,470101,Purchase of Care,07-Jan-2013,2540277-2072035,"2,784.72",THE COUNTY DURHAM CHESHIRE HOME.
Adults Wellbeing and Health,Head of Adults,Transfer Payments,515201,Social Services Clients,07-Jan-2013,2539738-1298106H,"2,769.40",REDACTED - PAYMENT TO INDIVIDUAL
Adults Wellbeing and Health,Head of Adults,Transfer Payments,515209,Social Services Clients,07-Jan-2013,2539340-1295225D,"2,767.36",REDACTED - PAYMENT TO INDIVIDUAL
Adults Wellbeing and Health,Head of Adults,Third Party Payments,473101,Purchase of Care,07-Jan-2013,2539511-1294124D,"2,748.80",KAYDAR.
Adults Wellbeing and Health,Head of Adults,Transfer Payments,515201,Social Services Clients,07-Jan-2013,2538459-1299046H,"2,743.00",REDACTED - PAYMENT TO INDIVIDUAL
Adults Wellbeing and Health,Head of Adults,Transfer Payments,515201,Social Services Clients,07-Jan-2013,2538763-1299269H,"2,724.00",REDACTED - PAYMENT TO INDIVIDUAL
Adults Wellbeing and Health,Head of Adults,Third Party Payments,470101,Purchase of Care,07-Jan-2013,2540255-2074124,"2,694.96",TAMARIS HEALTHCARE LTD.
Adults Wellbeing and Health,Head of Adults,Third Party Payments,470101,Purchase of Care,07-Jan-2013,2539750-2072349,"2,694.24",MOORLAND HOLDINGS NE LTD.
Adults Wellbeing and Health,Head of Adults,Third Party Payments,470101,Purchase of Care,07-Jan-2013,2539750-2072386,"2,682.84",MOORLAND HOLDINGS NE LTD.
Adults Wellbeing and Health,Head of Adults,Transfer Payments,515201,Social Services Clients,07-Jan-2013,2539873-1300291H,"2,679.72",REDACTED - PAYMENT TO INDIVIDUAL
Adults Wellbeing and Health,Head of Adults,Third Party Payments,470101,Purchase of Care,07-Jan-2013,2540191-2071982,"2,678.60",ST AIDENS COTTAGE.
Adults Wellbeing and Health,Head of Adults,Third Party Payments,471101,Purchase of Care,07-Jan-2013,2538683-2073618,"2,675.60",ACORN GRANGE NURSING HOME.
Adults Wellbeing and Health,Head of Adults,Third Party Payments,478101,Purchase of Care,07-Jan-2013,2538342-1294845H,"2,673.88",ACCEPT CARE LTD.
Adults Wellbeing and Health,Head of Adults,Third Party Payments,478101,Purchase of Care,07-Jan-2013,2539324-1295382H,"2,672.56",HIGHLEA CARE LTD.
Adults Wellbeing and Health,Head of Adults,Third Party Payments,478101,Purchase of Care,07-Jan-2013,2539724-1298492H,"2,656.36",MENCAP.
Adults Wellbeing and Health,Head of Adults,Third Party Payments,470101,Purchase of Care,07-Jan-2013,2540082-2069782,"2,653.20",ROSE LODGE CARE HOME.
Adults Wellbeing and Health,Head of Adults,Third Party Payments,472101,Purchase of Care,07-Jan-2013,2540175-1300224H,"2,644.13",SOCIAL RESOURCE CENTRE LTD.
Adults Wellbeing and Health,Head of Adults,Third Party Payments,478101,Purchase of Care,07-Jan-2013,2539935-1294479H,"2,629.52",OAKLEA TRUST.
Adults Wellbeing and Health,Head of Adults,Third Party Payments,478101,Purchase of Care,07-Jan-2013,2539324-1293438H,"2,627.56",HIGHLEA CARE LTD.
Adults Wellbeing and Health,Head of Adults,Transfer Payments,515201,Social Services Clients,07-Jan-2013,2538837-1294195H,"2,616.00",REDACTED - PAYMENT TO INDIVIDUAL
Adults Wellbeing and Health,Head of Adults,Third Party Payments,471101,Purchase of Care,07-Jan-2013,2540406-2074262,"2,613.53",YODEN LODGE CARE HOME.
Adults Wellbeing and Health,Head of Adults,Third Party Payments,473101,Purchase of Care,07-Jan-2013,2539921-1296201D,"2,612.60",NORTH EAST AUTISM SOCIETY.
Adults Wellbeing and Health,Head of Adults,Third Party Payments,471101,Purchase of Care,07-Jan-2013,2538873-2073781,"2,610.34",BISHOPSGATE LODGE.
Adults Wellbeing and Health,Head of Adults,Third Party Payments,471101,Purchase of Care,07-Jan-2013,2539602-2073771,"2,609.12",LOTHIAN HOUSE NURSING HOME.
Adults Wellbeing and Health,Head of Adults,Third Party Payments,470101,Purchase of Care,07-Jan-2013,2538337-2074202,"2,607.84",ABBEYVALE.
Adults Wellbeing and Health,Head of Adults,Third Party Payments,471101,Purchase of Care,07-Jan-2013,2538948-2063629,"2,600.00",CEDAR CARE HOMES LTD.
Adults Wellbeing and Health,Head of Adults,Third Party Payments,471101,Purchase of Care,07-Jan-2013,2538948-2072995,"2,600.00",CEDAR CARE HOMES LTD.
Adults Wellbeing and Health,Head of Adults,Third Party Payments,470101,Purchase of Care,07-Jan-2013,2539959-2072018,"2,600.00",PARKLANDS NURSING HOME.
Adults Wellbeing and Health,Head of Adults,Third Party Payments,474101,Purchase of Care,07-Jan-2013,2539959-2072078,"2,600.00",PARKLANDS NURSING HOME.
Adults Wellbeing and Health,Head of Adults,Third Party Payments,474101,Purchase of Care,07-Jan-2013,2539959-2072084,"2,600.00",PARKLANDS NURSING HOME.
Adults Wellbeing and Health,Head of Adults,Third Party Payments,474101,Purchase of Care,07-Jan-2013,2539959-2072085,"2,600.00",PARKLANDS NURSING HOME.
Adults Wellbeing and Health,Head of Adults,Third Party Payments,474101,Purchase of Care,07-Jan-2013,2539959-2072088,"2,600.00",PARKLANDS NURSING HOME.
Adults Wellbeing and Health,Head of Adults,Transfer Payments,515201,Social Services Clients,07-Jan-2013,2539179-1300049H,"2,594.80",REDACTED - PAYMENT TO INDIVIDUAL
Adults Wellbeing and Health,Head of Adults,Third Party Payments,478101,Purchase of Care,07-Jan-2013,2539022-1293845H,"2,594.24",CRAIGMORE / TAYLOURMADE DAY SERVICES.
Adults Wellbeing and Health,Head of Adults,Third Party Payments,470101,Purchase of Care,07-Jan-2013,2540383-2070295,"2,586.87",WESTERLEIGH NURSING HOME.
Adults Wellbeing and Health,Head of Adults,Third Party Payments,470101,Purchase of Care,07-Jan-2013,2539183-2072006,"2,574.60",ELPHA LODGE LTD.
Adults Wellbeing and Health,Head of Adults,Third Party Payments,474101,Purchase of Care,07-Jan-2013,2540277-2072109,"2,565.36",THE COUNTY DURHAM CHESHIRE HOME.
Adults Wellbeing and Health,Head of Adults,Third Party Payments,474101,Purchase of Care,07-Jan-2013,2538832-2072065,"2,552.00",BARCHESTER HEALTHCARE HOMES LTD.
Adults Wellbeing and Health,Head of Adults,Third Party Payments,472101,Purchase of Care,07-Jan-2013,2539947-1296619H,"2,548.89",ORCHARD HOME CARE SERVICES LTD.
Adults Wellbeing and Health,Head of Adults,Transfer Payments,515201,Social Services Clients,07-Jan-2013,2538381-1299006H,"2,542.40",REDACTED - PAYMENT TO INDIVIDUAL
Adults Wellbeing and Health,Head of Adults,Third Party Payments,478101,Purchase of Care,07-Jan-2013,2539921-1294838H,"2,525.36",NORTH EAST AUTISM SOCIETY.
Adults Wellbeing and Health,Head of Adults,Transfer Payments,515209,Social Services Clients,07-Jan-2013,2538397-1298038D,"2,520.00",REDACTED - PAYMENT TO INDIVIDUAL
Adults Wellbeing and Health,Head of Adults,Third Party Payments,472101,Purchase of Care,07-Jan-2013,2539736-1295381H,"2,517.89",MIDDLETON CARE LTD.
Adults Wellbeing and Health,Head of Adults,Third Party Payments,470101,Purchase of Care,07-Jan-2013,2539335-2070099,"2,514.00",HUNDENS PARK CARE CENTRE.
Adults Wellbeing and Health,Head of Adults,Third Party Payments,470101,Purchase of Care,07-Jan-2013,2539994-2072012,"2,513.68",PERCY HEDLEY CENTRE.
Adults Wellbeing and Health,Head of Adults,Third Party Payments,470101,Purchase of Care,07-Jan-2013,2538337-2072190,"2,500.00",ABBEYVALE.
Adults Wellbeing and Health,Head of Adults,Transfer Payments,515201,Social Services Clients,07-Jan-2013,2538940-1297903H,"2,497.00",REDACTED - PAYMENT TO INDIVIDUAL
Adults Wellbeing and Health,Head of Adults,Third Party Payments,470101,Purchase of Care,07-Jan-2013,2540191-2071984,"2,496.40",ST AIDENS COTTAGE.
Adults Wellbeing and Health,Head of Adults,Third Party Payments,478101,Purchase of Care,07-Jan-2013,2539324-1293706H,"2,496.00",HIGHLEA CARE LTD.
Adults Wellbeing and Health,Head of Adults,Third Party Payments,472101,Purchase of Care,07-Jan-2013,2540175-1293784H,"2,489.22",SOCIAL RESOURCE CENTRE LTD.
Adults Wellbeing and Health,Head of Adults,Third Party Payments,470101,Purchase of Care,07-Jan-2013,2539750-2072348,"2,488.84",MOORLAND HOLDINGS NE LTD.
Adults Wellbeing and Health,Head of Adults,Transfer Payments,515201,Social Services Clients,07-Jan-2013,2539338-1294545H,"2,484.00",REDACTED - PAYMENT TO INDIVIDUAL
Adults Wellbeing and Health,Head of Adults,Third Party Payments,471101,Purchase of Care,07-Jan-2013,2539254-2073009,"2,475.36",GAINFORD CARE HOMES LTD.
Adults Wellbeing and Health,Head of Adults,Transfer Payments,515209,Social Services Clients,07-Jan-2013,2539071-1297671D,"2,464.00",REDACTED - PAYMENT TO INDIVIDUAL
Adults Wellbeing and Health,Head of Adults,Transfer Payments,515209,Social Services Clients,07-Jan-2013,2540033-1295385D,"2,464.00",REDACTED - PAYMENT TO INDIVIDUAL
Adults Wellbeing and Health,Head of Adults,Third Party Payments,470101,Purchase of Care,07-Jan-2013,2538922-2072328,"2,461.68",CARELINE LIFESTYLES LTD.
Adults Wellbeing and Health,Head of Adults,Third Party Payments,478101,Purchase of Care,07-Jan-2013,2538923-1293844H,"2,461.04",CAREWATCH (DURHAM & EASINGTON) FASTFLOW ACC.
Adults Wellbeing and Health,Head of Adults,Third Party Payments,478101,Purchase of Care,07-Jan-2013,2538923-1293786H,"2,460.76",CAREWATCH (DURHAM & EASINGTON) FASTFLOW ACC.
Adults Wellbeing and Health,Head of Adults,Transfer Payments,515201,Social Services Clients,07-Jan-2013,2538529-1298377H,"2,451.60",REDACTED - PAYMENT TO INDIVIDUAL
Adults Wellbeing and Health,Head of Adults,Third Party Payments,470101,Purchase of Care,07-Jan-2013,2540010-2072372,"2,448.36",POSITIVE APPROACH SERVICES LTD.
Adults Wellbeing and Health,Head of Adults,Third Party Payments,478101,Purchase of Care,07-Jan-2013,2539534-1294440H,"2,443.24",KINDSTREAM CARE LTD.
Adults Wellbeing and Health,Head of Adults,Third Party Payments,472101,Purchase of Care,07-Jan-2013,2539996-1298060H,"2,439.00",PERFECT CARE LTD.
Adults Wellbeing and Health,Head of Adults,Third Party Payments,470101,Purchase of Care,07-Jan-2013,2539213-2070179,"2,434.17",EUROPEAN CARE (ENGLAND) LTD.
Adults Wellbeing and Health,Head of Adults,Third Party Payments,470101,Purchase of Care,07-Jan-2013,2539031-2072250,"2,428.00",CROFT UNIT.
Adults Wellbeing and Health,Head of Adults,Third Party Payments,474101,Purchase of Care,07-Jan-2013,2540195-2072181,"2,428.00",ST HELENS NURSING HOME.
Adults Wellbeing and Health,Head of Adults,Transfer Payments,515201,Social Services Clients,07-Jan-2013,2538525-1293740H,"2,425.56",REDACTED - PAYMENT TO INDIVIDUAL
Adults Wellbeing and Health,Head of Adults,Third Party Payments,474101,Purchase of Care,07-Jan-2013,2539959-2072171,"2,406.00",PARKLANDS NURSING HOME.
Adults Wellbeing and Health,Head of Adults,Third Party Payments,470101,Purchase of Care,07-Jan-2013,2538337-2072219,"2,400.00",ABBEYVALE.
Adults Wellbeing and Health,Head of Adults,Third Party Payments,470101,Purchase of Care,07-Jan-2013,2538337-2072220,"2,400.00",ABBEYVALE.
Adults Wellbeing and Health,Head of Adults,Third Party Payments,470101,Purchase of Care,07-Jan-2013,2538337-2072221,"2,400.00",ABBEYVALE.
Adults Wellbeing and Health,Head of Adults,Third Party Payments,470101,Purchase of Care,07-Jan-2013,2538337-2072223,"2,400.00",ABBEYVALE.
Adults Wellbeing and Health,Head of Adults,Third Party Payments,470101,Purchase of Care,07-Jan-2013,2538337-2072225,"2,400.00",ABBEYVALE.
Adults Wellbeing and Health,Head of Adults,Third Party Payments,470101,Purchase of Care,07-Jan-2013,2538337-2072226,"2,400.00",ABBEYVALE.
Adults Wellbeing and Health,Head of Adults,Transfer Payments,515209,Social Services Clients,07-Jan-2013,2538545-1296830D,"2,400.00",REDACTED - PAYMENT TO INDIVIDUAL
Adults Wellbeing and Health,Head of Adults,Third Party Payments,474101,Purchase of Care,07-Jan-2013,2538881-2072048,"2,400.00",BOWES COURT CARE HOME.
Adults Wellbeing and Health,Head of Adults,Third Party Payments,474101,Purchase of Care,07-Jan-2013,2538881-2072049,"2,400.00",BOWES COURT CARE HOME.
Adults Wellbeing and Health,Head of Adults,Third Party Payments,470101,Purchase of Care,07-Jan-2013,2540281-2072189,"2,400.00",THE GROVE & COURTYARD.
Adults Wellbeing and Health,Head of Adults,Third Party Payments,473101,Purchase of Care,07-Jan-2013,2539921-1295917D,"2,399.40",NORTH EAST AUTISM SOCIETY.
Adults Wellbeing and Health,Head of Adults,Transfer Payments,515201,Social Services Clients,07-Jan-2013,2539710-1295205H,"2,387.44",REDACTED - PAYMENT TO INDIVIDUAL
Adults Wellbeing and Health,Head of Adults,Transfer Payments,515201,Social Services Clients,07-Jan-2013,2538626-1295780H,"2,380.00",REDACTED - PAYMENT TO INDIVIDUAL
Adults Wellbeing and Health,Head of Adults,Third Party Payments,474101,Purchase of Care,07-Jan-2013,2539232-2072510,"2,373.64",FOUR SEASONS HEALTH CARE..
Adults Wellbeing and Health,Head of Adults,Transfer Payments,515201,Social Services Clients,07-Jan-2013,2539918-1299107H,"2,368.49",REDACTED - PAYMENT TO INDIVIDUAL
Adults Wellbeing and Health,Head of Adults,Third Party Payments,470101,Purchase of Care,07-Jan-2013,2540191-2071980,"2,362.52",ST AIDENS COTTAGE.
Adults Wellbeing and Health,Head of Adults,Third Party Payments,470101,Purchase of Care,07-Jan-2013,2539750-2072350,"2,354.12",MOORLAND HOLDINGS NE LTD.
Adults Wellbeing and Health,Head of Adults,Third Party Payments,470101,Purchase of Care,07-Jan-2013,2538800-2069734,"2,352.00",ASHFIELD NURSING HOME LTD.
Adults Wellbeing and Health,Head of Adults,Third Party Payments,474101,Purchase of Care,07-Jan-2013,2538881-2072505,"2,351.20",BOWES COURT CARE HOME.
Adults Wellbeing and Health,Head of Adults,Third Party Payments,474101,Purchase of Care,07-Jan-2013,2538832-2073829,"2,349.29",BARCHESTER HEALTHCARE HOMES LTD.
Adults Wellbeing and Health,Head of Adults,Transfer Payments,515201,Social Services Clients,07-Jan-2013,2540108-1296269H,"2,340.00",REDACTED - PAYMENT TO INDIVIDUAL
Adults Wellbeing and Health,Head of Adults,Third Party Payments,474101,Purchase of Care,07-Jan-2013,2539254-2074038,"2,334.00",GAINFORD CARE HOMES LTD.
Adults Wellbeing and Health,Head of Adults,Third Party Payments,470101,Purchase of Care,07-Jan-2013,2540060-2074144,"2,326.28",RICHMOND COURT.
Adults Wellbeing and Health,Head of Adults,Third Party Payments,478101,Purchase of Care,07-Jan-2013,2539077-1293924H,"2,323.44",DEACONSTAR LTD.
Adults Wellbeing and Health,Head of Adults,Third Party Payments,473101,Purchase of Care,07-Jan-2013,2539921-1295379D,"2,319.80",NORTH EAST AUTISM SOCIETY.
Adults Wellbeing and Health,Head of Adults,Third Party Payments,470101,Purchase of Care,07-Jan-2013,2539511-2072445,"2,319.48",KAYDAR.
Adults Wellbeing and Health,Head of Adults,Third Party Payments,470101,Purchase of Care,07-Jan-2013,2539574-2072269,"2,313.64",LIFESTYLES CARE & SUPPORT LTD.
Adults Wellbeing and Health,Head of Adults,Third Party Payments,470101,Purchase of Care,07-Jan-2013,2540400-2072207,"2,312.46",WOODLAND CARE LTD.
Adults Wellbeing and Health,Head of Adults,Third Party Payments,474101,Purchase of Care,07-Jan-2013,2540412-2062626,"2,308.00",ZEST CARE HOMES LTD.
Adults Wellbeing and Health,Head of Adults,Third Party Payments,474101,Purchase of Care,07-Jan-2013,2540412-2072042,"2,308.00",ZEST CARE HOMES LTD.
Adults Wellbeing and Health,Head of Adults,Third Party Payments,474101,Purchase of Care,07-Jan-2013,2539533-2072145,"2,304.00",KIMBLESWORTH NURSING HOME.
Adults Wellbeing and Health,Head of Adults,Third Party Payments,474101,Purchase of Care,07-Jan-2013,2538336-2072055,"2,303.28",ABBEYMOOR CLINIC.
Adults Wellbeing and Health,Head of Adults,Third Party Payments,470101,Purchase of Care,07-Jan-2013,2539932-2072481,"2,302.52",NSS (NE) LTD.
Adults Wellbeing and Health,Head of Adults,Third Party Payments,470101,Purchase of Care,07-Jan-2013,2538881-2072316,"2,300.00",BOWES COURT CARE HOME.
Adults Wellbeing and Health,Head of Adults,Third Party Payments,470101,Purchase of Care,07-Jan-2013,2540121-2074118,"2,296.27",SANDRINGHAM CARE HOME.
Adults Wellbeing and Health,Head of Adults,Third Party Payments,470101,Purchase of Care,07-Jan-2013,2539543-2072338,"2,294.80",LAMBTON GRANGE.
Adults Wellbeing and Health,Head of Adults,Third Party Payments,472101,Purchase of Care,07-Jan-2013,2538923-1296024H,"2,286.32",CAREWATCH (DURHAM & EASINGTON) FASTFLOW ACC.
Adults Wellbeing and Health,Head of Adults,Third Party Payments,478101,Purchase of Care,07-Jan-2013,2539935-1293560H,"2,285.40",OAKLEA TRUST.
Adults Wellbeing and Health,Head of Adults,Third Party Payments,470101,Purchase of Care,07-Jan-2013,2539543-2072339,"2,284.72",LAMBTON GRANGE.
Adults Wellbeing and Health,Head of Adults,Third Party Payments,478101,Purchase of Care,07-Jan-2013,2539324-1293497H,"2,281.64",HIGHLEA CARE LTD.
Adults Wellbeing and Health,Head of Adults,Third Party Payments,472101,Purchase of Care,07-Jan-2013,2539724-1294411H,"2,281.40",MENCAP.
Adults Wellbeing and Health,Head of Adults,Third Party Payments,473101,Purchase of Care,07-Jan-2013,2539921-1294889D,"2,274.20",NORTH EAST AUTISM SOCIETY.
Adults Wellbeing and Health,Head of Adults,Transfer Payments,515201,Social Services Clients,07-Jan-2013,2540221-1294133H,"2,270.00",REDACTED - PAYMENT TO INDIVIDUAL
Adults Wellbeing and Health,Head of Adults,Third Party Payments,478101,Purchase of Care,07-Jan-2013,2539935-1295395H,"2,268.00",OAKLEA TRUST.
Adults Wellbeing and Health,Head of Adults,Third Party Payments,470101,Purchase of Care,07-Jan-2013,2539316-2070429,"2,255.22",HELEN MCARDLE CARE.
Adults Wellbeing and Health,Head of Adults,Third Party Payments,471101,Purchase of Care,07-Jan-2013,2538747-2073681,"2,247.24",ANCYRA HEALTH LTD (IN ADMINISTRATION) FORMERLY AERMID HEALTH CARE (UK) LTD).
Adults Wellbeing and Health,Head of Adults,Transfer Payments,515201,Social Services Clients,07-Jan-2013,2539059-1294731H,"2,245.72",REDACTED - PAYMENT TO INDIVIDUAL
Adults Wellbeing and Health,Head of Adults,Third Party Payments,478101,Purchase of Care,07-Jan-2013,2539324-1294432H,"2,242.48",HIGHLEA CARE LTD.
Adults Wellbeing and Health,Head of Adults,Third Party Payments,470101,Purchase of Care,07-Jan-2013,2540016-2072433,"2,240.00",POTENSIAL LTD.
Adults Wellbeing and Health,Head of Adults,Third Party Payments,470101,Purchase of Care,07-Jan-2013,2540016-2072453,"2,240.00",POTENSIAL LTD.
Adults Wellbeing and Health,Head of Adults,Third Party Payments,470101,Purchase of Care,07-Jan-2013,2540016-2072454,"2,240.00",POTENSIAL LTD.
Adults Wellbeing and Health,Head of Adults,Third Party Payments,471101,Purchase of Care,07-Jan-2013,2540286-2058428,"2,240.00",THE OLD VICARAGE..
Adults Wellbeing and Health,Head of Adults,Third Party Payments,471101,Purchase of Care,07-Jan-2013,2540286-2072999,"2,240.00",THE OLD VICARAGE..
Adults Wellbeing and Health,Head of Adults,Third Party Payments,472101,Purchase of Care,07-Jan-2013,2539037-1299030H,"2,239.22",DALE CARE LTD.
Adults Wellbeing and Health,Head of Adults,Third Party Payments,473101,Purchase of Care,07-Jan-2013,2539921-1294361D,"2,231.80",NORTH EAST AUTISM SOCIETY.
Adults Wellbeing and Health,Head of Adults,Third Party Payments,473101,Purchase of Care,07-Jan-2013,2539921-1294690D,"2,231.80",NORTH EAST AUTISM SOCIETY.
Adults Wellbeing and Health,Head of Adults,Third Party Payments,473101,Purchase of Care,07-Jan-2013,2539921-1295097D,"2,231.80",NORTH EAST AUTISM SOCIETY.
Adults Wellbeing and Health,Head of Adults,Third Party Payments,473101,Purchase of Care,07-Jan-2013,2540300-1295720D,"2,224.70",THORNBECK COLLEGE.
Adults Wellbeing and Health,Head of Adults,Third Party Payments,478101,Purchase of Care,07-Jan-2013,2539872-1293614H,"2,224.12",REDACTED - PAYMENT TO INDIVIDUAL
Adults Wellbeing and Health,Head of Adults,Third Party Payments,478101,Purchase of Care,07-Jan-2013,2539872-1294736H,"2,224.12",REDACTED - PAYMENT TO INDIVIDUAL
Adults Wellbeing and Health,Head of Adults,Third Party Payments,478101,Purchase of Care,07-Jan-2013,2538972-1295147H,"2,220.40",CHOICES COMMUNITY CARE SERVICES LTD.
Adults Wellbeing and Health,Head of Adults,Third Party Payments,478101,Purchase of Care,07-Jan-2013,2539534-1294436H,"2,217.64",KINDSTREAM CARE LTD.
Adults Wellbeing and Health,Head of Adults,Third Party Payments,472101,Purchase of Care,07-Jan-2013,2538879-1299114H,"2,208.34",BOLTONSHAW HOMECARE.
Adults Wellbeing and Health,Head of Adults,Third Party Payments,470101,Purchase of Care,07-Jan-2013,2539140-2071971,"2,200.00",DURHAM CARELINE LTD.
Adults Wellbeing and Health,Head of Adults,Third Party Payments,474101,Purchase of Care,07-Jan-2013,2539930-2072125,"2,200.00",NORTHVIEW LODGE CARE HOME.
Adults Wellbeing and Health,Head of Adults,Third Party Payments,478101,Purchase of Care,07-Jan-2013,2540009-1294792H,"2,194.92",PORTLAND DAY CARE.
Adults Wellbeing and Health,Head of Adults,Third Party Payments,473101,Purchase of Care,07-Jan-2013,2539921-1294837D,"2,190.20",NORTH EAST AUTISM SOCIETY.
Adults Wellbeing and Health,Head of Adults,Third Party Payments,470101,Purchase of Care,07-Jan-2013,2539543-2072333,"2,188.00",LAMBTON GRANGE.
Adults Wellbeing and Health,Head of Adults,Third Party Payments,470101,Purchase of Care,07-Jan-2013,2538894-2072393,"2,185.76",BRIDGEWOOD TRUST LTD.
Adults Wellbeing and Health,Head of Adults,Third Party Payments,474101,Purchase of Care,07-Jan-2013,2539298-2071135,"2,185.00",HADRIAN HEALTHCARE (NE) LTD (ORCHARD MANOR).
Adults Wellbeing and Health,Head of Adults,Transfer Payments,515201,Social Services Clients,07-Jan-2013,2539458-1293907H,"2,179.24",REDACTED - PAYMENT TO INDIVIDUAL
Adults Wellbeing and Health,Head of Adults,Third Party Payments,472101,Purchase of Care,07-Jan-2013,2539519-1294903H,"2,174.02",KELLY PARK CARING AGENCY LTD.
Adults Wellbeing and Health,Head of Adults,Transfer Payments,515209,Social Services Clients,07-Jan-2013,2539558-1294832D,"2,166.14",REDACTED - PAYMENT TO INDIVIDUAL
Adults Wellbeing and Health,Head of Adults,Third Party Payments,471101,Purchase of Care,07-Jan-2013,2539298-2073172,"2,165.76",HADRIAN HEALTHCARE (NE) LTD (ORCHARD MANOR).
Adults Wellbeing and Health,Head of Adults,Third Party Payments,470101,Purchase of Care,07-Jan-2013,2539543-2072335,"2,164.72",LAMBTON GRANGE.
Adults Wellbeing and Health,Head of Adults,Third Party Payments,470101,Purchase of Care,07-Jan-2013,2539543-2072337,"2,164.72",LAMBTON GRANGE.
Adults Wellbeing and Health,Head of Adults,Third Party Payments,478101,Purchase of Care,07-Jan-2013,2539022-1296447H,"2,164.04",CRAIGMORE / TAYLOURMADE DAY SERVICES.
Adults Wellbeing and Health,Head of Adults,Third Party Payments,472101,Purchase of Care,07-Jan-2013,2539947-1293778H,"2,163.12",ORCHARD HOME CARE SERVICES LTD.
Adults Wellbeing and Health,Head of Adults,Third Party Payments,470101,Purchase of Care,07-Jan-2013,2538845-2072356,"2,145.00",BEECHWOOD RESIDENTIAL CARE SERVICES.
Adults Wellbeing and Health,Head of Adults,Third Party Payments,470101,Purchase of Care,07-Jan-2013,2538845-2072357,"2,145.00",BEECHWOOD RESIDENTIAL CARE SERVICES.
Adults Wellbeing and Health,Head of Adults,Third Party Payments,470101,Purchase of Care,07-Jan-2013,2538845-2072358,"2,145.00",BEECHWOOD RESIDENTIAL CARE SERVICES.
Adults Wellbeing and Health,Head of Adults,Third Party Payments,474101,Purchase of Care,07-Jan-2013,2539298-2071127,"2,145.00",HADRIAN HEALTHCARE (NE) LTD (ORCHARD MANOR).
Adults Wellbeing and Health,Head of Adults,Third Party Payments,471101,Purchase of Care,07-Jan-2013,2539653-2073458,"2,132.09",MARIA MALLABAND NURSING HOMES LTD.
Adults Wellbeing and Health,Head of Adults,Third Party Payments,471101,Purchase of Care,07-Jan-2013,2539298-2073176,"2,125.76",HADRIAN HEALTHCARE (NE) LTD (ORCHARD MANOR).
Adults Wellbeing and Health,Head of Adults,Third Party Payments,471101,Purchase of Care,07-Jan-2013,2539298-2073178,"2,125.76",HADRIAN HEALTHCARE (NE) LTD (ORCHARD MANOR).
Adults Wellbeing and Health,Head of Adults,Third Party Payments,474101,Purchase of Care,07-Jan-2013,2540277-2072107,"2,125.68",THE COUNTY DURHAM CHESHIRE HOME.
Adults Wellbeing and Health,Head of Adults,Third Party Payments,478101,Purchase of Care,07-Jan-2013,2539352-1294193H,"2,122.40",INTEGRATION TRUST.
Adults Wellbeing and Health,Head of Adults,Third Party Payments,478101,Purchase of Care,07-Jan-2013,2539352-1294176H,"2,122.36",INTEGRATION TRUST.
Adults Wellbeing and Health,Head of Adults,Third Party Payments,478101,Purchase of Care,07-Jan-2013,2539724-1294945H,"2,115.12",MENCAP.
Adults Wellbeing and Health,Head of Adults,Third Party Payments,474101,Purchase of Care,07-Jan-2013,2538832-2072066,"2,112.28",BARCHESTER HEALTHCARE HOMES LTD.
Adults Wellbeing and Health,Head of Adults,Third Party Payments,474101,Purchase of Care,07-Jan-2013,2538832-2072072,"2,112.28",BARCHESTER HEALTHCARE HOMES LTD.
Adults Wellbeing and Health,Head of Adults,Third Party Payments,474101,Purchase of Care,07-Jan-2013,2538832-2072151,"2,112.28",BARCHESTER HEALTHCARE HOMES LTD.
Adults Wellbeing and Health,Head of Adults,Third Party Payments,474101,Purchase of Care,07-Jan-2013,2539085-2072053,"2,112.28",DEFOE COURT.
Adults Wellbeing and Health,Head of Adults,Third Party Payments,474101,Purchase of Care,07-Jan-2013,2540018-2072038,"2,112.28",PREMIER CARE HOMES LTD.
Adults Wellbeing and Health,Head of Adults,Third Party Payments,474101,Purchase of Care,07-Jan-2013,2540382-2072117,"2,112.28",WEST LODGE HOMES.
Adults Wellbeing and Health,Head of Adults,Third Party Payments,474101,Purchase of Care,07-Jan-2013,2540405-2072081,"2,112.28",YODEN HALL NURSING HOME.
Adults Wellbeing and Health,Head of Adults,Third Party Payments,474101,Purchase of Care,07-Jan-2013,2539021-2071401,"2,109.16",CRAIGARRAN CARE HOME WITH NURSING.
Adults Wellbeing and Health,Head of Adults,Third Party Payments,474101,Purchase of Care,07-Jan-2013,2540373-2071034,"2,106.40",WATERSIDE LODGE CARE HOME.
Adults Wellbeing and Health,Head of Adults,Third Party Payments,470101,Purchase of Care,07-Jan-2013,2540010-2072363,"2,100.00",POSITIVE APPROACH SERVICES LTD.
Adults Wellbeing and Health,Head of Adults,Third Party Payments,470101,Purchase of Care,07-Jan-2013,2539298-2069927,"2,097.24",HADRIAN HEALTHCARE (NE) LTD (ORCHARD MANOR).
Adults Wellbeing and Health,Head of Adults,Third Party Payments,470101,Purchase of Care,07-Jan-2013,2539298-2069932,"2,097.24",HADRIAN HEALTHCARE (NE) LTD (ORCHARD MANOR).
Adults Wellbeing and Health,Head of Adults,Third Party Payments,470101,Purchase of Care,07-Jan-2013,2539931-2069903,"2,096.00",NORWOOD RESIDENTIAL HOME.
Adults Wellbeing and Health,Head of Adults,Third Party Payments,478101,Purchase of Care,07-Jan-2013,2539324-1294872H,"2,094.12",HIGHLEA CARE LTD.
Adults Wellbeing and Health,Head of Adults,Third Party Payments,470101,Purchase of Care,07-Jan-2013,2540016-2072457,"2,094.00",POTENSIAL LTD.
Adults Wellbeing and Health,Head of Adults,Third Party Payments,470101,Purchase of Care,07-Jan-2013,2540372-2072442,"2,091.04",WATERMILL PROPERTIES.
Adults Wellbeing and Health,Head of Adults,Transfer Payments,515201,Social Services Clients,07-Jan-2013,2538545-1296830H,"2,088.40",REDACTED - PAYMENT TO INDIVIDUAL
Adults Wellbeing and Health,Head of Adults,Third Party Payments,474101,Purchase of Care,07-Jan-2013,2540369-2066488,"2,085.20",WARWICK NURSING HOME.
Adults Wellbeing and Health,Head of Adults,Third Party Payments,474101,Purchase of Care,07-Jan-2013,2540369-2071109,"2,085.20",WARWICK NURSING HOME.
Adults Wellbeing and Health,Head of Adults,Third Party Payments,470101,Purchase of Care,07-Jan-2013,2539543-2072334,"2,084.84",LAMBTON GRANGE.
Adults Wellbeing and Health,Head of Adults,Third Party Payments,470101,Purchase of Care,07-Jan-2013,2539590-2071979,"2,082.76",LINDISFARNE.
Adults Wellbeing and Health,Head of Adults,Transfer Payments,515201,Social Services Clients,07-Jan-2013,2539819-1295217H,"2,082.56",REDACTED - PAYMENT TO INDIVIDUAL
Adults Wellbeing and Health,Head of Adults,Third Party Payments,472101,Purchase of Care,07-Jan-2013,2539037-1300218H,"2,077.63",DALE CARE LTD.
Adults Wellbeing and Health,Head of Adults,Transfer Payments,515201,Social Services Clients,07-Jan-2013,2539507-1298902H,"2,067.40",REDACTED - PAYMENT TO INDIVIDUAL
Adults Wellbeing and Health,Head of Adults,Third Party Payments,471101,Purchase of Care,07-Jan-2013,2539298-2073175,"2,065.76",HADRIAN HEALTHCARE (NE) LTD (ORCHARD MANOR).
Adults Wellbeing and Health,Head of Adults,Third Party Payments,470101,Purchase of Care,07-Jan-2013,2540257-2072343,"2,060.44",TAMARIS HEALTHCARE LTD.
Adults Wellbeing and Health,Head of Adults,Third Party Payments,473101,Purchase of Care,07-Jan-2013,2539921-1297728D,"2,056.80",NORTH EAST AUTISM SOCIETY.
Adults Wellbeing and Health,Head of Adults,Third Party Payments,470101,Purchase of Care,07-Jan-2013,2540382-2070948,"2,056.23",WEST LODGE HOMES.
Adults Wellbeing and Health,Head of Adults,Third Party Payments,471101,Purchase of Care,07-Jan-2013,2539298-2073173,"2,045.76",HADRIAN HEALTHCARE (NE) LTD (ORCHARD MANOR).
Adults Wellbeing and Health,Head of Adults,Third Party Payments,471101,Purchase of Care,07-Jan-2013,2539298-2073174,"2,045.76",HADRIAN HEALTHCARE (NE) LTD (ORCHARD MANOR).
Adults Wellbeing and Health,Head of Adults,Third Party Payments,471101,Purchase of Care,07-Jan-2013,2539298-2073177,"2,045.76",HADRIAN HEALTHCARE (NE) LTD (ORCHARD MANOR).
Adults Wellbeing and Health,Head of Adults,Transfer Payments,515201,Social Services Clients,07-Jan-2013,2539486-1294606H,"2,043.00",REDACTED - PAYMENT TO INDIVIDUAL
Adults Wellbeing and Health,Head of Adults,Transfer Payments,515201,Social Services Clients,07-Jan-2013,2538445-1299234H,"2,031.64",REDACTED - PAYMENT TO INDIVIDUAL
Adults Wellbeing and Health,Head of Adults,Third Party Payments,471101,Purchase of Care,07-Jan-2013,2539298-2073182,"2,025.76",HADRIAN HEALTHCARE (NE) LTD (ORCHARD MANOR).
Adults Wellbeing and Health,Head of Adults,Third Party Payments,474101,Purchase of Care,07-Jan-2013,2539111-2071260,"2,025.37",DONWELL HOUSE DAY CENTRE.
Adults Wellbeing and Health,Head of Adults,Third Party Payments,474101,Purchase of Care,07-Jan-2013,2539329-2071208,"2,025.00",HOLLY LODGE CARE HOME.
Adults Wellbeing and Health,Head of Adults,Third Party Payments,471101,Purchase of Care,07-Jan-2013,2538980-2073078,"2,023.02",CHURCH VIEW RESIDENTIAL CARE HOME.
Adults Wellbeing and Health,Head of Adults,Third Party Payments,472101,Purchase of Care,07-Jan-2013,2539028-1294132H,"2,020.32",CRESCENT HOMECARE LTD.
Adults Wellbeing and Health,Head of Adults,Third Party Payments,470101,Purchase of Care,07-Jan-2013,2539298-2069931,"2,017.24",HADRIAN HEALTHCARE (NE) LTD (ORCHARD MANOR).
Adults Wellbeing and Health,Head of Adults,Third Party Payments,474101,Purchase of Care,07-Jan-2013,2539232-2072060,"2,012.76",FOUR SEASONS HEALTH CARE..
Adults Wellbeing and Health,Head of Adults,Third Party Payments,474101,Purchase of Care,07-Jan-2013,2539362-2072091,"2,012.76",JACK DORMAND.
Adults Wellbeing and Health,Head of Adults,Third Party Payments,474101,Purchase of Care,07-Jan-2013,2539937-2072103,"2,012.76",OBJECT QUEST LTD.
Adults Wellbeing and Health,Head of Adults,Third Party Payments,474101,Purchase of Care,07-Jan-2013,2540251-2072069,"2,012.76",TAMARIS HEALTHCARE LTD.
Adults Wellbeing and Health,Head of Adults,Third Party Payments,474101,Purchase of Care,07-Jan-2013,2540251-2072076,"2,012.76",TAMARIS HEALTHCARE LTD.
Adults Wellbeing and Health,Head of Adults,Third Party Payments,474101,Purchase of Care,07-Jan-2013,2540255-2072056,"2,012.76",TAMARIS HEALTHCARE LTD.
Adults Wellbeing and Health,Head of Adults,Third Party Payments,470101,Purchase of Care,07-Jan-2013,2539722-2069972,"2,012.33",MELBURY COURT.
Adults Wellbeing and Health,Head of Adults,Third Party Payments,470101,Purchase of Care,07-Jan-2013,2538820-2069839,"2,008.87",AYCLIFFE CARE HOME.
Adults Wellbeing and Health,Head of Adults,Third Party Payments,470101,Purchase of Care,07-Jan-2013,2540338-2071988,"2,007.12",VALLEY VIEW.
Adults Wellbeing and Health,Head of Adults,Third Party Payments,470101,Purchase of Care,07-Jan-2013,2539011-2072340,"2,003.08",COTTAGE & RURAL ENTERPRISES LTD.
Adults Wellbeing and Health,Head of Adults,Third Party Payments,470101,Purchase of Care,07-Jan-2013,2539298-2069929,"1,997.24",HADRIAN HEALTHCARE (NE) LTD (ORCHARD MANOR).
Adults Wellbeing and Health,Head of Adults,Third Party Payments,474101,Purchase of Care,07-Jan-2013,2538735-2072095,"1,996.84",ALLIANCE CARE.
Adults Wellbeing and Health,Head of Adults,Third Party Payments,474101,Purchase of Care,07-Jan-2013,2539653-2071325,"1,993.00",MARIA MALLABAND NURSING HOMES LTD.
Adults Wellbeing and Health,Head of Adults,Third Party Payments,474101,Purchase of Care,07-Jan-2013,2539653-2071329,"1,993.00",MARIA MALLABAND NURSING HOMES LTD.
Adults Wellbeing and Health,Head of Adults,Third Party Payments,471101,Purchase of Care,07-Jan-2013,2540082-2073063,"1,985.76",ROSE LODGE CARE HOME.
Adults Wellbeing and Health,Head of Adults,Third Party Payments,471101,Purchase of Care,07-Jan-2013,2540082-2073067,"1,985.76",ROSE LODGE CARE HOME.
Adults Wellbeing and Health,Head of Adults,Third Party Payments,471101,Purchase of Care,07-Jan-2013,2540082-2073068,"1,985.76",ROSE LODGE CARE HOME.
Adults Wellbeing and Health,Head of Adults,Third Party Payments,471101,Purchase of Care,07-Jan-2013,2540082-2073069,"1,985.76",ROSE LODGE CARE HOME.
Adults Wellbeing and Health,Head of Adults,Third Party Payments,471101,Purchase of Care,07-Jan-2013,2540082-2073070,"1,985.76",ROSE LODGE CARE HOME.
Adults Wellbeing and Health,Head of Adults,Third Party Payments,471101,Purchase of Care,07-Jan-2013,2540082-2073072,"1,985.76",ROSE LODGE CARE HOME.
Adults Wellbeing and Health,Head of Adults,Third Party Payments,474101,Purchase of Care,07-Jan-2013,2540050-2072759,"1,985.00",REDWORTH HOUSE.
Adults Wellbeing and Health,Head of Adults,Third Party Payments,478101,Purchase of Care,07-Jan-2013,2538923-1296984H,"1,980.00",CAREWATCH (DURHAM & EASINGTON) FASTFLOW ACC.
Adults Wellbeing and Health,Head of Adults,Transfer Payments,515201,Social Services Clients,07-Jan-2013,2539367-1295159H,"1,975.36",REDACTED - PAYMENT TO INDIVIDUAL
Adults Wellbeing and Health,Head of Adults,Third Party Payments,470101,Purchase of Care,07-Jan-2013,2538734-2070356,"1,974.24",ALLIANCE CARE.
Adults Wellbeing and Health,Head of Adults,Transfer Payments,515209,Social Services Clients,07-Jan-2013,2538889-1295568D,"1,969.60",REDACTED - PAYMENT TO INDIVIDUAL
Adults Wellbeing and Health,Head of Adults,Third Party Payments,471101,Purchase of Care,07-Jan-2013,2540082-2073064,"1,965.76",ROSE LODGE CARE HOME.
Adults Wellbeing and Health,Head of Adults,Third Party Payments,471101,Purchase of Care,07-Jan-2013,2540082-2073065,"1,965.76",ROSE LODGE CARE HOME.
Adults Wellbeing and Health,Head of Adults,Third Party Payments,471101,Purchase of Care,07-Jan-2013,2540082-2073066,"1,965.76",ROSE LODGE CARE HOME.
Adults Wellbeing and Health,Head of Adults,Transfer Payments,515201,Social Services Clients,07-Jan-2013,2540238-1295637H,"1,965.36",REDACTED - PAYMENT TO INDIVIDUAL
Adults Wellbeing and Health,Head of Adults,Third Party Payments,473101,Purchase of Care,07-Jan-2013,2539202-1294899D,"1,964.00",ESPA.
Adults Wellbeing and Health,Head of Adults,Third Party Payments,470101,Purchase of Care,07-Jan-2013,2538735-2072020,"1,961.68",ALLIANCE CARE.
Adults Wellbeing and Health,Head of Adults,Third Party Payments,470101,Purchase of Care,07-Jan-2013,2538735-2072022,"1,961.68",ALLIANCE CARE.
Adults Wellbeing and Health,Head of Adults,Third Party Payments,478101,Purchase of Care,07-Jan-2013,2539324-1297524H,"1,961.20",HIGHLEA CARE LTD.
Adults Wellbeing and Health,Head of Adults,Transfer Payments,515201,Social Services Clients,07-Jan-2013,2539240-1298771H,"1,956.76",REDACTED - PAYMENT TO INDIVIDUAL
Adults Wellbeing and Health,Head of Adults,Third Party Payments,472101,Purchase of Care,07-Jan-2013,2539520-1296006H,"1,956.60",KELLY PARK OHC.
Adults Wellbeing and Health,Head of Adults,Third Party Payments,472101,Purchase of Care,07-Jan-2013,2540175-1296741H,"1,956.60",SOCIAL RESOURCE CENTRE LTD.
Adults Wellbeing and Health,Head of Adults,Third Party Payments,473101,Purchase of Care,07-Jan-2013,2539921-1294681D,"1,955.30",NORTH EAST AUTISM SOCIETY.
Adults Wellbeing and Health,Head of Adults,Third Party Payments,473101,Purchase of Care,07-Jan-2013,2540043-1295905D,"1,954.00",REAL CARE LTD.
Adults Wellbeing and Health,Head of Adults,Third Party Payments,474101,Purchase of Care,07-Jan-2013,2540018-2072500,"1,953.40",PREMIER CARE HOMES LTD.
Adults Wellbeing and Health,Head of Adults,Third Party Payments,474101,Purchase of Care,07-Jan-2013,2540050-2072508,"1,953.40",REDWORTH HOUSE.
Adults Wellbeing and Health,Head of Adults,Third Party Payments,471101,Purchase of Care,07-Jan-2013,2539257-2073075,"1,952.00",GARDEN LODGE CARE HOME.
Adults Wellbeing and Health,Head of Adults,Third Party Payments,474101,Purchase of Care,07-Jan-2013,2538906-2072512,"1,950.52",BUPA CARE SERVICES.
Adults Wellbeing and Health,Head of Adults,Third Party Payments,472101,Purchase of Care,07-Jan-2013,2539519-1295991H,"1,948.16",KELLY PARK CARING AGENCY LTD.
Adults Wellbeing and Health,Head of Adults,Third Party Payments,471101,Purchase of Care,07-Jan-2013,2539602-2073773,"1,947.76",LOTHIAN HOUSE NURSING HOME.
Adults Wellbeing and Health,Head of Adults,Third Party Payments,471101,Purchase of Care,07-Jan-2013,2539602-2073774,"1,947.76",LOTHIAN HOUSE NURSING HOME.
Adults Wellbeing and Health,Head of Adults,Third Party Payments,471101,Purchase of Care,07-Jan-2013,2539602-2073775,"1,947.76",LOTHIAN HOUSE NURSING HOME.
Adults Wellbeing and Health,Head of Adults,Third Party Payments,474101,Purchase of Care,07-Jan-2013,2538832-2071445,"1,945.00",BARCHESTER HEALTHCARE HOMES LTD.
Adults Wellbeing and Health,Head of Adults,Third Party Payments,474101,Purchase of Care,07-Jan-2013,2538832-2071448,"1,945.00",BARCHESTER HEALTHCARE HOMES LTD.
Adults Wellbeing and Health,Head of Adults,Third Party Payments,474101,Purchase of Care,07-Jan-2013,2538832-2071451,"1,945.00",BARCHESTER HEALTHCARE HOMES LTD.
Adults Wellbeing and Health,Head of Adults,Third Party Payments,474101,Purchase of Care,07-Jan-2013,2538832-2071453,"1,945.00",BARCHESTER HEALTHCARE HOMES LTD.
Adults Wellbeing and Health,Head of Adults,Third Party Payments,474101,Purchase of Care,07-Jan-2013,2538832-2071456,"1,945.00",BARCHESTER HEALTHCARE HOMES LTD.
Adults Wellbeing and Health,Head of Adults,Third Party Payments,474101,Purchase of Care,07-Jan-2013,2538832-2071460,"1,945.00",BARCHESTER HEALTHCARE HOMES LTD.
Adults Wellbeing and Health,Head of Adults,Third Party Payments,474101,Purchase of Care,07-Jan-2013,2538832-2071463,"1,945.00",BARCHESTER HEALTHCARE HOMES LTD.
Adults Wellbeing and Health,Head of Adults,Third Party Payments,474101,Purchase of Care,07-Jan-2013,2538832-2071466,"1,945.00",BARCHESTER HEALTHCARE HOMES LTD.
Adults Wellbeing and Health,Head of Adults,Third Party Payments,474101,Purchase of Care,07-Jan-2013,2538832-2071483,"1,945.00",BARCHESTER HEALTHCARE HOMES LTD.
Adults Wellbeing and Health,Head of Adults,Third Party Payments,474101,Purchase of Care,07-Jan-2013,2538832-2072881,"1,945.00",BARCHESTER HEALTHCARE HOMES LTD.
Adults Wellbeing and Health,Head of Adults,Third Party Payments,474101,Purchase of Care,07-Jan-2013,2538832-2072883,"1,945.00",BARCHESTER HEALTHCARE HOMES LTD.
Adults Wellbeing and Health,Head of Adults,Third Party Payments,474101,Purchase of Care,07-Jan-2013,2538832-2072886,"1,945.00",BARCHESTER HEALTHCARE HOMES LTD.
Adults Wellbeing and Health,Head of Adults,Third Party Payments,474101,Purchase of Care,07-Jan-2013,2538832-2072889,"1,945.00",BARCHESTER HEALTHCARE HOMES LTD.
Adults Wellbeing and Health,Head of Adults,Third Party Payments,474101,Purchase of Care,07-Jan-2013,2539085-2071263,"1,945.00",DEFOE COURT.
Adults Wellbeing and Health,Head of Adults,Third Party Payments,474101,Purchase of Care,07-Jan-2013,2539085-2071265,"1,945.00",DEFOE COURT.
Adults Wellbeing and Health,Head of Adults,Third Party Payments,474101,Purchase of Care,07-Jan-2013,2539085-2071269,"1,945.00",DEFOE COURT.
Adults Wellbeing and Health,Head of Adults,Third Party Payments,474101,Purchase of Care,07-Jan-2013,2539085-2071272,"1,945.00",DEFOE COURT.
Adults Wellbeing and Health,Head of Adults,Third Party Payments,474101,Purchase of Care,07-Jan-2013,2539085-2071274,"1,945.00",DEFOE COURT.
Adults Wellbeing and Health,Head of Adults,Third Party Payments,474101,Purchase of Care,07-Jan-2013,2539085-2071276,"1,945.00",DEFOE COURT.
Adults Wellbeing and Health,Head of Adults,Third Party Payments,474101,Purchase of Care,07-Jan-2013,2539085-2071278,"1,945.00",DEFOE COURT.
Adults Wellbeing and Health,Head of Adults,Third Party Payments,474101,Purchase of Care,07-Jan-2013,2539209-2071257,"1,945.00",EUROPEAN CARE (ENGLAND) LTD.
Adults Wellbeing and Health,Head of Adults,Third Party Payments,474101,Purchase of Care,07-Jan-2013,2539209-2072769,"1,945.00",EUROPEAN CARE (ENGLAND) LTD.
Adults Wellbeing and Health,Head of Adults,Third Party Payments,474101,Purchase of Care,07-Jan-2013,2539209-2072774,"1,945.00",EUROPEAN CARE (ENGLAND) LTD.
Adults Wellbeing and Health,Head of Adults,Third Party Payments,474101,Purchase of Care,07-Jan-2013,2539210-2071231,"1,945.00",EUROPEAN CARE (ENGLAND) LTD.
Adults Wellbeing and Health,Head of Adults,Third Party Payments,474101,Purchase of Care,07-Jan-2013,2539210-2071237,"1,945.00",EUROPEAN CARE (ENGLAND) LTD.
Adults Wellbeing and Health,Head of Adults,Third Party Payments,474101,Purchase of Care,07-Jan-2013,2539210-2071241,"1,945.00",EUROPEAN CARE (ENGLAND) LTD.
Adults Wellbeing and Health,Head of Adults,Third Party Payments,474101,Purchase of Care,07-Jan-2013,2539210-2071244,"1,945.00",EUROPEAN CARE (ENGLAND) LTD.
Adults Wellbeing and Health,Head of Adults,Third Party Payments,474101,Purchase of Care,07-Jan-2013,2539210-2071248,"1,945.00",EUROPEAN CARE (ENGLAND) LTD.
Adults Wellbeing and Health,Head of Adults,Third Party Payments,471101,Purchase of Care,07-Jan-2013,2539210-2071250,"1,945.00",EUROPEAN CARE (ENGLAND) LTD.
Adults Wellbeing and Health,Head of Adults,Third Party Payments,474101,Purchase of Care,07-Jan-2013,2539210-2071252,"1,945.00",EUROPEAN CARE (ENGLAND) LTD.
Adults Wellbeing and Health,Head of Adults,Third Party Payments,474101,Purchase of Care,07-Jan-2013,2539212-2072530,"1,945.00",EUROPEAN CARE (ENGLAND) LTD.
Adults Wellbeing and Health,Head of Adults,Third Party Payments,474101,Purchase of Care,07-Jan-2013,2539254-2071052,"1,945.00",GAINFORD CARE HOMES LTD.
Adults Wellbeing and Health,Head of Adults,Third Party Payments,474101,Purchase of Care,07-Jan-2013,2539254-2071056,"1,945.00",GAINFORD CARE HOMES LTD.
Adults Wellbeing and Health,Head of Adults,Third Party Payments,474101,Purchase of Care,07-Jan-2013,2539293-2071065,"1,945.00",GUARDIAN CARE HOMES (WEST) LTD.
Adults Wellbeing and Health,Head of Adults,Third Party Payments,474101,Purchase of Care,07-Jan-2013,2539293-2071067,"1,945.00",GUARDIAN CARE HOMES (WEST) LTD.
Adults Wellbeing and Health,Head of Adults,Third Party Payments,474101,Purchase of Care,07-Jan-2013,2539293-2071071,"1,945.00",GUARDIAN CARE HOMES (WEST) LTD.
Adults Wellbeing and Health,Head of Adults,Third Party Payments,474101,Purchase of Care,07-Jan-2013,2539293-2072537,"1,945.00",GUARDIAN CARE HOMES (WEST) LTD.
Adults Wellbeing and Health,Head of Adults,Third Party Payments,474101,Purchase of Care,07-Jan-2013,2539293-2072539,"1,945.00",GUARDIAN CARE HOMES (WEST) LTD.
Adults Wellbeing and Health,Head of Adults,Third Party Payments,474101,Purchase of Care,07-Jan-2013,2539293-2072541,"1,945.00",GUARDIAN CARE HOMES (WEST) LTD.
Adults Wellbeing and Health,Head of Adults,Third Party Payments,474101,Purchase of Care,07-Jan-2013,2539293-2072543,"1,945.00",GUARDIAN CARE HOMES (WEST) LTD.
Adults Wellbeing and Health,Head of Adults,Third Party Payments,474101,Purchase of Care,07-Jan-2013,2539293-2072547,"1,945.00",GUARDIAN CARE HOMES (WEST) LTD.
Adults Wellbeing and Health,Head of Adults,Third Party Payments,474101,Purchase of Care,07-Jan-2013,2539293-2072549,"1,945.00",GUARDIAN CARE HOMES (WEST) LTD.
Adults Wellbeing and Health,Head of Adults,Third Party Payments,474101,Purchase of Care,07-Jan-2013,2539298-2071122,"1,945.00",HADRIAN HEALTHCARE (NE) LTD (ORCHARD MANOR).
Adults Wellbeing and Health,Head of Adults,Third Party Payments,474101,Purchase of Care,07-Jan-2013,2539298-2071131,"1,945.00",HADRIAN HEALTHCARE (NE) LTD (ORCHARD MANOR).
Adults Wellbeing and Health,Head of Adults,Third Party Payments,474101,Purchase of Care,07-Jan-2013,2539298-2071133,"1,945.00",HADRIAN HEALTHCARE (NE) LTD (ORCHARD MANOR).
Adults Wellbeing and Health,Head of Adults,Third Party Payments,474101,Purchase of Care,07-Jan-2013,2539329-2071190,"1,945.00",HOLLY LODGE CARE HOME.
Adults Wellbeing and Health,Head of Adults,Third Party Payments,474101,Purchase of Care,07-Jan-2013,2539329-2071192,"1,945.00",HOLLY LODGE CARE HOME.
Adults Wellbeing and Health,Head of Adults,Third Party Payments,474101,Purchase of Care,07-Jan-2013,2539329-2071194,"1,945.00",HOLLY LODGE CARE HOME.
Adults Wellbeing and Health,Head of Adults,Third Party Payments,474101,Purchase of Care,07-Jan-2013,2539329-2071196,"1,945.00",HOLLY LODGE CARE HOME.
Adults Wellbeing and Health,Head of Adults,Third Party Payments,474101,Purchase of Care,07-Jan-2013,2539329-2071198,"1,945.00",HOLLY LODGE CARE HOME.
Adults Wellbeing and Health,Head of Adults,Third Party Payments,474101,Purchase of Care,07-Jan-2013,2539329-2071202,"1,945.00",HOLLY LODGE CARE HOME.
Adults Wellbeing and Health,Head of Adults,Third Party Payments,474101,Purchase of Care,07-Jan-2013,2539329-2071204,"1,945.00",HOLLY LODGE CARE HOME.
Adults Wellbeing and Health,Head of Adults,Third Party Payments,474101,Purchase of Care,07-Jan-2013,2539329-2071206,"1,945.00",HOLLY LODGE CARE HOME.
Adults Wellbeing and Health,Head of Adults,Third Party Payments,474101,Purchase of Care,07-Jan-2013,2539587-2071137,"1,945.00",LINDISFARNE CARE HOME (GAINFORD CARE HOMES LTD).
Adults Wellbeing and Health,Head of Adults,Third Party Payments,474101,Purchase of Care,07-Jan-2013,2539587-2071139,"1,945.00",LINDISFARNE CARE HOME (GAINFORD CARE HOMES LTD).
Adults Wellbeing and Health,Head of Adults,Third Party Payments,474101,Purchase of Care,07-Jan-2013,2539587-2072119,"1,945.00",LINDISFARNE CARE HOME (GAINFORD CARE HOMES LTD).
Adults Wellbeing and Health,Head of Adults,Third Party Payments,474101,Purchase of Care,07-Jan-2013,2539587-2072610,"1,945.00",LINDISFARNE CARE HOME (GAINFORD CARE HOMES LTD).
Adults Wellbeing and Health,Head of Adults,Third Party Payments,474101,Purchase of Care,07-Jan-2013,2539587-2072612,"1,945.00",LINDISFARNE CARE HOME (GAINFORD CARE HOMES LTD).
Adults Wellbeing and Health,Head of Adults,Third Party Payments,474101,Purchase of Care,07-Jan-2013,2539587-2072615,"1,945.00",LINDISFARNE CARE HOME (GAINFORD CARE HOMES LTD).
Adults Wellbeing and Health,Head of Adults,Third Party Payments,474101,Purchase of Care,07-Jan-2013,2539587-2072617,"1,945.00",LINDISFARNE CARE HOME (GAINFORD CARE HOMES LTD).
Adults Wellbeing and Health,Head of Adults,Third Party Payments,474101,Purchase of Care,07-Jan-2013,2539587-2072619,"1,945.00",LINDISFARNE CARE HOME (GAINFORD CARE HOMES LTD).
Adults Wellbeing and Health,Head of Adults,Third Party Payments,474101,Purchase of Care,07-Jan-2013,2539587-2072621,"1,945.00",LINDISFARNE CARE HOME (GAINFORD CARE HOMES LTD).
Adults Wellbeing and Health,Head of Adults,Third Party Payments,474101,Purchase of Care,07-Jan-2013,2539587-2072624,"1,945.00",LINDISFARNE CARE HOME (GAINFORD CARE HOMES LTD).
Adults Wellbeing and Health,Head of Adults,Third Party Payments,474101,Purchase of Care,07-Jan-2013,2539587-2072627,"1,945.00",LINDISFARNE CARE HOME (GAINFORD CARE HOMES LTD).
Adults Wellbeing and Health,Head of Adults,Third Party Payments,474101,Purchase of Care,07-Jan-2013,2539587-2072629,"1,945.00",LINDISFARNE CARE HOME (GAINFORD CARE HOMES LTD).
Adults Wellbeing and Health,Head of Adults,Third Party Payments,474101,Purchase of Care,07-Jan-2013,2539587-2072631,"1,945.00",LINDISFARNE CARE HOME (GAINFORD CARE HOMES LTD).
Adults Wellbeing and Health,Head of Adults,Third Party Payments,474101,Purchase of Care,07-Jan-2013,2539587-2072633,"1,945.00",LINDISFARNE CARE HOME (GAINFORD CARE HOMES LTD).
Adults Wellbeing and Health,Head of Adults,Third Party Payments,474101,Purchase of Care,07-Jan-2013,2539587-2072635,"1,945.00",LINDISFARNE CARE HOME (GAINFORD CARE HOMES LTD).
Adults Wellbeing and Health,Head of Adults,Third Party Payments,474101,Purchase of Care,07-Jan-2013,2539590-2071187,"1,945.00",LINDISFARNE.
Adults Wellbeing and Health,Head of Adults,Third Party Payments,474101,Purchase of Care,07-Jan-2013,2539590-2072655,"1,945.00",LINDISFARNE.
Adults Wellbeing and Health,Head of Adults,Third Party Payments,474101,Purchase of Care,07-Jan-2013,2539590-2072658,"1,945.00",LINDISFARNE.
Adults Wellbeing and Health,Head of Adults,Third Party Payments,474101,Purchase of Care,07-Jan-2013,2539590-2072660,"1,945.00",LINDISFARNE.
Adults Wellbeing and Health,Head of Adults,Third Party Payments,474101,Purchase of Care,07-Jan-2013,2539590-2072663,"1,945.00",LINDISFARNE.
Adults Wellbeing and Health,Head of Adults,Third Party Payments,474101,Purchase of Care,07-Jan-2013,2539590-2072666,"1,945.00",LINDISFARNE.
Adults Wellbeing and Health,Head of Adults,Third Party Payments,474101,Purchase of Care,07-Jan-2013,2539590-2072668,"1,945.00",LINDISFARNE.
Adults Wellbeing and Health,Head of Adults,Third Party Payments,474101,Purchase of Care,07-Jan-2013,2539590-2072670,"1,945.00",LINDISFARNE.
Adults Wellbeing and Health,Head of Adults,Third Party Payments,474101,Purchase of Care,07-Jan-2013,2539590-2072672,"1,945.00",LINDISFARNE.
Adults Wellbeing and Health,Head of Adults,Third Party Payments,474101,Purchase of Care,07-Jan-2013,2539590-2072674,"1,945.00",LINDISFARNE.
Adults Wellbeing and Health,Head of Adults,Third Party Payments,474101,Purchase of Care,07-Jan-2013,2539590-2072681,"1,945.00",LINDISFARNE.
Adults Wellbeing and Health,Head of Adults,Third Party Payments,474101,Purchase of Care,07-Jan-2013,2539590-2072684,"1,945.00",LINDISFARNE.
Adults Wellbeing and Health,Head of Adults,Third Party Payments,474101,Purchase of Care,07-Jan-2013,2539590-2072689,"1,945.00",LINDISFARNE.
Adults Wellbeing and Health,Head of Adults,Third Party Payments,474101,Purchase of Care,07-Jan-2013,2539590-2072692,"1,945.00",LINDISFARNE.
Adults Wellbeing and Health,Head of Adults,Third Party Payments,474101,Purchase of Care,07-Jan-2013,2539590-2072695,"1,945.00",LINDISFARNE.
Adults Wellbeing and Health,Head of Adults,Third Party Payments,474101,Purchase of Care,07-Jan-2013,2539590-2074341,"1,945.00",LINDISFARNE.
Adults Wellbeing and Health,Head of Adults,Third Party Payments,474101,Purchase of Care,07-Jan-2013,2539617-2071143,"1,945.00",LYONS COURT CARE HOME.
Adults Wellbeing and Health,Head of Adults,Third Party Payments,474101,Purchase of Care,07-Jan-2013,2539617-2071145,"1,945.00",LYONS COURT CARE HOME.
Adults Wellbeing and Health,Head of Adults,Third Party Payments,474101,Purchase of Care,07-Jan-2013,2539617-2071147,"1,945.00",LYONS COURT CARE HOME.
Adults Wellbeing and Health,Head of Adults,Third Party Payments,474101,Purchase of Care,07-Jan-2013,2539617-2071149,"1,945.00",LYONS COURT CARE HOME.
Adults Wellbeing and Health,Head of Adults,Third Party Payments,474101,Purchase of Care,07-Jan-2013,2539617-2071151,"1,945.00",LYONS COURT CARE HOME.
Adults Wellbeing and Health,Head of Adults,Third Party Payments,474101,Purchase of Care,07-Jan-2013,2539617-2071153,"1,945.00",LYONS COURT CARE HOME.
Adults Wellbeing and Health,Head of Adults,Third Party Payments,474101,Purchase of Care,07-Jan-2013,2539617-2071155,"1,945.00",LYONS COURT CARE HOME.
Adults Wellbeing and Health,Head of Adults,Third Party Payments,474101,Purchase of Care,07-Jan-2013,2539617-2071157,"1,945.00",LYONS COURT CARE HOME.
Adults Wellbeing and Health,Head of Adults,Third Party Payments,474101,Purchase of Care,07-Jan-2013,2539617-2071159,"1,945.00",LYONS COURT CARE HOME.
Adults Wellbeing and Health,Head of Adults,Third Party Payments,474101,Purchase of Care,07-Jan-2013,2539617-2072637,"1,945.00",LYONS COURT CARE HOME.
Adults Wellbeing and Health,Head of Adults,Third Party Payments,474101,Purchase of Care,07-Jan-2013,2539617-2072639,"1,945.00",LYONS COURT CARE HOME.
Adults Wellbeing and Health,Head of Adults,Third Party Payments,474101,Purchase of Care,07-Jan-2013,2539617-2072641,"1,945.00",LYONS COURT CARE HOME.
Adults Wellbeing and Health,Head of Adults,Third Party Payments,474101,Purchase of Care,07-Jan-2013,2539617-2072643,"1,945.00",LYONS COURT CARE HOME.
Adults Wellbeing and Health,Head of Adults,Third Party Payments,474101,Purchase of Care,07-Jan-2013,2539617-2072645,"1,945.00",LYONS COURT CARE HOME.
Adults Wellbeing and Health,Head of Adults,Third Party Payments,474101,Purchase of Care,07-Jan-2013,2539617-2072647,"1,945.00",LYONS COURT CARE HOME.
Adults Wellbeing and Health,Head of Adults,Third Party Payments,474101,Purchase of Care,07-Jan-2013,2539617-2072651,"1,945.00",LYONS COURT CARE HOME.
Adults Wellbeing and Health,Head of Adults,Third Party Payments,474101,Purchase of Care,07-Jan-2013,2539617-2072653,"1,945.00",LYONS COURT CARE HOME.
Adults Wellbeing and Health,Head of Adults,Third Party Payments,474101,Purchase of Care,07-Jan-2013,2539653-2071315,"1,945.00",MARIA MALLABAND NURSING HOMES LTD.
Adults Wellbeing and Health,Head of Adults,Third Party Payments,474101,Purchase of Care,07-Jan-2013,2539653-2071317,"1,945.00",MARIA MALLABAND NURSING HOMES LTD.
Adults Wellbeing and Health,Head of Adults,Third Party Payments,474101,Purchase of Care,07-Jan-2013,2539653-2071322,"1,945.00",MARIA MALLABAND NURSING HOMES LTD.
Adults Wellbeing and Health,Head of Adults,Third Party Payments,474101,Purchase of Care,07-Jan-2013,2539653-2072780,"1,945.00",MARIA MALLABAND NURSING HOMES LTD.
Adults Wellbeing and Health,Head of Adults,Third Party Payments,474101,Purchase of Care,07-Jan-2013,2539722-2071163,"1,945.00",MELBURY COURT.
Adults Wellbeing and Health,Head of Adults,Third Party Payments,474101,Purchase of Care,07-Jan-2013,2539722-2071165,"1,945.00",MELBURY COURT.
Adults Wellbeing and Health,Head of Adults,Third Party Payments,474101,Purchase of Care,07-Jan-2013,2539722-2071167,"1,945.00",MELBURY COURT.
Adults Wellbeing and Health,Head of Adults,Third Party Payments,474101,Purchase of Care,07-Jan-2013,2539722-2071169,"1,945.00",MELBURY COURT.
Adults Wellbeing and Health,Head of Adults,Third Party Payments,474101,Purchase of Care,07-Jan-2013,2539722-2071171,"1,945.00",MELBURY COURT.
Adults Wellbeing and Health,Head of Adults,Third Party Payments,474101,Purchase of Care,07-Jan-2013,2539722-2071174,"1,945.00",MELBURY COURT.
Adults Wellbeing and Health,Head of Adults,Third Party Payments,474101,Purchase of Care,07-Jan-2013,2540018-2071042,"1,945.00",PREMIER CARE HOMES LTD.
Adults Wellbeing and Health,Head of Adults,Third Party Payments,474101,Purchase of Care,07-Jan-2013,2540050-2072736,"1,945.00",REDWORTH HOUSE.
Adults Wellbeing and Health,Head of Adults,Third Party Payments,474101,Purchase of Care,07-Jan-2013,2540050-2072740,"1,945.00",REDWORTH HOUSE.
Adults Wellbeing and Health,Head of Adults,Third Party Payments,474101,Purchase of Care,07-Jan-2013,2540050-2072742,"1,945.00",REDWORTH HOUSE.
Adults Wellbeing and Health,Head of Adults,Third Party Payments,474101,Purchase of Care,07-Jan-2013,2540050-2072747,"1,945.00",REDWORTH HOUSE.
Adults Wellbeing and Health,Head of Adults,Third Party Payments,474101,Purchase of Care,07-Jan-2013,2540050-2072749,"1,945.00",REDWORTH HOUSE.
Adults Wellbeing and Health,Head of Adults,Third Party Payments,474101,Purchase of Care,07-Jan-2013,2540050-2072751,"1,945.00",REDWORTH HOUSE.
Adults Wellbeing and Health,Head of Adults,Third Party Payments,474101,Purchase of Care,07-Jan-2013,2540050-2072753,"1,945.00",REDWORTH HOUSE.
Adults Wellbeing and Health,Head of Adults,Third Party Payments,474101,Purchase of Care,07-Jan-2013,2540050-2072755,"1,945.00",REDWORTH HOUSE.
Adults Wellbeing and Health,Head of Adults,Third Party Payments,474101,Purchase of Care,07-Jan-2013,2540050-2072757,"1,945.00",REDWORTH HOUSE.
Adults Wellbeing and Health,Head of Adults,Third Party Payments,474101,Purchase of Care,07-Jan-2013,2540050-2072761,"1,945.00",REDWORTH HOUSE.
Adults Wellbeing and Health,Head of Adults,Third Party Payments,474101,Purchase of Care,07-Jan-2013,2540050-2074115,"1,945.00",REDWORTH HOUSE.
Adults Wellbeing and Health,Head of Adults,Third Party Payments,474101,Purchase of Care,07-Jan-2013,2540060-2072851,"1,945.00",RICHMOND COURT.
Adults Wellbeing and Health,Head of Adults,Third Party Payments,474101,Purchase of Care,07-Jan-2013,2540060-2072853,"1,945.00",RICHMOND COURT.
Adults Wellbeing and Health,Head of Adults,Third Party Payments,474101,Purchase of Care,07-Jan-2013,2540060-2072856,"1,945.00",RICHMOND COURT.
Adults Wellbeing and Health,Head of Adults,Third Party Payments,474101,Purchase of Care,07-Jan-2013,2540060-2072859,"1,945.00",RICHMOND COURT.
Adults Wellbeing and Health,Head of Adults,Third Party Payments,474101,Purchase of Care,07-Jan-2013,2540060-2072861,"1,945.00",RICHMOND COURT.
Adults Wellbeing and Health,Head of Adults,Third Party Payments,474101,Purchase of Care,07-Jan-2013,2540060-2072863,"1,945.00",RICHMOND COURT.
Adults Wellbeing and Health,Head of Adults,Third Party Payments,474101,Purchase of Care,07-Jan-2013,2540060-2072865,"1,945.00",RICHMOND COURT.
Adults Wellbeing and Health,Head of Adults,Third Party Payments,474101,Purchase of Care,07-Jan-2013,2540060-2072867,"1,945.00",RICHMOND COURT.
Adults Wellbeing and Health,Head of Adults,Third Party Payments,474101,Purchase of Care,07-Jan-2013,2540060-2073973,"1,945.00",RICHMOND COURT.
Adults Wellbeing and Health,Head of Adults,Third Party Payments,474101,Purchase of Care,07-Jan-2013,2540121-2071210,"1,945.00",SANDRINGHAM CARE HOME.
Adults Wellbeing and Health,Head of Adults,Third Party Payments,474101,Purchase of Care,07-Jan-2013,2540121-2071212,"1,945.00",SANDRINGHAM CARE HOME.
Adults Wellbeing and Health,Head of Adults,Third Party Payments,474101,Purchase of Care,07-Jan-2013,2540121-2071214,"1,945.00",SANDRINGHAM CARE HOME.
Adults Wellbeing and Health,Head of Adults,Third Party Payments,474101,Purchase of Care,07-Jan-2013,2540121-2071217,"1,945.00",SANDRINGHAM CARE HOME.
Adults Wellbeing and Health,Head of Adults,Third Party Payments,474101,Purchase of Care,07-Jan-2013,2540121-2071219,"1,945.00",SANDRINGHAM CARE HOME.
Adults Wellbeing and Health,Head of Adults,Third Party Payments,474101,Purchase of Care,07-Jan-2013,2540121-2071221,"1,945.00",SANDRINGHAM CARE HOME.
Adults Wellbeing and Health,Head of Adults,Third Party Payments,474101,Purchase of Care,07-Jan-2013,2540121-2072716,"1,945.00",SANDRINGHAM CARE HOME.
Adults Wellbeing and Health,Head of Adults,Third Party Payments,474101,Purchase of Care,07-Jan-2013,2540121-2072718,"1,945.00",SANDRINGHAM CARE HOME.
Adults Wellbeing and Health,Head of Adults,Third Party Payments,474101,Purchase of Care,07-Jan-2013,2540121-2072720,"1,945.00",SANDRINGHAM CARE HOME.
Adults Wellbeing and Health,Head of Adults,Third Party Payments,474101,Purchase of Care,07-Jan-2013,2540121-2072722,"1,945.00",SANDRINGHAM CARE HOME.
Adults Wellbeing and Health,Head of Adults,Third Party Payments,474101,Purchase of Care,07-Jan-2013,2540121-2072724,"1,945.00",SANDRINGHAM CARE HOME.
Adults Wellbeing and Health,Head of Adults,Third Party Payments,474101,Purchase of Care,07-Jan-2013,2540121-2072727,"1,945.00",SANDRINGHAM CARE HOME.
Adults Wellbeing and Health,Head of Adults,Third Party Payments,474101,Purchase of Care,07-Jan-2013,2540121-2072729,"1,945.00",SANDRINGHAM CARE HOME.
